Workbook

Sheet datos (hidden)
B2: 2. NOMBRE DEL PROYECTO
B3: Naturaleza de Intervención | E3: ¿Existen antecedentes de ocurrencia en el área de estudio? | F3: Si
B4: Recuperación | F4: No
B5: Objeto | E5: ¿Existe información que indique futuros cambios en las características del peligro o los nuevos peligros? | F5: Si
B6: SERVICIO ECOSISTÉMICO DE REGULACIÓN HÍDRICA | F6: No
E11: AFIRMADO | G11: BUENO | H11: A PIE | I11: GOBIERNO LOCAL | K11: LOCAL | L11: BENEFICIARIO
E12: ASFALTADO | G12: REGULAR | H12: ASEMILA | I12: GOBIERNO REGIONAL | K12: NACIONAL | L12: COOPERANTE
E13: CAMINOS DE HERRADURA | G13: MALO | H13: AUTO | I13: POBLACIÓN | K13: REGIONAL | L13: OPONENTE
E14: CARRETERA | H14: BUS INTERPROVINCIAL | I14: SECTOR | K14: OTROS | L14: PERJUDICADO
E15: SIN VÍA | H15: CAMIÓN | I15: OTRO
E16: TROCHA CARROZABLE | H16: CAMIONETA
H17: VEHÍCULO MENOR
B18: 3. RESPONSABILIDAD FUNCIONAL
B19: 3.1. FUNCIÓN:
B20: Función 17: Ambiente.
B21: 3.2. DIVISIÓN FUNCIONAL: | E21: M | F21: Superficie reforestada
B22: División Funcional 054: Desarrollo estratégico conservación y aprovechamiento sostenible del patrimonio natural. | E22: M2 | F22: Superficie revegetada
B23: 3.3. GRUPO FUNCIONAL: | E23: M3 | F23: Superficie con suelos retenidos o recuperados
B24: Grupo Funcional 0120: Gestión integrada y sostenible de los ecosistemas. | E24: KM | F24: Excluidores con materiales naturales
B25: 3.4. SECTOR RESPONSABLE: | E25: HA | F25: Zanjas de infiltración con materiales naturales
B26: Sector Ambiente. | E26: LITROS/SEGUNDO | F26: Terrazas de formación de suelos con materiales naturales
E27: SET | F27: Cochas o Qochas.
B28: ECOSISTEMAS DE INTERÉS HÍDRICO PRINCIPAL | D28: e | E28: NÚMERO | F28: Infraestructura hídrica en amunas (estructura de captación, dique de derivación, canal amunador) | G28: Infraestructura hídrica en amunas (estructura de captación, dique de derivación, canal amunador)
E29: UNIDAD | F29: Barreras Rompe vientos | G29: Diques o reservorios de retención de aguas rústicas
B30: BOFEDAL | E30: SERVICIO | F30: Barreras corta fuegos
B31: HUMEDALES Y LAGUNAS ALTOANDINAS | F31: Atrapanieblas | G31: Cochas o Qochas.
F32: Canales de mamanteo mejorados con materiales naturales | G32: Diques o reservorios de retención de aguas rústicas
B33: ECOSISTEMA DE INTERÉS HÍDRICO ASOCIADO | F33: Superficie de cobertura vegetal para proteger canales de mamanteo
A34: PÁRAMO | B34: PÁRAMO | F34: Cercos vivos o barreras vivas
A35: PAJONAL DE PUNA SECA | B35: PAJONAL DE PUNA HÚMEDA | F35: Diques de control de cárcavas con materiales naturales
A36: PAJONAL DE PUNA HÚMEDA | B36: JALCA | F36: Diques o reservorios de retención de aguas rústicas
A37: JALCA | B37: MATORRAL DE PUNA SECA | F37: Superficie de cobertura vegetal para fitoremediación de aguas
A38: MATORRAL DE PUNA SECA | B38: BOSQUE RELICTO ALTOANDINO (QUEÑOAL Y OTROS) | F38: Barreras Rompe vientos
A39: BOSQUE RELICTO ALTOANDINO (QUENOAL Y OTROS) | B39: BOSQUE RELICTO MONTANO DE VERTIENTE OCCIDENTAL | C39: LOS HUMEDALES RECONOCIDOS COMO DE IMPORTANCIA INTERNACIONAL O SITIOS RAMSAR | F39: Barreras corta fuegos
A40: BOSQUE RELICTO MONTANO DE VERTIENTE OCCIDENTAL | B40: BOSQUE RELICTO MESOANDINO | C40: ÁREAS DE CONSERVACIÓN AMBIENTAL | F40: Atrapanieblas
A41: BOSQUE RELICTO MESOANDINO | B41: BOSQUE ESTACIONALMENTE SECO INTERANDINO (MARAÑÓN, MANTARO, PAMPAS Y APURÍMAC) | C41: ZONAS DE PROTECCIÓN Y CONSERVACIÓN ECOLÓGICA Y ZONAS DE RECUPERACIÓN IDENTIFICADAS EN EL PROCESO DE ZONIFICACIÓN ECOLÓGICA ECONÓMICA APROBADOS POR EL MINAM | F41: Canales de mamanteo mejorados con materiales naturales
A42: BOSQUE ESTACIONALMENTE SECO INTERANDINO (MARAÑON, MANTARO, PAMPAS Y APURIMAC) | B42: MATORRAL ANDINO | C42: ZONAS PRIORIZADAS POR LOS SISTEMAS REGIONALES DE CONSERVACIÓN | F42: Superficie de cobertura vegetal para proteger canales de mamanteo
A43: MATORRAL ANDINO | B43: USO PRIORITARIO | C43: ÁREAS NATURALES PROYEGIDAS DE ADMINISTRACIÓN NACIONAL O ÁREAS DE CONSERVACIÓN REGIONAL, INCLUYENDO ZONAS DE AMORTIGUAMIENTO | F43: Cercos vivos o barreras vivas
C44: ZONAS DE RECUPERACIÓN IDENTIFICADAS EN LOS PROCESOS DE ZONIFICACIÓN ECOLÓGICA ECONÓMICA APROBADAS POR EL MINAM | F44: Diques de control de cárcavas con materiales naturales
B45: USO POBLACIONAL | C45: ECOSISTEMAS DEGRADADOS QUE NO ESTÉN EN LOS ANTERIORES GRUPOS Y QUE DEMUESTREN SU RELEVANCIA ECONÓMICA, SOCIAL, CULTURAL O SI SON ÚNICOS EN EL PAÍS | F45: Diques o reservorios de retención de aguas rústicas
B46: USO AGRARIO | F46: Superficie de cobertura vegetal para fitoremediación de aguas
F47: Infraestructura física
B48: II. IDENTIFICACIÓN | F48: Cercos
F49: Canales de mamanteo mejorados e impermeabilizados
B50: 2.1 CAUSAS DIRECTAS | F50: Muros rústicos de sostenimiento
F51: Diques de control de cárcavas
B52: DISMINUCIÓN DE CAPACIDAD DE ALMACENAMIENTO DEL AGUA EN EL ECOSISTEMA PRINCIPAL | F52: Diques o reservorios de retención de agua
F53: Sistemas de riego asociados con los activos de infraestructura natural
B54: DISMINUCIÓN DE LA CAPACIDAD DE INFILTRACIÓN DEL AGUA EN EL ECOSISTEMA ASOCIADO | F54: Muros de protección
B56: INADECUADA GESTIÓN DEL SERVICIO ECOSISTÉMICO DE REGULACIÓN HÍDRICA
B59: 2.1 CAUSAS INDIRECTAS
B61: ALTERACIÓN DE LA COBERTURA VEGETAL NATIVA | D61: =IF('[5]FICHA TECNICA SERH'!B169="","","CAUSA_DIRECTA_1") -> CAUSA_DIRECTA_1 | F61: Muros de protección
D62: =IF('[5]FICHA TECNICA SERH'!B169="","","CAUSA_DIRECTA_1.2") -> CAUSA_DIRECTA_1.2 | F62: Puesto de vigilancia
B63: ALTERACIÓN DE LAS CARACTERÍSTICAS DE LA TURBA | D63: =IF('[5]FICHA TECNICA SERH'!B169="","","CAUSA_DIRECTA_1.3") -> CAUSA_DIRECTA_1.3 | F63: Vías y caminos de acceso
D64: =IF('[5]FICHA TECNICA SERH'!B173="","","CAUSA_DIRECTA_2.1") -> CAUSA_DIRECTA_2.1 | F64: Cercos de seguridad
B65: ALTERACIÓN DE LA CALIDAD DEL AGUA SUPERFICIAL | D65: =IF('[5]FICHA TECNICA SERH'!B173="","","CAUSA_DIRECTA_2.2") -> CAUSA_DIRECTA_2.2 | F65: Camioneta
D66: =IF('[5]FICHA TECNICA SERH'!B173="","","CAUSA_DIRECTA_2.3") -> CAUSA_DIRECTA_2.3 | F66: Bote
B67: DISMINUCIÓN DE LA COBERTURA VEGETAL NATIVA | D67: =IF('[5]FICHA TECNICA SERH'!B176="","","CAUSA_DIRECTA_3.1") -> CAUSA_DIRECTA_3.1 | F67: Canoa/ peque peque
D68: =IF('[5]FICHA TECNICA SERH'!B176="","","CAUSA_DIRECTA_3.2") -> CAUSA_DIRECTA_3.2 | F68: Deslizador
B69: ALTERACIÓN DE LAS CARACTERÍSTICAS DEL SUELO | F69: Motocicleta
F70: Drones
B71: CAMBIO EN EL RÉGIMEN DE PRECIPITACIONES Y TEMPERATURAS | F71: Dendrómetros
F72: Cámaras trampa
B73: INADECUADO MANEJO DE LOS ECOSISTEMAS DE INTERÉS HÍDRICO | F73: Estación meteorológica
F74: Estación hidrológica
B75: INADECUADA CAPACIDAD DE GESTIÓN DE LOS ECOSISTEMAS DE INTERÉS HÍDRICO | F75: Antenas de transmisión
F76: Paneles Solares
F77: Estación biológica
B78: 2.2 EFECTOS DIRECTOS | F78: Camión Cisterna
F79: Cuatrimotos
F80: Muelles
B81: MENOR DISPONIBILIDAD DEL SERVICIO ECOSISTÉMICOS DE PROVISIÓN DEL RECURSO HÍDRICO | E81: Alto | F81: Bajo
E82: Medio | F82: Moderado
B83: INCREMENTO EN EL DETERIORO DE LOS ECOSISTEMAS | E83: Bajo | F83: Mayor
B87: 2.2 EFECTOS INDIRECTOS
B90: DISMINUCIÓN DE LA OFERTA DEL AGUA POTABLE PARA USO POBLACIONAL | D90: =IF('[5]FICHA TECNICA SERH'!B183="","","EI_1.1") -> EI_1.1
B92: DISMINUCIÓN DE LA OFERTA DEL AGUA PARA USO AGROPECUARIO | D92: =IF('[5]FICHA TECNICA SERH'!B183="","","EI_1.2") -> EI_1.2
B94: DISMINUCIÓN DE LA OFERTA DEL AGUA PARA USO ENERGÉTICO | D94: =IF('[5]FICHA TECNICA SERH'!B185="","","EI_1.3") -> EI_1.3
B96: DISMINUCIÓN DEL SERVICIO ECOSISTÉMICO DE PROVISIÓN DE LOS RECURSOS GENÉTICOS | D96: =IF('[5]FICHA TECNICA SERH'!B186="","","EI_2.1") -> EI_2.1
B98: DISMINUCIÓN DEL SERVICIO ECOSISTÉMICO DE PROVISIÓN DE COMBUSTIBLE | D98: =IF('[5]FICHA TECNICA SERH'!B186="","","EI_2.2") -> EI_2.2
B100: DISMINUCIÓN DEL SERVICIO ECOSISTÉMICO DE PROVISIÓN DE FORRAJE | D100: =IF('[5]FICHA TECNICA SERH'!B186="","","EI_2.3") -> EI_2.3
B102: DISMINUCIÓN DEL SERVICIO ECOSISTÉMICO DE PROVISIÓN DE MEDICINAS NATURALES | D102: =IF('[5]FICHA TECNICA SERH'!B186="","","EI_3.1") -> EI_3.1
B104: DISMINUCIÓN DEL SERVICIO ECOSISTÉMICO DE PROVISIÓN DE PRODUCTOS BIOQUÍMICOS | D104: =IF('[5]FICHA TECNICA SERH'!B186="","","EI_3.2") -> EI_3.2
B106: 2.3 DEFINICIÓN DE LOS OBJETIVOS DEL PROYECTO
B108: Medios Fundamentales | C108: PRODUCTO
A109: 1 | B109: RECUPERACIÓN DE LA COBERTURA VEGETAL NATIVA DEL ECOSISTEMA PRINCIPAL | C109: HECTÁREAS DE COBERTURA VEGETAL INCREMENTADAS DEL ECOSISTEMA PRINCIPAL
A110: 2 | B110: RECUPERACIÓN DE LAS CARACTERÍSTICAS DE LA TURBA DEL ECOSISTEMA PRINCIPAL | C110: HECTÁREAS DE LA ESTRUCTURA DE LA TURBA RECUPERADA DEL ECOSISTEMA PRINCIPAL
A111: 3 | B111: RECUPERACIÓN DE LA CALIDAD DE AGUA SUPERFICIALES | C111: METROS CUADRADOS DE ESPEJO DE AGUA RECUPERADO
A112: 4 | B112: RECUPERACIÓN DE LA COBERTURA VEGETAL DE LOS ECOSISTEMAS ASOCIADOS | C112: HECTÁREAS DE COBERTURA VEGETAL INCREMENTADAS DE LOS ECOSISTEMAS ASOCIADOS
A113: 5 | B113: RECUPERACIÓN DE LAS CARACTERÍSTICAS DEL SUELO DEL ECOSISTEMA ASOCIADO | C113: HECTÁREAS DE LA ESTRUCTURA DEL SUELO RECUPERADA DE LOS ECOSISTEMAS ASOCIADOS
A114: 6 | B114: ADAPTACIÓN A LOS REGÍMENES DE PRECIPITACIÓN Y TEMPERATURAS | C114: NÚMERO DE MEDIDAS DE ADAPTACIÓN AL RÉGIMEN DE PRECIPITACIONES Y TEMPERATURAS
A115: 7 | B115: ADECUADAS PRÁCTICAS DEL MANEJO DEL ECOSISTEMA | C115: POBLADORES CON ADECUADAS CAPACIDADES EN PRÁCTICAS DE MANEJO DE LOS ECOSISTEMAS DE INTERÉS HÍDRICO
A116: 8 | B116: ADECUADAS CAPACIDADES DE LAS ENTIDADES A CARGO DE LA GESTIÓN DEL ECOSISTEMA | C116: N° DE ÁREAS U ÓRGANOS ENCARGADOS DE LA GESTIÓN DEL ECOSISTEMA DE INTERÉS HÍDRICO CON ADECUADAS CAPACIDADES EN GESTIÓN DEL ECOSISTEMA
B118: FUENTES DE VERIFICACIÓN
B119: FOTO SATELITAL
B120: INFORME DE MONITOREO EN CAMPO
B121: ACTA DE TALLERES CON ACTORES CLAVES
B122: DOCUMENTOS DE GESTIÓN
B125: 2.4 MEDIOS FUNDAMENTALES
B129: MEDIOS FUNDAMENTALES | C129: ACCIONES | D129: ITEM | I129: TIPO DE ITEM
A130: 1 | B130: =B109 -> RECUPERACIÓN DE LA COBERTURA VEGETAL NATIVA DEL ECOSISTEMA PRINCIPAL | C130: REFORESTACIÓN CON ESPECIES NATIVAS | D130: INFRAESTRUCTURA NATURAL | F130: ACCION1.1 | I130: INFRAESTRUCTURA NATURAL
C132: REVEGETACIÓN CON ESPECIES NATIVAS | D132: INFRAESTRUCTURA NATURAL | F132: ACCION1.2 | I132: INTANGIBLE
C134: INSTALACIÓN DE CERCOS EXCLUIDORES | D134: INFRAESTRUCTURA NATURAL | F134: ACCION1.3
A136: 2 | B136: =B110 -> RECUPERACIÓN DE LAS CARACTERÍSTICAS DE LA TURBA DEL ECOSISTEMA PRINCIPAL | C136: CONTROL DE CÁRCAVAS | D136: INFRAESTRUCTURA NATURAL | F136: ACCION2.1
C138: ENRIQUECIMIENTO DE SUELOS | D138: INFRAESTRUCTURA NATURAL | F138: ACCION2.2
C140: CONSTRUCCIÓN DE TERRAZAS DE FORMACIÓN DE SUELOS | D140: INFRAESTRUCTURA NATURAL | F140: ACCION2.3
A142: 3 | B142: =B111 -> RECUPERACIÓN DE LA CALIDAD DE AGUA SUPERFICIALES | C142: FITORREMEDIACIÓN DE AGUAS | D142: INFRAESTRUCTURA NATURAL | F142: ACCION3.1
C144: EXTRACCIÓN DE VEGETACIÓN ACUÁTICA | D144: INFRAESTRUCTURA NATURAL | F144: ACCION3.2 | I144: DOCUMENTO
A146: 4 | B146: =B112 -> RECUPERACIÓN DE LA COBERTURA VEGETAL DE LOS ECOSISTEMAS ASOCIADOS | C146: REFORESTACIÓN CON ESPECIES NATIVAS | D146: INFRAESTRUCTURA NATURAL | F146: ACCION4.1 | I146: EVENTO
C148: REVEGETACIÓN CON ESPECIES NATIVAS | D148: INFRAESTRUCTURA NATURAL | F148: ACCION4.2 | I148: HA
C150: INSTALACIÓN DE CERCOS EXCLUIDORES | D150: INFRAESTRUCTURA NATURAL | F150: ACCION4.3
A152: 5 | B152: =B113 -> RECUPERACIÓN DE LAS CARACTERÍSTICAS DEL SUELO DEL ECOSISTEMA ASOCIADO | C152: CONTROL DE CÁRCAVAS | D152: INFRAESTRUCTURA NATURAL | F152: ACCION5.1 | I152: HORAS HOMBRE
C154: ENRIQUECIMIENTO DE SUELOS | D154: INFRAESTRUCTURA NATURAL
C156: CONSTRUCCIÓN DE TERRAZAS DE FORMACIÓN DE SUELOS | D156: INFRAESTRUCTURA NATURAL
A158: 6 | B158: =B114 -> ADAPTACIÓN A LOS REGÍMENES DE PRECIPITACIÓN Y TEMPERATURAS | C158: REPARACIÓN DEL CANAL AMUNADOR | D158: INFRAESTRUCTURA NATURAL
C160: REPARACIÓN DEL CANAL DE MAMANTEO | D160: INFRAESTRUCTURA NATURAL
C162: CONSTRUCCIÓN DE ZANJAS DE INFILTRACIÓN | D162: INFRAESTRUCTURA NATURAL
C164: INSTALACIÓN DE QOCHAS | D164: INFRAESTRUCTURA NATURAL
A166: 7 | B166: =B115 -> ADECUADAS PRÁCTICAS DEL MANEJO DEL ECOSISTEMA | C166: CAPACITACIÓN EN GESTIÓN INTEGRADA DE RECURSOS HÍDRICOS CON ENFOQUE DE CUENCA | D166: INTANGIBLE | F166: ACCION5.2 | I166: M2
C168: ASISTENCIA TÉCNICA EN EL MANEJO DE ECOSISTEMAS DE INTERÉS HÍDRICO | D168: INTANGIBLE | F168: ACCION5.3
C170: CAPACITACIÓN EN BUENAS PRÁCTICAS PARA LA ADAPTACIÓN AL CAMBIO CLIMÁTICO Y GESTIÓN DE RIESGOS | D170: INTANGIBLE
C172: SENSIBILIZACIÓN RELACIONADA A LA RECUPERACIÓN DEL SERVICIO ECOSISTÉMICO DE REGULACIÓN HÍDRICA | D172: INTANGIBLE | F172: ACCION5.4
C174: INTERCAMBIO DE EXPERIENCIAS RELACIONADAS A LA RECUPERACIÓN DEL SERVICIO ECOSISTÉMICO DE REGULACIÓN HÍDRICA | D174: INTANGIBLE | F174: ACCION5.5
A176: 8 | B176: =B116 -> ADECUADAS CAPACIDADES DE LAS ENTIDADES A CARGO DE LA GESTIÓN DEL ECOSISTEMA | C176: CAPACITACIÓN A FUNCIONARIOS PÚBLICOS SOBRE LA GESTIÓN INTEGRADA DEL RECURSO HÍDRICO CON ENFOQUE DE CUENCA | D176: INTANGIBLE | F176: ACCION6.1 | I176: M3
C178: CAPACITACIÓN A FUNCIONARIOS PÚBLICOS SOBRE LAS MEDIDAS DE ADAPTACIÓN EN UN CONTEXTO DE CAMBIO CLIMÁTICO EN LA GESTIÓN INTEGRADA DE LOS RECURSOS HÍDRICOS | D178: INTANGIBLE | F178: ACCION6.2 | I178: MATERIALES
C180: DESARROLLO DE CAPACIDADES PARA EL MONITOREO Y SEGUIMIENTO DE LOS ECOSISTEMAS DE INTERÉS HÍDRICO Y EL SERVICIO ECOSISTÉMICO DE REGULACIÓN HÍDRICA | D180: INTANGIBLE | F180: ACCION6.3
C182: INTERCAMBIO DE EXPERIENCIAS SOBRE LA GESTIÓN INTEGRADA DEL RECURSO HÍDRICO CON ENFOQUE DE CUENCA | D182: INTANGIBLE | F182: ACCION6.4
B187: ACCIONES
B188: =C130 -> REFORESTACIÓN CON ESPECIES NATIVAS | C188: =C132 -> REVEGETACIÓN CON ESPECIES NATIVAS | D188: =C134 -> INSTALACIÓN DE CERCOS EXCLUIDORES | E188: =C136 -> CONTROL DE CÁRCAVAS | F188: =C138 -> ENRIQUECIMIENTO DE SUELOS | G188: =C140 -> CONSTRUCCIÓN DE TERRAZAS DE FORMACIÓN DE SUELOS | H188: =C142 -> FITORREMEDIACIÓN DE AGUAS | I188: =C144 -> EXTRACCIÓN DE VEGETACIÓN ACUÁTICA | J188: =C146 -> REFORESTACIÓN CON ESPECIES NATIVAS | K188: =C148 -> REVEGETACIÓN CON ESPECIES NATIVAS | L188: =C150 -> INSTALACIÓN DE CERCOS EXCLUIDORES | M188: =C152 -> CONTROL DE CÁRCAVAS | N188: =C154 -> ENRIQUECIMIENTO DE SUELOS | O188: =C156 -> CONSTRUCCIÓN DE TERRAZAS DE FORMACIÓN DE SUELOS | P188: =C158 -> REPARACIÓN DEL CANAL AMUNADOR | Q188: =C160 -> REPARACIÓN DEL CANAL DE MAMANTEO | R188: =C162 -> CONSTRUCCIÓN DE ZANJAS DE INFILTRACIÓN | S188: =C164 -> INSTALACIÓN DE QOCHAS | T188: CAPACITACIÓN EN GESTIÓN INTEGRADA DE RECURSOS HÍDRICOS CON ENFOQUE DE CUENCA | V188: =C170 -> CAPACITACIÓN EN BUENAS PRÁCTICAS PARA LA ADAPTACIÓN AL CAMBIO CLIMÁTICO Y GESTIÓN DE RIESGOS | W188: =C172 -> SENSIBILIZACIÓN RELACIONADA A LA RECUPERACIÓN DEL SERVICIO ECOSISTÉMICO DE REGULACIÓN HÍDRICA | X188: =C174 -> INTERCAMBIO DE EXPERIENCIAS RELACIONADAS A LA RECUPERACIÓN DEL SERVICIO ECOSISTÉMICO DE REGULACIÓN HÍDRICA | Y188: =C176 -> CAPACITACIÓN A FUNCIONARIOS PÚBLICOS SOBRE LA GESTIÓN INTEGRADA DEL RECURSO HÍDRICO CON ENFOQUE DE CUENCA | Z188: =C178 -> CAPACITACIÓN A FUNCIONARIOS PÚBLICOS SOBRE LAS MEDIDAS DE ADAPTACIÓN EN UN CONTEXTO DE CAMBIO CLIMÁTICO EN LA GESTIÓN INTEGRADA DE LOS RECURSOS HÍDRICOS | AA188: =C180 -> DESARROLLO DE CAPACIDADES PARA EL MONITOREO Y SEGUIMIENTO DE LOS ECOSISTEMAS DE INTERÉS HÍDRICO Y EL SERVICIO ECOSISTÉMICO DE REGULACIÓN HÍDRICA | AB188: =C182 -> INTERCAMBIO DE EXPERIENCIAS SOBRE LA GESTIÓN INTEGRADA DEL RECURSO HÍDRICO CON ENFOQUE DE CUENCA
B190: ACTIVIDADES
B191: PLANIFICACIÓN DE ESPECIES A ADQUIRIR O PRODUCIR | C191: SIEMBRA DE ESPECIES HERBÁCEAS SELECCIONADAS | D191: TRAZO Y MARCACIÓN | E191: INSTALACIÓN DE BARRERAS VIVAS | F191: DESHIERBO | G191: TRAZO Y MARCACIÓN | H191: SELECCIÓN DE PLANTAS PARA LA FITORREMEDIACIÓN | I191: CONTROL FÍSICO DE MALEZA ACUÁTICA | J191: PLANIFICACIÓN DE ESPECIES A ADQUIRIR O PRODUCIR | K191: SIEMBRA DE ESPECIES HERBÁCEAS SELECCIONADAS | L191: TRAZO Y MARCACIÓN | M191: INSTALACIÓN DE BARRERAS VIVAS | N191: DESHIERBO | O191: TRAZO Y MARCACIÓN | P191: CONSTRUCCIÓN DE DIQUE Y ESTRUCTURA DE CAPTACIÓN | Q191: DESCOLMATACIÓN DE CANALES | R191: TRAZO, NIVELES Y REPLANTE PRELIMINAR | S191: CONSTRUCCIÓN DE DIQUES | T191: COORDINACIÓN CON ORGANIZACIONES Y COMITÉS DE LA COMUNIDAD EXISTENTE | U191: COORDINACIÓN CON ORGANIZACIONES Y COMITÉS DE LA COMUNIDAD | V191: TALLERES DE CAPACITACIÓN EN ADAPTACIÓN AL CAMBIO CLIMÁTICO | W191: CAMPAÑAS DE SENSIBILIZACIÓN | X191: REALIZACIÓN DE PASANTÍAS | Y191: TALLERES DE CAPACITACIÓN SOBRE GESTIÓN DEL ECOSISTEMA | Z191: TALLERES DE CAPACITACIÓN SOBRE CAMBIO CLIMÁTICO | AA191: TALLERES DE CAPACITACIÓN SOBRE MONITOREO Y SEGUIMIENTO | AB191: REALIZACIÓN DE PASANTÍAS
G192: REMOCIÓN DE TIERRA FÉRTIL | O192: REMOCIÓN DE TIERRA FÉRTIL | Y192: =N174 -> 0
B193: IMPLEMENTACIÓN DE VIVEROS FORESTALES | C193: LABORES CULTURALES A ESPECIES HERBÁCEAS | D193: APERTURA DE HOYOS | E193: CONSTRUCCIÓN DE DIQUES | F193: ABONAMIENTO POR FUENTES MINERALES | G193: COMPACTACIÓN DEL SUELO DE LA TERRAZA | H193: SEMBRADO DE PLANTAS ACUÁTICAS SOBRE ESTRUCTURAS FLOTANTES | J193: IMPLEMENTACIÓN DE VIVEROS FORESTALES | K193: LABORES CULTURALES A ESPECIES HERBÁCEAS | L193: APERTURA DE HOYOS | M193: CONSTRUCCIÓN DE DIQUES | N193: ABONAMIENTO POR FUENTES MINERALES | O193: COMPACTACIÓN DEL SUELO DE LA TERRAZA | P193: MEJORAMIENTO DEL CANAL AMUNADOR | Q193: RECONSTRUCCIÓN E IMPLEMENTACIÓN DE CANALES DE MAMANTEO | R193: EXCAVACIÓN DE ZANJAS DE INFILTRACIÓN | T193: TALLERES DE CAPACITACIÓN A ORGANIZACIONES Y COMITÉS DE LA COMUNIDAD EXISTENTE | U193: TALLERES DE CAPACITACIÓN A ORGANIZACIONES Y COMITÉS DE LA COMUNIDAD EXISTENTE
G194: EMPAREJAMIENTO DE LA TERRAZA | O194: EMPAREJAMIENTO DE LA TERRAZA
B195: LABORES CULTURALES EN PRODUCCIÓN DE PLANTONES | D195: TRASLADO DE PLANTADO DE POSTES | F195: ABONAMIENTO ORGÁNICO DEL ÁREA | J195: LABORES CULTURALES EN PRODUCCIÓN DE PLANTONES | L195: TRASLADO DE PLANTADO DE POSTES | N195: ABONAMIENTO ORGÁNICO DEL ÁREA | P195: INSTALACIÓN DE ÁREA DE PROTECCIÓN | Q195: INSTALACIÓN DE MEDIDAS DE PROTECCIÓN | R195: COMPACTACIÓN DEL TERRENO
B197: PLANTACIÓN PROPIAMENTE DICHA | F197: INSTALACIÓN DE VEGETACIÓN PARA ENRIQUECIMIENTO DEL SUELO | J197: PLANTACIÓN PROPIAMENTE DICHA | N197: INSTALACIÓN DE VEGETACIÓN PARA ENRIQUECIMIENTO DEL SUELO | Q197: EMPAREJAMIENTO DE LA TERRAZA
B199: LABORES CULTURALES A PLANTONES INSTALADOS | J199: LABORES CULTURALES A PLANTONES INSTALADOS | Q199: MANTENIMIENTO DE TERRAZA ANDINA
B202: UNIDAD DE MEDIDA
B203: UNIDAD | C203: HA | D203: ML | E203: HA | F203: M2 | G203: ML | H203: UNIDAD | I203: HA | J203: UNIDAD | K203: HA | L203: ML | M203: HA | N203: M2 | O203: ML | P203: UNIDAD | Q203: UNIDAD | R203: M2 | S203: UNIDAD | T203: HORAS HOMBRE | U203: HORAS HOMBRE | V203: TALLER | W203: TALLER | X203: PASANTÍA | Y203: TALLER | Z203: TALLER | AA203: TALLER | AB203: PASANTÍA
B204: M2 | C204: HORAS HOMBRE | D204: UNIDAD | E204: UNIDAD | F204: M2 | G204: HA | H204: HA | J204: M2 | K204: HORAS HOMBRE | L204: UNIDAD | M204: UNIDAD | N204: M2 | O204: HA | P204: UNIDAD | Q204: UNIDAD | R204: ML | T204: TALLER | U204: TALLER
B205: HORAS HOMBRE | D205: ML | F205: M2 | G205: HA | J205: HORAS HOMBRE | L205: ML | N205: M2 | O205: HA | P205: HA | Q205: HA | R205: HA
B206: HA | F206: HA | G206: HA | J206: HA | N206: HA | O206: HA
B207: HORAS HOMBRE | J207: HORAS HOMBRE
B209: ANÁLISIS TÉCNICO
B210: LOCALIZACIÓN
B211: TECNOLOGÍA
B212: TAMAÑO
B218: CRONOGRAMA DE EJECUCIÓN
B219: MES
B220: BIMESTRE
B221: TRIMESTRE
B222: SEMESTRE
B223: AÑO
B225: SERVICIO ECOSISTÉMICO RELACIONADO | C225: BENEFICIO SOCIAL RELACIONADO
B226: SERVICIOS ECOSISTÉMICOS DE PROVISIÓN. | C226: INCREMENTO DE DOTACIÓN DE AGUA PARA CONSUMO HUMANO
C227: INCREMENTO DE DOTACIÓN DE AGUA PARA RIEGO
C228: INCREMENTO DE DOTACIÓN DE AGUA PARA ENERGÍA
C229: INCREMENTO DE DOTACIÓN DE ALIMENTOS
C230: INCREMENTO DE BIOMASA FORRAJERA DE PASTIZAL
C231: REPOBLAMIENTO DE ESPECIES DE FLORA Y FAUNA
C232: MAYOR DISPONIBILIDAD DE AGUA SUPERFICIAL
B233: SERVICIOS ECOSISTÉMICOS DE REGULACIÓN. | C233: MAYOR RECARGA DEL SUBSUELO/ACUÍFERO
C234: COSTOS EVITADOS EN EL TRATAMIENTO DE SEDIMENTOS EN AGUA CAPTADA POR UP DE AGUA POTABLE O AGUA PARA RIEGO.
C235: INCREMENTO DE SUELOS RECUPERADOS POR EROSIÓN
C236: MENOS SEDIMENTOS EN EL AGUA
C237: PROTECCIÓN LOCALIZADA ANTE POSIBLES AVENIDAS CON ARRASTRE DE SUELOS
C238: COSTOS EVITADOS A LAS UP (ATENCIÓN DE EMERGENCIA REHABILITACIÓN RECONSTRUCCIÓN)
C239: COSTOS EVITADOS (DIRECTOS E INDIRECTOS) A LOS USUARIOS DE LAS UP POR NO DISPONER DEL SERVICIO
C240: COSTOS EVITADOS A LA POBLACIÓN (VIVIENDAS MEDIOS DE VIDA SALUD ENTRE OTROS)
B241: SERVICIOS ECOSISTÉMICOS DE SOPORTE | C241: FORMACIÓN O AMPLIACIÓN DE BOFEDALES
C242: REVERDECIMIENTO Y CRECIMIENTO DE PASTIZALES
B243: SERVICIOS ECOSISTÉMICOS CULTURALES | C243: MEJORA DEL PAISAJE
B246: MATRIZ DE MARCO LÓGICO
B247: COMPONENTES | C247: COMPONENTES
B248: MEDIOAS DE VERIFICACIÓN | C248: SUPUESTOS
B249: INFORME DEL AREA RESPONSABLE DE LA EJECUCIÓN DEL PI. INFORMES DEL ÁREA RESPONSABLE DE LA RECUPERACIÓN DEL AREA DEGRADADA. INFORMES DE INSPECCIÓN Y FOTOS | C249: NO EXISTEN MODIFICACIONES QUE VULNEREN LAS CONDICIONES ESPECIFICADAS EN LOS ESTÁNDARES TÉCNICOS DADOS POR EL SECTOR
B250: INFORMES DE EJECUCIÓN DE LOS TALLERES DE CAPACITACIÓN AL PERSONAL MUNICIPAL ENCARGADO DE LA RECUPERACIÓN | C250: LA POBLACIÓN PARTICIPA ACTIVAMENTE EN LAS ACCIONES DE SENSIBILIZACIÓN, ASISTENCIA TÉCNICA Y CAPACITACIÓN
B251: INFORMES DE EJECUCIÓN DE LOS TALLERES DE CAPACITACIÓN A LA POBLACIÓN Y A LOS RECICLADORES | C251: LAS AUTORIDADES PARTICIPAN ACTIVAMENTE EN LAS ACCIONES DE SENSIBILIZACIÓN, ASISTENCIA TÉCNICA Y CAPACITACIÓN
B252: OTRO
B256: ACCIONES
B257: MEDIOS DE VERIFICACIÓN
B258: INFORME DEL ÁREA RESPONSABLE DE LA EJECUCIÓN DEL PROYECTO. INFORMES DE LA SUPERVISIÓN Y FOTOS. LIQUIDACIÓN TÉCNICO-FINANCIERA DE LA EJECUCIÓN. ACTA DE RECEPCIÓN Y TRANSPARENCIA
B259: INFORMES DE EJECUCIÓN DE LOS TALLERES DE CAPACITACIÓN. CONTRATO DE LA CONSULTORA ENCARGADA DE LLEVAR A CABO LOS TALLERES
B260: CONTRATO DE LA CONSULTORA ENCARGADA DE LA ELABORACIÓN DEL INSTRUMENTO DE SUPERVISIÓN Y MONITOREO (PLAN DE MONITOREO AMBIENTAL
B261: OTRO
B263: RIESGO
B264: OCURRENCIA | C264: IMPACTO
B265: BAJO | C265: BAJA
B266: MODERADO | C266: MEDIA
B267: MAYOR | C267: ALTA
B269: MODALIDAD DE EJECUCIÓN
B270: ADMINISTRACIÓN DIRECTA
B271: ADMINISTRACIÓN INDIRECTA – POR CONTRATA
B272: ADMINISTRACIÓN INDIRECTA – ASOCIACIÓN PÚBLICA PRIVADO (APP)
B273: ADMINISTRACIÓN INDIRECTA – LEY 29230 (OBRAS POR IMPUESTOS)
B274: ADMINISTRACIÓN INDIRECTA – NÚCLEO EJECUTOR
B275: ADMINISTRACIÓN INDIRECTA – CONCURSO OFERTA
B277: FUENTES DE FINANCIAMIENTO
B278: RECURSOS ORDINARIOS
B279: RECURSOS DIRECTAMENTE RECAUDADOS
... 3 more rows

Sheet MENÚ

Sheet LINEAMIENTOS GENERALES

Sheet CRITERIOS DE APLICACIÓN

Sheet 1.DATOS GENERALES
B13: SECCIÓN N° 1: DATOS GENERALES DEL PROYECTO
C21: Servicios públicos con brecha identificada y priorizada | N21: SERVICIOS ECOSISTÉMICOS DE REGULACIÓN HÍDRICA
C23: Nombre del Indicador de brecha de acceso a servicios | N23: Unidad de medida
C25: % DE SUPERFICIE DE ECOSISTEMAS DEGRADADOS QUE BRINDAN SERVICIOS ECOSISTÉMICOS QUE REQUIEREN DE RECUPERACIÓN | N25: Hectáreas
C27: Nota: Se puede incluir más de un servicio público con brecha y más de un indicador
C29: Contribución del Cierre de Brecha (Valor) | G29: Valor:
C31: Nota: Se refiere a la capacidad de producción que aporta el proyecto (incremental). Su estimación proviene de la diferencia entre la oferta con proyecto (tamaño) respecto a la oferta optimizada sin proyecto (cuando corresponda).
C38: Naturaleza | N38: Objeto de intervención
C40: RECUPERACIÓN | N40: SERVICIO ECOSISTÉMICO DE REGULACIÓN HÍDRICA
C42: =CONCATENATE(C40," DE ",N40," EN LA MICROCUENCA ",T124,","," EN LA LOCALIDAD DE ",T122,","," DEL DISTRITO DE ",T120,","," DE LA PROVINCIA DE ",T118,","," DEL DEPARTAMENTO DE ",T116) -> RECUPERACIÓN DE SERVICIO ECOSISTÉMICO DE REGULACIÓN HÍDRICA EN LA MICROCUENCA , EN LA LOCALIDAD DE , DEL DISTRITO DE , DE LA PROVINCIA DE , DEL DEPARTAMENTO DE
D50: Función | O50: 17: AMBIENTE
D52: División funcional | O52: 054: DESARROLLO ESTRATÉGICO, CONSERVACIÓN Y APROVECHAMIENTO SOSTENIBLE DEL PATRIMONIO NATURAL
D54: Grupo Funcional | O54: 0120: GESTIÓN INTEGRADA Y SOSTENIBLE DE LOS ECOSISTEMAS.
D56: Sector responsable | O56: AMBIENTE
D59: ¿El proyecto pertenece a un Programa de Inversión? | O59: SI | R59: NO
D61: En caso afirmativo, indique código del Programa de Inversión
D73: UNIDAD FORMULADORA (UF DEL PROYECTO)
D75: Sector
D77: Pliego
D79: Nombre de la Uf designada por el Órgano Resolutivo
D81: Persona responsable de la UF
D83: Persona responsable de la formulación
D85: Si la Ficha Técnica ha sido desarrollada por Administración Directa (Consultoría) Indicar:
D87: Autor de la Ficha Técnica
D89: Costo de elaboración de la Ficha Técnica (S/.)
D91: Si la UF es un Gobierno Regional, Gobierno Local o Sector detallar:
D93: Nro. de convenio suscrito con el Gobierno competente
D95: UNIDAD EJECUTORA DE INVERSIONES (UEI) RECOMENDADA DEL PROYECTO
D97: Sector
D99: Pliego
D101: Nombre de la UEI designada por el Órgano Resolutivo
D103: Persona responsable de la Unidad Ejecutora de Inversiones
D105: Si la UEI es un Gobierno Regional o Sector detallar:
D107: Nro. de convenio suscrito con el Gobierno competente
C114: LOCALIZACIÓN GEOGRÁFICA DE LA UNIDAD PRODUCTORA
D116: Departamento :
D118: Provincia :
D120: Distrito:
D122: Localidad:
D124: Microcuenca
D126: Sub cuenca
D128: Cuenca
D130: Comunidad Campesina o Indígena
D132: Código de Ubigeo
D134: Coordenadas UTM-WGS84 | O134: X | R134: Y
D136: Altitud (MSNM)

Sheet 2.TERRITORIO
B15: SECCIÓN N° 2: DIAGNÓSTICO DEL TERRITORIO
B20: 2 | AF20: Humedales y lagunas altoandinas
B21: 2 | AF21: Bofedales
B29: 1 | AF29: PARAMO
B30: 1 | AF30: PAJONAL DE PUNA HUMEDA
B31: 1 | AF31: JALCA
AF32: MATORRAL DE PUNA SECA
AF34: BOSQUE RELICTO ALTOANDINO (QUENOAL Y OTROS)
AF35: BOSQUE RELICTO MONTANO DE VERTIENTE OCCIDENTAL
AF36: BOSQUE RELICTO MESOANDINO
B37: 1 | AF37: BOSQUE ESTACIONALMENTE SECO INTERANDINO (MARAÑON, MANTARO, PAMPAS Y APURIMAC)
B38: 1
AF39: MATORRAL ANDINO
AF42: USO POBLACIONAL
B43: 2.4.1. Área prioritaria legalmente reconocida | AF43: USO AGRARIO
B44: 1
B49: 2.4.2 Documento de sustento | AF49: LOS HUMEDALES RECONOCIDOS COMO DE IMPORTANCIA INTERNACIONAL O SITIOS RAMSAR
AF50: ÁREAS DE CONSERVACIÓN AMBIENTAL
AF51: ZONAS DE PROTECCIÓN Y CONSERVACIÓN ECOLÓGICA Y ZONAS DE RECUPERACIÓN IDENTIFICADAS EN LOS PROCESOS DE ZONIFICACIÓN ECOLÓGICA ECONÓMICA APROBADOS POR EL MINAM
AF52: ZONAS PRIORIZADAS POR LOS SISTEMAS REGIONALES DE CONSERVACIÓN
AF53: ÁREA NATURAL PROTEGIDA DE ADMINISTRACIÓN NACIONAL O ÁREAS DE CONSERVACIÓN REGIONAL INCLUYENDO SUS ZONAS DE AMORTIGUAMIENTO
AF54: ZONAS MARINO COSTERAS, EN EL MARCO DE LA RESOLUCIÓN MINISTERIAL N° 189-2015 MINAM
AF55: ZONAS IDENTIFICADAS COMO FAJAS MARGINALES
AF56: ECOSISTEMAS DEGRADADOS QUE NO ESTÉN EN LOS ANTERIORES GRUPOS Y QUE DEMUESTREN SU RELEVANCIA ECONÓMICA, SOCIAL, CULTURAL O SI SON ÚNICOS EN EL PAÍS
B57: 2.5.1 Identificación del territorio
B59: 2.5.1.1. Área de influencia del ecosistema principal
B61: N° | C61: Departamento | H61: Provincia | M61: Distrito | Q61: Localidad/Centro Poblado
B65: 2.5.1.2. Área de influencia del ecosistema asociado
B67: N° | C67: Departamento | H67: Provincia | M67: Distrito | Q67: Localidad/Centro Poblado
B71: 2.5.1.3. Coordenadas del área de estudio
B73: Descripción | S73: Coordenada X | X73: Coordenada Y
B74: COORDENADAS DEL PUNTO DE CAPTACIÓN (UTM, WGS84)
B75: COORDENADAS DE LA CUENCA DE APORTE (UTM, WGS84)
B76: COORDENADAS DE LOS ECOSISTEMAS DE INTERÉS HÍDRICO: PRINCIPAL (UTM, WGS84)
B77: COORDENADAS DE LOS ECOSISTEMAS DE INTERÉS HÍDRICO:ASOCIADO (UTM, WGS84)
B79: Descripción | S79: m2
B80: PUNTO DE CAPTACIÓN
B81: CUENCA DE APORTE
B82: ECOSISTEMAS DE INTERÉS HÍDRICO: PRINCIPAL
B83: ECOSISTEMAS DE INTERÉS HÍDRICO:ASOCIADO
B85: 2.5.1.4. Mapa de la cuenca bajo estudio
B87: ADJUNTAR EN LOS ANEXOS EL MAPA DE LA CUENCA BAJO ESTUDIO
B89: 2.5.1.5. Mapa del área de estudio
B91: ADJUNTAR EN LOS ANEXOS EL MAPA DEL ÁREA DE ESTUDIO

Sheet 3.POBLACIÓN AFECTADA
B16: SECCIÓN N° 3: DIAGNÓSTICO DE LA POBLACIÓN AFECTADA
B19: 3.1.1 ¿La población accede al servicio*? | M19: SI | P19: NO
B20: * Por servicio se refiere al servicio ecosistémico de regulación hídrica, cuyo indicador es el caudal en época de estiaje | M20: (Pase a la pregunta 3.1.3) | Q20: (Pase a la pregunta 3.1.2)
B22: 3.1.2 ¿Qué suministro u oferta alternativa suple esta carencia?
B24: 3.1.3 ¿Está satisfecho con el servicio que recibe?* | M24: SI | P24: NO | R24: (Pase a la pregunta 3.1.4)
B26: 3.1.4 ¿Cuáles son las razones que explican dicha situación?
B27: Por ejemplo: La población ha estado recibiendo menos recurso hídrico en epoca seca en su punto de captación debido a la degradación de los ecosistemas que son fuentes de agua
B28: 3.1.5 ¿Se encuentra expuesta a condiciones de riesgo?
B30: 3.1.6 Características socioeconómicas, demográficas, sociales, culturales, entre otros, que son relevantes para el análisis
B32: 3.1.6.1. Características socioeconómicas
B33: 3.1.6.1.1. Actividades económicas en las que se ocupa la población afectada
B35: 3.1.6.1.2. Niveles de ingreso
B36: 3.1.6.2. Características demográficas
B37: 3.1.6.2.1. Cantidad de hombres y mujeres
B39: 3.1.6.2.2. Tendencia de crecimiento a futuro
B41: 3.1.6.3. Características sociales y culturales
B43: 3.1.6.3.1. Costumbres relacionadas con el uso del servicio
B45: 3.1.6.3.2. Organizaciones culturales
B47: 3.1.6.3.3. Idioma

Sheet 4.UNIDAD PRODUCTORA
B21: SECCIÓN N° 4: DIAGNÓSTICO DE LA UNIDAD PRODUCTORA
B25: 4.1.1. Descripción de la situación actual de los factores de producción del servicio ecosistémico de regulación hídrica
B27: FACTOR DE PRODUCCIÓN DEL SERVICIO ECOSISTÉMICO DE REGULACIÓN HÍDRICA | H27: VARIABLES TÉCNICAS | K27: INFORMES TÉCNICOS, REPORTES QUE SUSTENTEN EL ESTADO DEL ECOSISTEMA DE INTERÉS HÍDRICO | R27: IMPACTOS IDENTIFICADOS EN LAS VARIABLES TÉCNICAS | T27: DOCUMENTOS DE SUSTENTO
B28: INFRAESTRUCTURA NATURAL - ECOSISTEMA | H28: AGUA | K28: INFORME TÉCNICO SOBRE LA CANTIDAD (CAUDAL EN EPOCA DE ESTIAJE) Y CALIDAD DEL AGUA, ELABORADO POR EXPERTO TEMÁTICO | R28: FALSE | T28: =IF(R28=TRUE,"RESULTADO DE ANÁLISIS DE LABORATORIO E INFORME TÉCNICO ELABORADO POR ESPECIALISTA TEMÁTICO","") -> 
H29: SUELOS | K29: INFORME TÉCNICO SOBRE CARACTERÍSTICAS RELACIONADAS A LA INFILTRACIÓN DE SUELOS, ELABORADO POR EXPERTO TEMÁTICO | R29: FALSE | T29: =IF(R29=TRUE,"INFORME TÉCNICO DE SUELO, ELABORADO POR ESPECIALISTA TEMÁTICO","") -> 
H30: CARACTERÍSTICAS DEL CLIMA ACTUAL Y TENDENCIAS. IDENTIFICACIÓN DE PELIGROS ASOCIADOS AL CAMBIO CLIMÁTICO | K30: ESTUDIO DEL CLIMA ACTUAL Y TENDENCIAS. IDENTIFICACIÓN DE PELIGROS ASOCIADOS AL CAMBIO CLIMÁTICO | R30: FALSE | T30: =IF(R30=TRUE,"INFORME DE CLIMA ACTUAL Y FUTURO. INFORME DE PELIGROS EN UN CONTEXTO DE CAMBIO CLIMÁTICO","") -> 
H31: COBERTURA | K31: INFORME TÉCNICO DEL PARÁMETRO COBERTURA VEGETAL E INTRODUCCIÓN DE ESPECIES EXÓTICAS. | R31: FALSE | T31: =IF(R31=TRUE,"LISTADO DE ESPECIES DEL ECOSISTEMA","") -> 
R32: FALSE | T32: =IF(R32=TRUE,"LISTADO DE ESPECIES EXÓTICAS ENCONTRADAS","") -> 
B33: INTANGIBLE-CAPACIDAD HUMANA: MANEJO DE LOS ECOSISTEMAS DE INTERÉS HÍDRICO | H33: PRÁCTICAS DE CONSERVACIÓN DEL AGUA | K33: FICHAS DE DIAGNÓSTICO DE PRÁCTICAS DE CONSERVACION DEL AGUA | R33: FALSE | T33: =IF(R33=TRUE,"FICHA DE DIAGNÓSTICO DE PRÁCTICAS DE CONSERVACIÓN DE AGUA","") -> 
H34: PRÁCTICAS DE CONSERVACIÓN Y MANEJO DE ECOSISTEMAS DE INTERÉS HÍDRICO | K34: FICHAS DE DIAGNÓSTICO DE PRÁCTICAS DE CONSERVACIÓN Y MANEJO DE ECOSISTEMAS DE INTERÉS HÍDRICO | R34: FALSE | T34: =IF(R34=TRUE,"FICHA DE DIAGNÓSTICO DE PRÁCTICAS DE CONSERVACIÓN Y MANEJO DE ECOSISTEMAS DE INTERES HÍDRICO","") -> 
B35: INTANGIBLE-CAPACIDAD ORGANIZACIONAL: GESTIÓN INTEGRADA DEL SERVICIO ECOSISTÉMICO ANDINO RURAL | H35: CAPACIDADES PARA LA GESTIÓN DEL ECOSISTEMA DE INTERÉS HÍDRICO | K35: INFORME DEL ÁREA DE RECURSOS HUMANOS DE LA INSTITUCIÓN ENCARGADA DE LA GESTIÓN DEL ECOSISTEMA DE INTERÉS HÍDRICO | R35: FALSE | T35: =IF(R35=TRUE,"RELACIÓN DE TRABAJADORES CAPACITADOS","") -> 
H36: SENSIBILIZACIÓN AMBIENTAL | K36: INFORME DE RESULTADO DE ENCUESTAS | R36: FALSE | T36: =IF(R36=TRUE,"ENCUESTA","") -> 
H37: INFORMACIÓN AMBIENTAL | K37: INFORME DEL ÁREA TÉCNICA DANDO CUENTA DE LOS ESTUDIOS DISPONIBLES Y APLICADOS | R37: FALSE | T37: =IF(R37=TRUE,"LISTADO DE ESTUDIOS","") -> 
H38: SEGUIMIENTO Y MONITOREO AMBIENTAL | K38: REPORTE DE ACCIONES DE SEGUIMIENTO Y MONITOREO | R38: FALSE | T38: =IF(R38=TRUE,"REPORTE DE ACCIONES DE SEGUIMIENTO Y MONITOREO","") -> 
H39: ORGANIZACIÓN COMUNAL AMBIENTAL | K39: REPORTE DE INSTRUMENTOS DE GESTIÓN EXISTENTES | R39: FALSE | T39: =IF(R39=TRUE,"LISTADO DE INSTRUMENTOS DE GESTIÓN EXISTENTES","") -> 
B43: 4.1.2. Accesibilidad al bien
B45: TRAMOS | G45: TIPO DE VÍA | I45: DISTANCIA (EN KM) | L45: TIEMPO DE RECORRIDO (EN MINUTOS) | O45: ESTADO DE CONSERVACIÓN DEL TRAMO | R45: TIPO DE TRASLADO | AG45: AFIRMADO | AH45: BUENO | AI45: A PIE
AG46: ASFALTADO | AH46: REGULAR | AI46: ASEMILA
AG47: CAMINOS DE HERRADURA | AH47: MALO | AI47: AUTO
AG48: CARRETERA | AI48: BUS INTERPROVINCIAL
AG49: SIN VIA | AI49: CAMION
B50: CONDICIÓN FINAL DE LA ACCESIBILIDAD AL ECOSISTEMA: | AG50: TROCHA CARROZABLE | AI50: CAMIONETA
B51: BUENA | AI51: VEHICULO MENOR
B52: REGULAR
B53: MALA
B55: 4.1.3. Indicadores de la situación actual
B57: Ejes de análisis | G57: Indicadores | O57: Valor Actual
B58: SERVICIO ECOSISTÉMICO DE REGULACIÓN HÍDRICA | G58: SUPERFICIE DE ECOSISTEMAS DEGRADADOS QUE BRINDAN SERVICIOS ECOSISTÉMICOS DE REGULACIÓN HÍDRICA QUE REQUIEREN DE RECUPERACIÓN(*)
B59: GESTIÓN DEL SISTEMA ANDINO RURAL | G59: LIMITADA GESTIÓN EN LOS ECOSISTEMAS DE INTERÉS HÍDRICO | O59: 1 | AG59: SI
G60: INADECUADAS PRÁCTICAS DE MANEJO DE LOS ECOSISTEMAS DE INTERÉS HÍDRICO | O60: 1 | AG60: NO
B61: (*) Este indicador se utiliza por ser la variable que cierra la brecha del PMI. Cabe señalar que el indicador para la estimación de la disminución del servicio ecosistémico de regulación hídrica es el caudal en época de estiaje en el punto de captación (m3/año), para ello se utiliza el metodo RAS en situación Sin Proyecto (S/P) - pestaña "Comunicación Técnica", o recopilacion de información de aforadores o data histórica de volumen de agua capturado de los usuarios (poblacionall, agrícola) u otro metodologia. Cabe señalar que se puede utilizar el método elegido para elaborar el Expediente técnico.
B63: 4.1.4. Estimar la exposición de la UP frente a los peligros identificados en el diagnóstico del área de estudio
B65: Peligros | G65: Exposición de ecosistemas
G66: Ecosistema en zonas planas o con pendientes moderadas. | R66: Ecosistema en zonas de ladera
G67: Páramo | H67: Pajonal de Puna Húmeda | I67: Jalca | J67: Matorral de puna seca | K67: Bosque relicto altoandino | L67: Bosque relicto montano de vertiente occidental | M67: Bosque relicto mesoandino | N67: Bosque estacionalmente seco interandino | O67: Matorral andino | P67: Bofedal | Q67: Lagunas | R67: Páramo | S67: Pajonal de Puna Húmeda | T67: Jalca | U67: Matorral de puna seca | V67: Bosque relicto altoandino | W67: Bosque relicto montano de vertiente occidental | X67: Bosque relicto mesoandino | Y67: Bosque estacionalmente seco interandino | Z67: Matorral andino
B68: Variaciones de la temperatura
B69: Variaciones del ciclo de lluvias
B70: Mayor intensidad de las lluvias
B71: Contaminación natural del agua
B72: Incremento de la erosión de suelos
B73: Mayor ocurrencia y/o intensidad de heladas
B74: Mayor ocurrencia y/o intensidad de sequias
B75: …
B76: A continuación se muestra el porcentaje de las pendientes, según su tamaño:
B78: Pendiente corta | H78: Pendiente larga
B80: · Plano a ligeramente inclinado: 0 – 4% | H80: · Plano a casi nivel: 0 – 2%
B81: · Moderadamente inclinada: 4% - 8% | H81: · Ligeramente inclinado: 2% - 4%
B82: · Fuertemente inclinada: 8% - 15% | H82: · Moderadamente inclinado: 4% - 8%
B83: · Moderadamente empinada : 15% - 25% | H83: · Fuertemente inclinado: 8% - 15%
B84: · Empinada: 25% - 50% | H84: · Moderadamente empinado: 15% - 25%
B85: · Muy empinada: 50% - 75% | H85: · Empinado: 25% - 50%
B86: · Extremadamente empinada: > 75% | H86: · Muy empinado: 50% - 75%
H87: · Extremadamente empinado: >75%
B89: 4.1.5. Describir la resiliencia
B91: Factor de Resiliencia* | D91: Variable | J91: Grado de resiliencia
J92: Bajo | K92: Medio | L92: Alto | M92: Muy alto
B93: Resiliencia | D93: Capacidades técnicas y operativas
D94: Capacidad de gestión
D95: Capacidades financieras
D96: Capacidades de los usuarios (ingresos, conocimiento de prácticas adecuadas ante daños y riesgos potenciales frente a una eventual interrupción de la provisión del servicio o una gradual disminución de la oferta, capacidades organizativas)
B97: *El llenado del cuadro es para cada UP o para cada uno de sus activos (en caso presenten distinta localización)
AF129: FALSE

Sheet 5.OTROS AGENTES INVOLUCRADOS
B16: SECCIÓN N° 5: DIAGNÓSTICO DE OTROS AGENTES INVOLUCRADOS
B18: Agente Involucrado | G18: Número | H18: Ámbito del participante | K18: Posición (Cooperante, Oponente) | Q18: Situación negativa bajo análisis | T18: Expectativas o intereses | W18: Compromiso/Acuerdos | Z18: Percepción
H19: 0 | K19: 0
H20: 0 | K20: 0
H21: 0 | K21: 0
H22: 0 | K22: 0
H23: 0 | K23: 0
H24: 0 | K24: 0
H25: 0 | K25: 0
H26: 0 | K26: 0
H27: 0 | K27: 0

Sheet 6.PROBLEMA-OBJETIVO
B22: SECCIÓN N° 6: PROBLEMA/OBJETIVO
B26: Descripción del problema central
B28: =CONCATENATE("DISMINUCIÓN DEL ",F31," EN LA ",I30," DE ",I31) -> DISMINUCIÓN DEL SERVICIO ECOSISTÉMICO DE REGULACIÓN HÍDRICA EN LA MICROCUENCA DE 0
B30: NATURALEZA | F30: OBJETO | I30: MICROCUENCA
B31: DEGRADACIÓN | F31: ='1.DATOS GENERALES'!N40 -> SERVICIO ECOSISTÉMICO DE REGULACIÓN HÍDRICA | I31: ='1.DATOS GENERALES'!T124 -> 0
B34: Causas Directas (CD) | F34: Causas indirectas (CI)
B35: DISMINUCIÓN DE CAPACIDAD DE ALMACENAMIENTO DEL AGUA EN EL ECOSISTEMA PRINCIPAL | F35: ALTERACIÓN DE LA COBERTURA VEGETAL NATIVA
F36: ALTERACIÓN DE LAS CARACTERÍSTICAS DE LA TURBA
F37: CAMBIO EN EL RÉGIMEN DE PRECIPITACIONES Y TEMPERATURAS
B38: DISMINUCIÓN DE LA CAPACIDAD DE INFILTRACIÓN DEL AGUA EN EL ECOSISTEMA ASOCIADO | F38: DISMINUCIÓN DE LA COBERTURA VEGETAL NATIVA
F39: ALTERACIÓN DE LAS CARACTERÍSTICAS DEL SUELO
F40: CAMBIO EN EL RÉGIMEN DE PRECIPITACIONES Y TEMPERATURAS
B41: INADECUADA GESTIÓN DEL SERVICIO ECOSISTÉMICO DE REGULACIÓN HÍDRICA | F41: INADECUADO MANEJO DE LOS ECOSISTEMAS DE INTERÉS HÍDRICO
F42: INADECUADA CAPACIDAD DE GESTIÓN DE LOS ECOSISTEMAS DE INTERÉS HÍDRICO
B45: Efectos Directos (ED) | F45: Efectos Indirectos (EI)
B46: MENOR DISPONIBILIDAD DEL SERVICIO ECOSISTÉMICOS DE PROVISIÓN DEL RECURSO HÍDRICO | F46: DISMINUCIÓN DE LA OFERTA DEL AGUA POTABLE PARA USO POBLACIONAL
F47: DISMINUCIÓN DE LA OFERTA DEL AGUA PARA USO AGROPECUARIO
F48: DISMINUCIÓN DE LA OFERTA DEL AGUA PARA USO ENERGÉTICO
B49: INCREMENTO EN EL DETERIORO DE LOS ECOSISTEMAS | F49: DISMINUCIÓN DEL SERVICIO ECOSISTÉMICO DE PROVISIÓN DE LOS RECURSOS GENÉTICOS
F50: DISMINUCIÓN DEL SERVICIO ECOSISTÉMICO DE PROVISIÓN DE COMBUSTIBLE
F51: DISMINUCIÓN DEL SERVICIO ECOSISTÉMICO DE PROVISIÓN DE FORRAJE
F52: DISMINUCIÓN DEL SERVICIO ECOSISTÉMICO DE PROVISIÓN DE MEDICINAS NATURALES
F53: DISMINUCIÓN DEL SERVICIO ECOSISTÉMICO DE PROVISIÓN DE PRODUCTOS BIOQUÍMICOS
B59: Efecto Final
B61: DISMINUCIÓN DEL APROVECHAMIENTO SOSTENIBLE DEL CAPITAL NATURAL
B67: Descripción del objetivo central
B69: =CONCATENATE(B96," DEL ",F96," DE LA ",I95," DE ", I96) -> RECUPERACIÓN DEL SERVICIO ECOSISTÉMICO DE REGULACIÓN HÍDRICA DE LA MICROCUENCA DE 0
B71: Indicadores del Objetivo
B73: PRINCIPALES INDICADORES DE OBJETIVO | G73: UNIDAD DE MEDIDA
B74: ECOSISTEMA ANDINO DE INTERÉS HÍDRICO PRINCIPAL RECUPERADO* | G74: HECTÁREAS RECUPERADAS
B75: IMPLEMENTACIÓN DE ADECUADA GESTION EN EL ECOSISTEMA DEGRADADO | G75: ÁREA ORGÁNICA IMPLEMENTADA
B76: ADECUADAS PRÁCTICAS DE MANEJO DEL ECOSISTEMA | G76: N° DE POBLADORES CAPACITADOS
B77: (*) Este indicador se utiliza por ser la variable para cerrar la brecha del PMI. El objetivo del proyecto es la recuperación de la regulación hídrica, es decir, medir el incremento del caudal en época de estiaje en el punto de toma (m3/año). Para ello se utiliza el método RAS en la situación Con Proyecto (C/P) u otro metodologia. Dicho indicador se tiene que reflejar en el marco lógico. El indicador de caudal en época de estiaje es importante para el seguimiento y monitoreo en la fase de funcionamiento de los proyectos. La estimación de este indicador permitirá mejorar los modelos utilizados con información resultado del seguimiento y monitoreo de la fase de la ejecución del proyecto, logrando de esta manera determinar métodos de regulacion hidrica más eficientes.
B95: NATURALEZA | F95: OBJETO | I95: MICROCUENCA
B96: RECUPERACIÓN | F96: ='1.DATOS GENERALES'!N40 -> SERVICIO ECOSISTÉMICO DE REGULACIÓN HÍDRICA | I96: ='1.DATOS GENERALES'!T124 -> 0
B101: N° | C101: Medios fundamentales (MF) | G101: Acciones (*)
B102: 1 | C102: RECUPERACIÓN DE LA COBERTURA VEGETAL NATIVA DEL ECOSISTEMA PRINCIPAL | G102: REVEGETACIÓN CON ESPECIES NATIVAS
G103: INSTALACIÓN DE CERCOS EXCLUIDORES
G104: OTRO:
B105: 2 | C105: RECUPERACIÓN DE LAS CARACTERÍSTICAS DE LA TURBA DEL ECOSISTEMA PRINCIPAL | G105: REVEGETACIÓN CON ESPECIES NATIVAS
G106: OTRO:
B107: 3 | C107: RECUPERACIÓN DE LA COBERTURA VEGETAL DE LOS ECOSISTEMAS ASOCIADOS | G107: REFORESTACIÓN CON ESPECIES NATIVAS
G108: REVEGETACIÓN CON ESPECIES NATIVAS
G109: INSTALACIÓN DE CERCOS EXCLUIDORES
G110: OTRO:
B111: 4 | C111: RECUPERACIÓN DE LAS CARACTERÍSTICAS DEL SUELO DEL ECOSISTEMA ASOCIADO | G111: ENRIQUECIMIENTO DE SUELOS
G112: OTRO:
B113: 5 | C113: ADAPTACIÓN A LOS REGÍMENES DE PRECIPITACIÓN Y TEMPERATURAS | G113: REPARACIÓN DEL CANAL AMUNADOR
G114: REPARACIÓN DEL CANAL DE MAMANTEO
G115: CONSTRUCCIÓN DE ZANJAS DE INFILTRACIÓN
G116: INSTALACIÓN DE QOCHAS
G117: CONSTRUCCIÓN DE TERRAZAS DE FORMACIÓN DE SUELOS
G118: OTRO:
B119: 6 | C119: ADECUADAS PRÁCTICAS DEL MANEJO DEL ECOSISTEMA | G119: CAPACITACIÓN EN GESTIÓN INTEGRADA DE RECURSOS HÍDRICOS CON ENFOQUE DE CUENCA
G120: ASISTENCIA TÉCNICA EN EL MANEJO DE ECOSISTEMAS DE INTERÉS HIDRICO
G121: CAPACITACIÓN EN BUENAS PRÁCTICAS PARA LA ADAPTACIÓN AL CAMBIO CLIMÁTICO Y GESTIÓN DE RIESGOS
G122: SENSIBILIZACIÓN RELACIONADA A LA RECUPERACIÓN DEL SERVICIO ECOSISTÉMICO DE REGULACIÓN HÍDRICA
G123: INTERCAMBIO DE EXPERIENCIAS RELACIONADAS A LA RECUPERACIÓN DEL SERVICIO ECOSISTÉMICO DE REGULACIÓN HÍDRICA
G124: OTRO:
B125: 7 | C125: ADECUADAS CAPACIDADES DE LAS ENTIDADES A CARGO DE LA GESTIÓN DEL ECOSISTEMA | G125: CAPACITACIÓN A FUNCIONARIOS PÚBLICOS SOBRE LA GESTIÓN INTEGRADA DEL RECURSO HÍDRICO CON ENFOQUE DE CUENCA
G126: CAPACITACIÓN A FUNCIONARIOS PÚBLICOS SOBRE LAS MEDIDAS DE ADAPTACIÓN EN UN CONTEXTO DE CAMBIO CLIMÁTICO EN LA GESTIÓN INTEGRADA DE LOS RECURSOS HÍDRICOS
G127: DESARROLLO DE CAPACIDADES PARA EL MONITOREO Y SEGUIMIENTO DE LOS ECOSISTEMAS DE INTERÉS HÍDRICO Y EL SERVICIO ECOSISTÉMICO DE REGULACIÓN HÍDRICA
G128: INTERCAMBIO DE EXPERIENCIA SOBRE LA GESTIÓN INTEGRADA DEL RECURSO HÍDRICO CON ENFOQUE DE CUENCA
G129: OTRO:
B130: (*) La naturaleza de las acciones asociadas a los medios fundamentales del N° 1 al N° 5 corresponden a "Adecuación" debido a que el factor de producción es "Infraestructura Natural", mientras que las acciones asociadas a los medios fundamentales N° 6 y N° 7 tienen como naturaleza "Implementación" debido a que el factor de producción es "Intangible". Estas consideraciones han sido desarrolladas en base a la Tabla 2.22 de la "Guía General para la Identificación, Formulación y Evaluación de Proyectos de Inversión" del Invierte.pe.

Sheet 7.HORIZONTE DE EVALUACIÓN
B19: SECCIÓN N° 7: HORIZONTE DE EVALUACIÓN
B35: 7.1. Horizonte de evaluación
B38: Periodo en meses de la ejecución del proyecto | I38: meses
B41: Periodo en años del funcionamiento del proyecto | I41: años

Sheet 8.ANALISIS TÉCNICO
B16: SECCIÓN N° 8: ANÁLISIS TÉCNICO
B18: Este análisis sustenta la elección de una alternativa técnica de tamaño, localización y tecnología, en mérito a las características particulares de cada tipología de proyecto de inversión.
B20: 8.1. ANÁLISIS DE TAMAÑO
B23: Solo en los casos que sea posible analizar el tamaño, se debe describir ello la siguiente tabla:
B25: N° | C25: Componente | D25: Acciones (*) | H25: Tamaño | J25: Unidad
B26: 1 | C26: RECUPERACIÓN DE LA COBERTURA VEGETAL NATIVA DEL ECOSISTEMA PRINCIPAL | D26: REVEGETACIÓN CON ESPECIES NATIVAS | J26: =IF(D26="","",'COSTOS UNITARIOS'!R12) -> HA
D27: INSTALACIÓN DE CERCOS EXCLUIDORES | J27: =IF(D27="","",'COSTOS UNITARIOS'!R15) -> ML
D28: OTRO: | J28: =IF(D28="","",'COSTOS UNITARIOS'!R19) -> 0
B29: 2 | C29: RECUPERACIÓN DE LAS CARACTERÍSTICAS DE LA TURBA DEL ECOSISTEMA PRINCIPAL | D29: REVEGETACIÓN CON ESPECIES NATIVAS | J29: =IF(D29="","",'COSTOS UNITARIOS'!R22) -> HA
D30: OTRO: | J30: =IF(D30="","",'COSTOS UNITARIOS'!R25) -> 0
B31: 3 | C31: RECUPERACIÓN DE LA COBERTURA VEGETAL DE LOS ECOSISTEMAS ASOCIADOS | D31: REFORESTACIÓN CON ESPECIES NATIVAS | J31: =IF(D31="","",'COSTOS UNITARIOS'!R28) -> HA
D32: REVEGETACIÓN CON ESPECIES NATIVAS | J32: =IF(D32="","",'COSTOS UNITARIOS'!R34) -> HA
D33: INSTALACIÓN DE CERCOS EXCLUIDORES | J33: =IF(D33="","",'COSTOS UNITARIOS'!R37) -> ML
D34: OTRO: | J34: =IF(D34="","",'COSTOS UNITARIOS'!R41) -> 0
B35: 4 | C35: RECUPERACIÓN DE LAS CARACTERÍSTICAS DEL SUELO DEL ECOSISTEMA ASOCIADO | D35: ENRIQUECIMIENTO DE SUELOS | J35: =IF(D35="","",'COSTOS UNITARIOS'!R44) -> HA
D36: OTRO: | J36: =IF(D36="","",'COSTOS UNITARIOS'!R49) -> 0
B37: 5 | C37: ADAPTACIÓN A LOS REGÍMENES DE PRECIPITACIÓN Y TEMPERATURAS | D37: REPARACIÓN DEL CANAL AMUNADOR | J37: =IF(D37="","",'COSTOS UNITARIOS'!R52) -> HA
D38: REPARACIÓN DEL CANAL DE MAMANTEO | J38: =IF(D38="","",'COSTOS UNITARIOS'!R56) -> ML
D39: CONSTRUCCIÓN DE ZANJAS DE INFILTRACIÓN | J39: =IF(D39="","",'COSTOS UNITARIOS'!R60) -> ML
D40: INSTALACIÓN DE QOCHAS | J40: =IF(D40="","",'COSTOS UNITARIOS'!R64) -> UNIDAD
D41: CONSTRUCCIÓN DE TERRAZAS DE FORMACIÓN DE SUELOS | J41: =IF(D41="","",'COSTOS UNITARIOS'!R66) -> HA
D42: OTRO: | J42: =IF(D42="","",'COSTOS UNITARIOS'!R71) -> 0
B43: 6 | C43: ADECUADAS PRÁCTICAS DE MANEJO DEL ECOSISTEMA | D43: CAPACITACIÓN EN GESTIÓN INTEGRADA DE RECURSOS HÍDRICOS CON ENFOQUE DE CUENCA | J43: =IF(D43="","",'COSTOS UNITARIOS'!R74) -> EVENTO
D44: ASISTENCIA TÉCNICA EN EL MANEJO DE ECOSISTEMAS DE INTERÉS HÍDRICO | J44: =IF(D44="","",'COSTOS UNITARIOS'!R77) -> EVENTO
D45: CAPACITACIÓN EN BUENAS PRÁCTICAS PARA LA ADAPTACIÓN AL CAMBIO CLIMÁTICO Y GESTIÓN DE RIESGOS | J45: =IF(D45="","",'COSTOS UNITARIOS'!R80) -> TALLER
D46: SENSIBILIZACIÓN RELACIONADA A LA RECUPERACIÓN DEL SERVICIO ECOSISTÉMICO DE REGULACIÓN HÍDRICA | J46: =IF(D46="","",'COSTOS UNITARIOS'!R82) -> TALLER
D47: INTERCAMBIO DE EXPERIENCIAS RELACIONADAS A LA RECUPERACIÓN DEL SERVICIO ECOSISTÉMICO DE REGULACIÓN HÍDRICA | J47: =IF(D47="","",'COSTOS UNITARIOS'!R84) -> EVENTO
D48: OTRO: | J48: =IF(D48="","",'COSTOS UNITARIOS'!R86) -> 0
B49: 7 | C49: ADECUADAS CAPACIDADES DE LAS ENTIDADES A CARGO DE LA GESTIÓN DEL ECOSISTEMA | D49: CAPACITACIÓN A FUNCIONARIOS PÚBLICOS SOBRE LA GESTIÓN INTEGRADA DEL RECURSO HÍDRICO CON ENFOQUE DE CUENCA | J49: =IF(D49="","",'COSTOS UNITARIOS'!R89) -> TALLER
D50: CAPACITACIÓN A FUNCIONARIOS PÚBLICOS SOBRE LAS MEDIDAS DE ADAPTACIÓN EN UN CONTEXTO DE CAMBIO CLIMÁTICO EN LA GESTIÓN INTEGRADA DE LOS RECURSOS HÍDRICOS | J50: =IF(D50="","",'COSTOS UNITARIOS'!R91) -> TALLER
D51: DESARROLLO DE CAPACIDADES PARA EL MONITOREO Y SEGUIMIENTO DE LOS ECOSISTEMAS DE INTERÉS HÍDRICO Y EL SERVICIO ECOSISTÉMICO DE REGULACIÓN HÍDRICA | J51: =IF(D51="","",'COSTOS UNITARIOS'!R93) -> TALLER
D52: INTERCAMBIO DE EXPERIENCIAS SOBRE LA GESTIÓN INTEGRADA DEL RECURSO HÍDRICO CON ENFOQUE DE CUENCA | J52: =IF(D52="","",'COSTOS UNITARIOS'!R95) -> EVENTO
D53: OTRO: | J53: =IF(D53="","",'COSTOS UNITARIOS'!R97) -> 0
B54: (*) La naturaleza de las acciones asociadas a los componentes del N° 1 al N° 5 corresponden a "Adecuación" debido a que el factor de producción es "Infraestructura Natural", mientras que las acciones asociadas a los componentes N° 6 y N° 7 tienen como naturaleza "Implementación" debido a que el factor de producción es "Intangible". Estas consideraciones han sido desarrolladas en base a la Tabla 2.22 de la "Guía General para la Identificación, Formulación y Evaluación de Proyectos de Inversión" del Invierte.pe.
B55: Nota: Como parte de las acciones necesarias para lograr las "Adecuadas capacidades de las entidades a cargo de la gestión del ecosistema" se tiene que considerar la "Instalación del sistema de seguimiento y monitoreo del servicio ecosistémico de regulación hídrica", la cual comprende como mínimo la construcción de un vertedero en la salida de la cuenca y la instalación de un sensor de nivel de agua. Tomar como referencia lo indicado en la pestaña "Comunicación técnica".
B57: 8.2. ANÁLISIS DE LOCALIZACIÓN
B61: 8.2.1. Mapa de Identificación de intervenciones
B63: ADJUNTAR EN LOS ANEXOS EL MAPA DEL ÁREA DE INTERVENCIONES
B67: 8.3. ANÁLISIS DE TECNOLOGÍA
B70: N° | C70: Componentes | D70: Acciones | H70: Tipo de Factor productivo | K70: Activo estratégicos esenciales | M70: Detalle
B73: 1 | C73: RECUPERACIÓN DE LA COBERTURA VEGETAL NATIVA DEL ECOSISTEMA PRINCIPAL | D73: REVEGETACIÓN CON ESPECIES NATIVAS | H73: Infraestructura Natural | K73: Superficie revegetada | M73: =IF($D$73="","",CONCATENATE(datos!K191,", ",datos!K193)) -> SIEMBRA DE ESPECIES HERBÁCEAS SELECCIONADAS, LABORES CULTURALES A ESPECIES HERBÁCEAS
D74: INSTALACIÓN DE CERCOS EXCLUIDORES | H74: Infraestructura | K74: Excluidores con materiales naturales | M74: =IF($D$74="","",CONCATENATE(datos!D191,", ",datos!D193,", ",datos!D195)) -> TRAZO Y MARCACIÓN, APERTURA DE HOYOS, TRASLADO DE PLANTADO DE POSTES
D75: OTRO:
B76: 2 | C76: RECUPERACIÓN DE LAS CARACTERÍSTICAS DE LA TURBA DEL ECOSISTEMA PRINCIPAL | D76: REVEGETACIÓN CON ESPECIES NATIVAS | H76: Infraestructura Natural | K76: Superficie revegetada | M76: =IF($D$76="","",CONCATENATE(datos!K191,", ",datos!K193)) -> SIEMBRA DE ESPECIES HERBÁCEAS SELECCIONADAS, LABORES CULTURALES A ESPECIES HERBÁCEAS
D77: OTRO:
B78: 3 | C78: RECUPERACIÓN DE LA COBERTURA VEGETAL DE LOS ECOSISTEMAS ASOCIADOS | D78: REFORESTACIÓN CON ESPECIES NATIVAS | H78: Infraestructura Natural | K78: Superficie reforestada | M78: =IF($D$78="","",CONCATENATE(datos!J191,", ",datos!J193,", ",datos!J195,",",datos!J197,",",datos!J199)) -> PLANIFICACIÓN DE ESPECIES A ADQUIRIR O PRODUCIR, IMPLEMENTACIÓN DE VIVEROS FORESTALES, LABORES CULTURALES EN PRODUCCIÓN DE PLANTONES,PLANTACIÓN PROPIAMENTE DICHA,LABORES CULTURALES A PLANTONES INSTALADOS
D79: REVEGETACIÓN CON ESPECIES NATIVAS | H79: Infraestructura Natural | K79: Superficie revegetada | M79: =IF($D$79="","",CONCATENATE(datos!K191,", ",datos!K193)) -> SIEMBRA DE ESPECIES HERBÁCEAS SELECCIONADAS, LABORES CULTURALES A ESPECIES HERBÁCEAS
D80: INSTALACIÓN DE CERCOS EXCLUIDORES | H80: Infraestructura | K80: Excluidores con materiales naturales | M80: =IF($D$80="","",CONCATENATE(datos!L191,", ",datos!L193,", ",datos!L195)) -> TRAZO Y MARCACIÓN, APERTURA DE HOYOS, TRASLADO DE PLANTADO DE POSTES
D81: OTRO:
B82: 4 | C82: RECUPERACIÓN DE LAS CARACTERÍSTICAS DEL SUELO DEL ECOSISTEMA ASOCIADO | D82: ENRIQUECIMIENTO DE SUELOS | H82: Infraestructura Natural | K82: Superficie con suelos retenidos o recuperados | M82: =IF($D$82="","",CONCATENATE(datos!N191,", ",datos!N193,",",datos!N195,",",datos!N197)) -> DESHIERBO, ABONAMIENTO POR FUENTES MINERALES,ABONAMIENTO ORGÁNICO DEL ÁREA,INSTALACIÓN DE VEGETACIÓN PARA ENRIQUECIMIENTO DEL SUELO
D83: OTRO:
B84: 5 | C84: ADAPTACIÓN A LOS REGÍMENES DE PRECIPITACIÓN Y TEMPERATURAS | D84: REPARACIÓN DEL CANAL AMUNADOR | H84: Infraestructura Natural | K84: Diques o reservorios de retención de aguas rústicas | M84: =IF($D$84="","",CONCATENATE(datos!P191,", ",datos!P193,",",datos!P195)) -> CONSTRUCCIÓN DE DIQUE Y ESTRUCTURA DE CAPTACIÓN, MEJORAMIENTO DEL CANAL AMUNADOR,INSTALACIÓN DE ÁREA DE PROTECCIÓN
D85: REPARACIÓN DEL CANAL DE MAMANTEO | H85: Infraestructura Natural | K85: Superficie de cobertura vegetal para proteger canales de mamanteo | M85: =IF($D$85="","",CONCATENATE(datos!Q191,", ",datos!Q193,", ",datos!Q195)) -> DESCOLMATACIÓN DE CANALES, RECONSTRUCCIÓN E IMPLEMENTACIÓN DE CANALES DE MAMANTEO, INSTALACIÓN DE MEDIDAS DE PROTECCIÓN
D86: CONSTRUCCIÓN DE ZANJAS DE INFILTRACIÓN | H86: Infraestructura Natural | K86: Zanjas de infiltración con materiales naturales | M86: =IF($D$86="","",CONCATENATE(datos!R191,", ",datos!R193,", ",datos!R195)) -> TRAZO, NIVELES Y REPLANTE PRELIMINAR, EXCAVACIÓN DE ZANJAS DE INFILTRACIÓN, COMPACTACIÓN DEL TERRENO
D87: INSTALACIÓN DE QOCHAS | H87: Infraestructura Natural | K87: Diques o reservorios de retención de aguas rústicas | M87: =IF($D$87="","",datos!S191) -> CONSTRUCCIÓN DE DIQUES
D88: CONSTRUCCIÓN DE TERRAZAS DE FORMACIÓN DE SUELOS | H88: Infraestructura Natural | K88: Terrazas de formación de suelos con materiales naturales | M88: =IF(D88="","",CONCATENATE(datos!O191,", ",datos!O192,", ",datos!O193,",",datos!O194)) -> TRAZO Y MARCACIÓN, REMOCIÓN DE TIERRA FÉRTIL, COMPACTACIÓN DEL SUELO DE LA TERRAZA,EMPAREJAMIENTO DE LA TERRAZA
D89: OTRO:
B90: 6 | C90: ADECUADAS PRÁCTICAS DEL MANEJO DEL ECOSISTEMA | D90: CAPACITACIÓN EN GESTIÓN INTEGRADA DE RECURSOS HÍDRICOS CON ENFOQUE DE CUENCA | H90: Intangible | M90: =IF($D$90="","",CONCATENATE(datos!T191,", ",datos!T193)) -> COORDINACIÓN CON ORGANIZACIONES Y COMITÉS DE LA COMUNIDAD EXISTENTE, TALLERES DE CAPACITACIÓN A ORGANIZACIONES Y COMITÉS DE LA COMUNIDAD EXISTENTE
D91: ASISTENCIA TÉCNICA EN EL MANEJO DE ECOSISTEMAS DE INTERÉS HÍDRICO | H91: Intangible | M91: =IF($D$91="","",CONCATENATE(datos!U191,", ",datos!U193)) -> COORDINACIÓN CON ORGANIZACIONES Y COMITÉS DE LA COMUNIDAD, TALLERES DE CAPACITACIÓN A ORGANIZACIONES Y COMITÉS DE LA COMUNIDAD EXISTENTE
D92: CAPACITACIÓN EN BUENAS PRÁCTICAS PARA LA ADAPTACIÓN AL CAMBIO CLIMÁTICO Y GESTIÓN DE RIESGOS | H92: Intangible | M92: =IF($D$92="","",CONCATENATE(datos!V191)) -> TALLERES DE CAPACITACIÓN EN ADAPTACIÓN AL CAMBIO CLIMÁTICO
D93: SENSIBILIZACIÓN RELACIONADA A LA RECUPERACIÓN DEL SERVICIO ECOSISTÉMICO DE REGULACIÓN HÍDRICA | H93: Intangible | M93: =IF($D$93="","",CONCATENATE(datos!W191)) -> CAMPAÑAS DE SENSIBILIZACIÓN
D94: INTERCAMBIO DE EXPERIENCIAS RELACIONADA A LA RECUPERACIÓN DEL SERVICIO ECOSISTÉMICO DE REGULACIÓN HÍDRICA | H94: Intangible | M94: =IF($D$94="","",CONCATENATE(datos!X191)) -> REALIZACIÓN DE PASANTÍAS
D95: OTRO:
B96: 7 | C96: ADECUADAS CAPACIDADES DE LAS ENTIDADES A CARGO DE LA GESTIÓN DEL ECOSISTEMA | D96: CAPACITACIÓN A FUNCIONARIOS PÚBLICOS SOBRE LA GESTIÓN INTEGRADA DEL RECURSO HÍDRICO CON ENFOQUE DE CUENCA | H96: Intangible | M96: =IF($D$96="","",CONCATENATE(datos!Y191)) -> TALLERES DE CAPACITACIÓN SOBRE GESTIÓN DEL ECOSISTEMA
D97: CAPACITACIÓN A FUNCIONARIOS PÚBLICOS SOBRE LAS MEDIDAS DE ADAPTACIÓN EN UN CONTEXTO DE CAMBIO CLIMÁTICO EN LA GESTIÓN INTEGRADA DE LOS RECURSOS HÍDRICOS | H97: Intangible | M97: =IF($D$97="","",CONCATENATE(datos!Z191)) -> TALLERES DE CAPACITACIÓN SOBRE CAMBIO CLIMÁTICO
D98: DESARROLLO DE CAPACIDADES PARA EL MONITOREO Y SEGUIMIENTO DE LOS ECOSISTEMAS DE INTERÉS HÍDRICO Y EL SERVICIO ECOSISTÉMICO DE REGULACIÓN HÍDRICA | H98: Intangible | M98: =IF($D$98="","",CONCATENATE(datos!AA191)) -> TALLERES DE CAPACITACIÓN SOBRE MONITOREO Y SEGUIMIENTO
D99: INTERCAMBIO DE EXPERIENCIAS SOBRE LA GESTIÓN INTEGRADA DEL RECURSO HÍDRICO CON ENFOQUE DE CUENCA | H99: Intangible | M99: =IF($D$99="","",CONCATENATE(datos!AB191)) -> REALIZACIÓN DE PASANTÍAS
D100: OTRO:
B101: (*) La naturaleza de las acciones asociadas a los componentes del N° 1 al N° 5 corresponden a "Adecuación" debido a que el factor de producción es "Infraestructura Natural", mientras que las acciones asociadas a los componentes N° 6 y N° 7 tienen como naturaleza "Implementación" debido a que el factor de producción es "Intangible". Estas consideraciones han sido desarrolladas en base a la Tabla 2.22 de la "Guía General para la Identificación, Formulación y Evaluación de Proyectos de Inversión" del Invierte.pe.
B102: Nota: Como parte de las acciones necesarias para lograr las "Adecuadas capacidades de las entidades a cargo de la gestión del ecosistema" se tiene que considerar la "Instalación del sistema de seguimiento y monitoreo del servicio ecosistémico de regulación hídrica", la cual comprende como mínimo la construcción de un vertedero en la salida de la cuenca y la instalación de un sensor de nivel de agua. Tomar como referencia lo indicado en la pestaña "Comunicación técnica".
B104: INDICADOR DEL PROYECTO | D104: INDICADOR DE PRODUCTO | G104: DESCRIPCIÓN DE ACCIONES | L104: Unidad Física | Q104: EXPEDIENTE TÉCNICO O DOCUMENTO EQUIVALENTE | U104: EJECUCIÓN FÍSICA
L105: Cantidad | N105: Unidad | Q105: FECHA INICIO | S105: FECHA TÉRMINO | U105: FECHA INICIO | W105: FECHA TÉRMINO
B106: =CONCATENATE('4.UNIDAD PRODUCTORA'!O58," HECTÁREAS DE ECOSISTEMAS DE INTERÉS HÍDRICO"," RECUPERADAS") -> HECTÁREAS DE ECOSISTEMAS DE INTERÉS HÍDRICO RECUPERADAS | D106: ='9.COSTOS '!K93 -> 0 | E106: =IF(C73="","",datos!C109) -> HECTÁREAS DE COBERTURA VEGETAL INCREMENTADAS DEL ECOSISTEMA PRINCIPAL | G106: =C73 -> RECUPERACIÓN DE LA COBERTURA VEGETAL NATIVA DEL ECOSISTEMA PRINCIPAL
G107: =D73 -> REVEGETACIÓN CON ESPECIES NATIVAS | L107: =+H26 -> 0 | N107: =+J26 -> HA
G108: =D74 -> INSTALACIÓN DE CERCOS EXCLUIDORES | L108: =+H27 -> 0 | N108: =+J27 -> ML
G109: =D75 -> OTRO: | L109: =+H28 -> 0 | N109: =+J28 -> 0
D110: ='9.COSTOS '!K94 -> 0 | E110: =IF(C76="","",datos!C110) -> HECTÁREAS DE LA ESTRUCTURA DE LA TURBA RECUPERADA DEL ECOSISTEMA PRINCIPAL | G110: =C76 -> RECUPERACIÓN DE LAS CARACTERÍSTICAS DE LA TURBA DEL ECOSISTEMA PRINCIPAL
G111: =D76 -> REVEGETACIÓN CON ESPECIES NATIVAS | L111: =+H29 -> 0 | N111: =+J29 -> HA
G112: =D77 -> OTRO: | L112: =+H30 -> 0 | N112: =+J30 -> 0
D113: ='9.COSTOS '!K95 -> 0 | E113: =IF(C78="","",datos!C112) -> HECTÁREAS DE COBERTURA VEGETAL INCREMENTADAS DE LOS ECOSISTEMAS ASOCIADOS | G113: =C78 -> RECUPERACIÓN DE LA COBERTURA VEGETAL DE LOS ECOSISTEMAS ASOCIADOS
G114: =D78 -> REFORESTACIÓN CON ESPECIES NATIVAS | L114: =+H31 -> 0 | N114: =+J31 -> HA
G115: =D79 -> REVEGETACIÓN CON ESPECIES NATIVAS | L115: =+H32 -> 0 | N115: =+J32 -> HA
G116: =D80 -> INSTALACIÓN DE CERCOS EXCLUIDORES | L116: =+H33 -> 0 | N116: =+J33 -> ML
G117: =D81 -> OTRO: | L117: =+H34 -> 0 | N117: =+J34 -> 0
D118: ='9.COSTOS '!K96 -> 0 | E118: =IF(C82="","",datos!C113) -> HECTÁREAS DE LA ESTRUCTURA DEL SUELO RECUPERADA DE LOS ECOSISTEMAS ASOCIADOS | G118: =C82 -> RECUPERACIÓN DE LAS CARACTERÍSTICAS DEL SUELO DEL ECOSISTEMA ASOCIADO
G119: =D82 -> ENRIQUECIMIENTO DE SUELOS | L119: =+H35 -> 0 | N119: =+J35 -> HA
G120: =D83 -> OTRO: | L120: =+H36 -> 0 | N120: =+J36 -> 0
D121: ='9.COSTOS '!K97 -> 0 | E121: =IF(C84="","",datos!C114) -> NÚMERO DE MEDIDAS DE ADAPTACIÓN AL RÉGIMEN DE PRECIPITACIONES Y TEMPERATURAS | G121: =C84 -> ADAPTACIÓN A LOS REGÍMENES DE PRECIPITACIÓN Y TEMPERATURAS
G122: =D84 -> REPARACIÓN DEL CANAL AMUNADOR | L122: =+H37 -> 0 | N122: =+J37 -> HA
G123: REPARACIÓN DEL CANAL DE MAMANTEO | L123: 0 | N123: ML
G124: CONSTRUCCIÓN DE ZANJAS DE INFILTRACIÓN | L124: 0 | N124: ML
G125: INSTALACIÓN DE QOCHAS | L125: 0 | N125: UNIDAD
G126: CONSTRUCCIÓN DE TERRAZAS DE FORMACIÓN DE SUELOS | L126: 0 | N126: HA
G127: OTRO: | L127: 0 | N127: 0
D128: ='9.COSTOS '!K98 -> 0 | E128: =IF(C90="","",datos!C115) -> POBLADORES CON ADECUADAS CAPACIDADES EN PRÁCTICAS DE MANEJO DE LOS ECOSISTEMAS DE INTERÉS HÍDRICO | G128: =C90 -> ADECUADAS PRÁCTICAS DEL MANEJO DEL ECOSISTEMA
G129: =D90 -> CAPACITACIÓN EN GESTIÓN INTEGRADA DE RECURSOS HÍDRICOS CON ENFOQUE DE CUENCA | L129: =+H43 -> 0 | N129: =+J43 -> EVENTO
G130: ASISTENCIA TÉCNICA EN EL MANEJO DE ECOSISTEMAS DE INTERÉS HÍDRICO | L130: 0 | N130: EVENTO
G131: CAPACITACIÓN EN BUENAS PRÁCTICAS PARA LA ADAPTACIÓN AL CAMBIO CLIMÁTICO Y GESTIÓN DE RIESGOS | L131: 0 | N131: TALLER
G132: SENSIBILIZACIÓN RELACIONADA A LA RECUPERACIÓN DEL SERVICIO ECOSISTÉMICO DE REGULACIÓN HÍDRICA | L132: 0 | N132: TALLER
G133: INTERCAMBIO DE EXPERIENCIAS RELACIONADA A LA RECUPERACIÓN DEL SERVICIO ECOSISTÉMICO DE REGULACIÓN HÍDRICA | L133: 0 | N133: EVENTO
G134: OTRO: | L134: 0 | N134: 0
D135: ='9.COSTOS '!K99 -> 0 | E135: =IF(C96="","",datos!C116) -> N° DE ÁREAS U ÓRGANOS ENCARGADOS DE LA GESTIÓN DEL ECOSISTEMA DE INTERÉS HÍDRICO CON ADECUADAS CAPACIDADES EN GESTIÓN DEL ECOSISTEMA | G135: =C96 -> ADECUADAS CAPACIDADES DE LAS ENTIDADES A CARGO DE LA GESTIÓN DEL ECOSISTEMA
G136: =D96 -> CAPACITACIÓN A FUNCIONARIOS PÚBLICOS SOBRE LA GESTIÓN INTEGRADA DEL RECURSO HÍDRICO CON ENFOQUE DE CUENCA | L136: =+H49 -> 0 | N136: =+J49 -> TALLER
G137: =D97 -> CAPACITACIÓN A FUNCIONARIOS PÚBLICOS SOBRE LAS MEDIDAS DE ADAPTACIÓN EN UN CONTEXTO DE CAMBIO CLIMÁTICO EN LA GESTIÓN INTEGRADA DE LOS RECURSOS HÍDRICOS | L137: =+H50 -> 0 | N137: =+J50 -> TALLER
G138: =D98 -> DESARROLLO DE CAPACIDADES PARA EL MONITOREO Y SEGUIMIENTO DE LOS ECOSISTEMAS DE INTERÉS HÍDRICO Y EL SERVICIO ECOSISTÉMICO DE REGULACIÓN HÍDRICA | L138: =+H51 -> 0 | N138: =+J51 -> TALLER
G139: =D99 -> INTERCAMBIO DE EXPERIENCIAS SOBRE LA GESTIÓN INTEGRADA DEL RECURSO HÍDRICO CON ENFOQUE DE CUENCA | L139: =+H52 -> 0 | N139: =+J52 -> EVENTO
G140: =D100 -> OTRO: | L140: =+H53 -> 0 | N140: =+J53 -> 0
B144: 8.4. IDENTIFICACIÓN DE MEDIDAS DE REDUCCIÓN DEL RIESGO DE DESASTRES
B146: Descripción de las medidas de reducción del riesgo de desastres (asociadas al análisis de la exposición y fragilidad de la UP sujeta de intervención y de la resiliencia de la población afectada).
B151: 8.5. METAS FÍSICAS DE LOS ACTIVOS QUE SE BUSCAN CREAR O INTERVENIR CON EL PROYECTO*
B153: Acción sobre el activo | F153: Tipo de factor productivo | H153: Unidad Física
B154: Acción | D154: Activos estratégicos esenciales
H155: Unidad de medida | I155: Cantidad
B156: =D73 -> REVEGETACIÓN CON ESPECIES NATIVAS | D156: =K73 -> Superficie revegetada | F156: =H73 -> Infraestructura Natural | H156: =N107 -> HA | I156: =L107 -> 0
B157: INSTALACIÓN DE CERCOS EXCLUIDORES | D157: Excluidores con materiales naturales | F157: =H74 -> Infraestructura | H157: =N108 -> ML | I157: =L108 -> 0
B158: OTRO: | D158: 0 | F158: 0 | H158: =N109 -> 0 | I158: =L109 -> 0
B159: REVEGETACIÓN CON ESPECIES NATIVAS | D159: Superficie revegetada | F159: Infraestructura Natural | H159: =+N111 -> HA | I159: =+L111 -> 0
B160: OTRO: | D160: 0 | F160: 0 | H160: =+N112 -> 0 | I160: =+L112 -> 0
B161: REFORESTACIÓN CON ESPECIES NATIVAS | D161: Superficie reforestada | F161: Infraestructura Natural | H161: =N114 -> HA | I161: =L114 -> 0
B162: REVEGETACIÓN CON ESPECIES NATIVAS | D162: Superficie revegetada | F162: Infraestructura Natural | H162: =N115 -> HA | I162: =L115 -> 0
B163: INSTALACIÓN DE CERCOS EXCLUIDORES | D163: Excluidores con materiales naturales | F163: Infraestructura | H163: =N116 -> ML | I163: =L116 -> 0
B164: OTRO: | D164: 0 | F164: 0 | H164: =N117 -> 0 | I164: =L117 -> 0
B165: ENRIQUECIMIENTO DE SUELOS | D165: Superficie con suelos retenidos o recuperados | F165: Infraestructura Natural | H165: =+N119 -> HA | I165: =+L119 -> 0
B166: OTRO: | D166: 0 | F166: 0 | H166: =+N120 -> 0 | I166: =+L120 -> 0
B167: REPARACIÓN DEL CANAL AMUNADOR | D167: Diques o reservorios de retención de aguas rústicas | F167: Infraestructura Natural | H167: =N122 -> HA | I167: =L122 -> 0
B168: REPARACIÓN DEL CANAL DE MAMANTEO | D168: Superficie de cobertura vegetal para proteger canales de mamanteo | F168: Infraestructura Natural | H168: ML | I168: 0
B169: CONSTRUCCIÓN DE ZANJAS DE INFILTRACIÓN | D169: Zanjas de infiltración con materiales naturales | F169: Infraestructura Natural | H169: ML | I169: 0
B170: INSTALACIÓN DE QOCHAS | D170: Diques o reservorios de retención de aguas rústicas | F170: Infraestructura Natural | H170: UNIDAD | I170: 0
B171: CONSTRUCCIÓN DE TERRAZAS DE FORMACIÓN DE SUELOS | D171: Terrazas de formación de suelos con materiales naturales | F171: Infraestructura Natural | H171: HA | I171: 0
B172: OTRO: | D172: 0 | F172: 0 | H172: 0 | I172: 0
B173: CAPACITACIÓN EN GESTIÓN INTEGRADA DE RECURSOS HÍDRICOS CON ENFOQUE DE CUENCA | D173: 0 | F173: Intangible | H173: =N129 -> EVENTO | I173: =L129 -> 0
B174: ASISTENCIA TÉCNICA EN EL MANEJO DE ECOSISTEMAS DE INTERÉS HÍDRICO | D174: 0 | F174: Intangible | H174: EVENTO | I174: 0
B175: CAPACITACIÓN EN BUENAS PRÁCTICAS PARA LA ADAPTACIÓN AL CAMBIO CLIMÁTICO Y GESTIÓN DE RIESGOS | D175: 0 | F175: Intangible | H175: TALLER | I175: 0
B176: SENSIBILIZACIÓN RELACIONADA A LA RECUPERACIÓN DEL SERVICIO ECOSISTÉMICO DE REGULACIÓN HÍDRICA | D176: 0 | F176: Intangible | H176: TALLER | I176: 0
B177: INTERCAMBIO DE EXPERIENCIAS RELACIONADA A LA RECUPERACIÓN DEL SERVICIO ECOSISTÉMICO DE REGULACIÓN HÍDRICA | D177: 0 | F177: Intangible | H177: EVENTO | I177: 0
B178: OTRO: | D178: 0 | F178: 0 | H178: 0 | I178: 0
B179: CAPACITACIÓN A FUNCIONARIOS PÚBLICOS SOBRE LA GESTIÓN INTEGRADA DEL RECURSO HÍDRICO CON ENFOQUE DE CUENCA | D179: 0 | F179: Intangible | H179: =N136 -> TALLER | I179: =L137 -> 0
B180: CAPACITACIÓN A FUNCIONARIOS PÚBLICOS SOBRE LAS MEDIDAS DE ADAPTACIÓN EN UN CONTEXTO DE CAMBIO CLIMÁTICO EN LA GESTIÓN INTEGRADA DE LOS RECURSOS HÍDRICOS | D180: 0 | F180: Intangible | H180: =N137 -> TALLER | I180: =L138 -> 0
B181: DESARROLLO DE CAPACIDADES PARA EL MONITOREO Y SEGUIMIENTO DE LOS ECOSISTEMAS DE INTERÉS HÍDRICO Y EL SERVICIO ECOSISTÉMICO DE REGULACIÓN HÍDRICA | D181: 0 | F181: Intangible | H181: TALLER | I181: =L139 -> 0
B182: INTERCAMBIO DE EXPERIENCIAS SOBRE LA GESTIÓN INTEGRADA DEL RECURSO HÍDRICO CON ENFOQUE DE CUENCA | D182: 0 | F182: Intangible | H182: EVENTO | I182: =L140 -> 0
B183: OTRO: | D183: 0 | F183: 0 | H183: =P141 -> 0 | I183: =N141 -> 0
B184: (*) Las acciones asociadas al factor de producción "Infraestructura Natural" corresponden a la naturaleza "Adecuación", mientras que las acciones asociadas al factor de producción "Intangible" corresponden a la naturaleza "Implementación". Estas consideraciones han sido desarrolladas en base a la Tabla 2.22 de la "Guía General para la Identificación, Formulación y Evaluación de Proyectos de Inversión" del Invierte.pe.
B185: Nota: Como parte de las acciones necesarias para lograr las "Adecuadas capacidades de las entidades a cargo de la gestión del ecosistema" se tiene que considerar la "Instalación del sistema de seguimiento y monitoreo del servicio ecosistémico de regulación hídrica", la cual comprende como mínimo la construcción de un vertedero en la salida de la cuenca y la instalación de un sensor de nivel de agua. Tomar como referencia lo indicado en la pestaña "Comunicación técnica".

Sheet 9.COSTOS
B17: SECCIÓN N° 9: COSTOS DEL PROYECTO
B19: 9.1. Costos de Inversión
B21: Para ingresar el detalle de los costos a nivel de cada actividad, pasar a la hoja de costos, haciendo clic en el siguiente link
B24: Componente | F24: Tipo de factor productivo | H24: Meta Física | J24: Precio unitario | L24: Costos Sub Total en soles
B25: ='COSTOS UNITARIOS'!I111 -> RECUPERACIÓN DE LA COBERTURA VEGETAL NATIVA DEL ECOSISTEMA PRINCIPAL | F25: ='COSTOS UNITARIOS'!P111 -> Infraestructura natural | H25: ='COSTOS UNITARIOS'!S11 -> 0 | J25: ='COSTOS UNITARIOS'!U11 -> 0 | L25: ='COSTOS UNITARIOS'!R111 -> 0
B26: ='COSTOS UNITARIOS'!I112 -> RECUPERACIÓN DE LAS CARACTERÍSTICAS DE LA TURBA DEL ECOSISTEMA PRINCIPAL | F26: ='COSTOS UNITARIOS'!P112 -> Infraestructura natural | H26: ='COSTOS UNITARIOS'!S21 -> 0 | J26: ='COSTOS UNITARIOS'!U21 -> 0 | L26: ='COSTOS UNITARIOS'!R112 -> 0
B27: ='COSTOS UNITARIOS'!I113 -> RECUPERACIÓN DE LA COBERTURA VEGETAL DE LOS ECOSISTEMAS ASOCIADOS | F27: ='COSTOS UNITARIOS'!P113 -> Infraestructura natural | H27: ='COSTOS UNITARIOS'!S27 -> 0 | J27: ='COSTOS UNITARIOS'!U27 -> 0 | L27: ='COSTOS UNITARIOS'!R113 -> 0
B28: ='COSTOS UNITARIOS'!I114 -> RECUPERACIÓN DE LAS CARACTERÍSTICAS DEL SUELO DEL ECOSISTEMA ASOCIADO | F28: ='COSTOS UNITARIOS'!P114 -> Infraestructura natural | H28: ='COSTOS UNITARIOS'!S43 -> 0 | J28: ='COSTOS UNITARIOS'!U43 -> 0 | L28: ='COSTOS UNITARIOS'!R114 -> 0
B29: ='COSTOS UNITARIOS'!I115 -> ADAPTACIÓN A LOS REGÍMENES DE PRECIPITACIÓN Y TEMPERATURAS | F29: ='COSTOS UNITARIOS'!P115 -> Infraestructura natural | H29: ='COSTOS UNITARIOS'!S51 -> 0 | J29: ='COSTOS UNITARIOS'!U51 -> 0 | L29: ='COSTOS UNITARIOS'!R115 -> 0
B30: ='COSTOS UNITARIOS'!I116 -> ADECUADAS PRÁCTICAS DEL MANEJO DEL ECOSISTEMA | F30: ='COSTOS UNITARIOS'!P116 -> Intangible | H30: ='COSTOS UNITARIOS'!S73 -> 0 | J30: ='COSTOS UNITARIOS'!U73 -> 0 | L30: ='COSTOS UNITARIOS'!R116 -> 0
B31: ='COSTOS UNITARIOS'!I117 -> ADECUADAS CAPACIDADES DE LAS ENTIDADES A CARGO DE LA GESTIÓN DEL ECOSISTEMA | F31: ='COSTOS UNITARIOS'!P117 -> Intangible | H31: ='COSTOS UNITARIOS'!S88 -> 0 | J31: ='COSTOS UNITARIOS'!U88 -> 0 | L31: ='COSTOS UNITARIOS'!R117 -> 0
B32: Otros costos | F32: Tipo de factor productivo | H32: Meta Física | J32: Precio unitario | L32: Costos Sub Total en soles
B33: ='COSTOS UNITARIOS'!B121 -> GESTIÓN DEL PROYECTO | H33: ='COSTOS UNITARIOS'!S103 -> 0 | J33: ='COSTOS UNITARIOS'!U103 -> 0 | L33: ='COSTOS UNITARIOS'!R121 -> 0
B34: ='COSTOS UNITARIOS'!B122 -> EXPEDIENTE TÉCNICO | H34: ='COSTOS UNITARIOS'!S104 -> 0 | J34: ='COSTOS UNITARIOS'!U104 -> 0 | L34: ='COSTOS UNITARIOS'!R122 -> 0
B35: ='COSTOS UNITARIOS'!B123 -> SUPERVISIÓN DE EXPEDIENTE TÉCNICO | H35: ='COSTOS UNITARIOS'!S105 -> 0 | J35: ='COSTOS UNITARIOS'!U105 -> 0 | L35: ='COSTOS UNITARIOS'!R123 -> 0
B36: ='COSTOS UNITARIOS'!B124 -> SUPERVISIÓN DE EJECUCIÓN FÍSICA DEL PROYECTO Y LIQUIDACIÓN | H36: ='COSTOS UNITARIOS'!S106 -> 0 | J36: ='COSTOS UNITARIOS'!U106 -> 0 | L36: ='COSTOS UNITARIOS'!R124 -> 0
B37: Nota: Los referidos ítems son precios finales, por lo que deberían considerar gastos generales, utilidad e IGV, según la modalidad de ejecución.
B39: 9.2 Cronograma de ejecución financiera
B41: Para poder completar el cronograma, vaya a la hoja cronograma dando clic en el siguiente link
B43: El resumen del cronograma se encuentra únicamente en periodo anual
B45: Componente | F45: Año
F46: Periodo
F47: 1 | G47: 2 | H47: 3 | I47: 4 | J47: 5
B48: =CRONOGRAMA!B64 -> RECUPERACIÓN DE LA COBERTURA VEGETAL NATIVA DEL ECOSISTEMA PRINCIPAL | F48: =CRONOGRAMA!G64 -> 0 | G48: =CRONOGRAMA!H64 -> 0 | H48: =CRONOGRAMA!I64 -> 0 | I48: =CRONOGRAMA!J64 -> 0 | J48: =CRONOGRAMA!K64 -> 0
B49: =CRONOGRAMA!B65 -> RECUPERACIÓN DE LAS CARACTERÍSTICAS DE LA TURBA DEL ECOSISTEMA PRINCIPAL | F49: =CRONOGRAMA!G65 -> 0 | G49: =CRONOGRAMA!H65 -> 0 | H49: =CRONOGRAMA!I65 -> 0 | I49: =CRONOGRAMA!J65 -> 0 | J49: =CRONOGRAMA!K65 -> 0
B50: =CRONOGRAMA!B66 -> RECUPERACIÓN DE LA COBERTURA VEGETAL DE LOS ECOSISTEMAS ASOCIADOS | F50: =CRONOGRAMA!G66 -> 0 | G50: =CRONOGRAMA!H66 -> 0 | H50: =CRONOGRAMA!I66 -> 0 | I50: =CRONOGRAMA!J66 -> 0 | J50: =CRONOGRAMA!K66 -> 0
B51: =CRONOGRAMA!B67 -> RECUPERACIÓN DE LAS CARACTERÍSTICAS DEL SUELO DEL ECOSISTEMA ASOCIADO | F51: =CRONOGRAMA!G67 -> 0 | G51: =CRONOGRAMA!H67 -> 0 | H51: =CRONOGRAMA!I67 -> 0 | I51: =CRONOGRAMA!J67 -> 0 | J51: =CRONOGRAMA!K67 -> 0
B52: =CRONOGRAMA!B68 -> ADAPTACIÓN A LOS REGÍMENES DE PRECIPITACIÓN Y TEMPERATURAS | F52: =CRONOGRAMA!G68 -> 0 | G52: =CRONOGRAMA!H68 -> 0 | H52: =CRONOGRAMA!I68 -> 0 | I52: =CRONOGRAMA!J68 -> 0 | J52: =CRONOGRAMA!K68 -> 0
B53: =CRONOGRAMA!B69 -> ADECUADAS PRÁCTICAS DEL MANEJO DEL ECOSISTEMA | F53: =CRONOGRAMA!G69 -> 0 | G53: =CRONOGRAMA!H69 -> 0 | H53: =CRONOGRAMA!I69 -> 0 | I53: =CRONOGRAMA!J69 -> 0 | J53: =CRONOGRAMA!K69 -> 0
B54: =CRONOGRAMA!B70 -> ADECUADAS CAPACIDADES DE LAS ENTIDADES A CARGO DE LA GESTIÓN DEL ECOSISTEMA | F54: =CRONOGRAMA!G70 -> 0 | G54: =CRONOGRAMA!H70 -> 0 | H54: =CRONOGRAMA!I70 -> 0 | I54: =CRONOGRAMA!J70 -> 0 | J54: =CRONOGRAMA!K70 -> 0
B56: Otros costos | F56: Año
F57: Periodo
F58: 1 | G58: 2 | H58: 3 | I58: 4 | J58: 5
B59: =CRONOGRAMA!B74 -> GESTIÓN DEL PROYECTO | F59: =CRONOGRAMA!G74 -> 0 | G59: =CRONOGRAMA!H74 -> 0 | H59: =CRONOGRAMA!I74 -> 0 | I59: =CRONOGRAMA!J74 -> 0 | J59: =CRONOGRAMA!K74 -> 0
B60: =CRONOGRAMA!B75 -> EXPEDIENTE TÉCNICO | F60: =CRONOGRAMA!G75 -> 0 | G60: =CRONOGRAMA!H75 -> 0 | H60: =CRONOGRAMA!I75 -> 0 | I60: =CRONOGRAMA!J75 -> 0 | J60: =CRONOGRAMA!K75 -> 0
B61: =CRONOGRAMA!B76 -> SUPERVISIÓN DE EXPEDIENTE TÉCNICO | F61: =CRONOGRAMA!G76 -> 0 | G61: =CRONOGRAMA!H76 -> 0 | H61: =CRONOGRAMA!I76 -> 0 | I61: =CRONOGRAMA!J76 -> 0 | J61: =CRONOGRAMA!K76 -> 0
B62: =CRONOGRAMA!B77 -> SUPERVISIÓN DE EJECUCIÓN FÍSICA DEL PROYECTO Y LIQUIDACIÓN | F62: =CRONOGRAMA!G77 -> 0 | G62: =CRONOGRAMA!H77 -> 0 | H62: =CRONOGRAMA!I77 -> 0 | I62: =CRONOGRAMA!J77 -> 0 | J62: =CRONOGRAMA!K77 -> 0
B63: Inversión total | F63: =CRONOGRAMA!G78 -> 0 | G63: =CRONOGRAMA!H78 -> 0 | H63: =CRONOGRAMA!I78 -> 0 | I63: =CRONOGRAMA!J78 -> 0 | J63: =CRONOGRAMA!K78 -> 0
B65: Nota: Para mantener un mejor orden en la presentación e impresión de la presente ficha, las celdas que queden en blanco deben ser ocultadas
B67: 9.3 Cronograma de inversión por tipo factor productivo y componente
B69: Factor Productivo/Componente | F69: Año | K69: Total de inversión por Componente (S/.)
F70: 1 | G70: 2 | H70: 3 | I70: 4 | J70: 5
B71: INFRAESTRUCTURA | F71: =SUM(F71) -> 0 | G71: =SUM(G71) -> 0 | H71: 0 | I71: 0 | J71: 0 | K71: =SUM(F71:J71) -> 0
B72: EQUIPO | F72: =SUM(F72) -> 0 | G72: 0 | H72: 0 | I72: 0 | J72: 0 | K72: =SUM(F72:J72) -> 0
B73: INFRAESTRUCTURA NATURAL | F73: =+CRONOGRAMA!G64+CRONOGRAMA!G65+CRONOGRAMA!G66+CRONOGRAMA!G67+CRONOGRAMA!G68 -> 0 | G73: =+CRONOGRAMA!H64+CRONOGRAMA!H65+CRONOGRAMA!H66+CRONOGRAMA!H67+CRONOGRAMA!H68 -> 0 | H73: =+CRONOGRAMA!I64+CRONOGRAMA!I65+CRONOGRAMA!I66+CRONOGRAMA!I67+CRONOGRAMA!I68 -> 0 | I73: =+CRONOGRAMA!J64+CRONOGRAMA!J65+CRONOGRAMA!J66+CRONOGRAMA!J67+CRONOGRAMA!J68 -> 0 | J73: =+CRONOGRAMA!K64+CRONOGRAMA!K65+CRONOGRAMA!K66+CRONOGRAMA!K67+CRONOGRAMA!K68 -> 0 | K73: 0
B74: INTANGIBLE | F74: =CRONOGRAMA!G69+CRONOGRAMA!G70 -> 0 | G74: =CRONOGRAMA!H69+CRONOGRAMA!H70 -> 0 | H74: =CRONOGRAMA!I69+CRONOGRAMA!I70 -> 0 | I74: =CRONOGRAMA!J69+CRONOGRAMA!J70 -> 0 | J74: =CRONOGRAMA!K69+CRONOGRAMA!K70 -> 0 | K74: 0
B75: SUB TOTAL POR PERIODO | F75: =SUM(F71:F74) -> 0 | G75: =SUM(G71:G74) -> 0 | H75: =SUM(H71:H74) -> 0 | I75: =SUM(I71:I74) -> 0 | J75: =SUM(J71:J74) -> 0 | K75: =SUM(F75:J75) -> 0
B76: Otros costos | F76: Año
F77: 1 | G77: 2 | H77: 3 | I77: 4 | J77: 5
B78: =CRONOGRAMA!B53 -> GESTIÓN DEL PROYECTO | F78: =CRONOGRAMA!G74 -> 0 | G78: =CRONOGRAMA!H74 -> 0 | H78: =CRONOGRAMA!I74 -> 0 | I78: =CRONOGRAMA!J74 -> 0 | J78: =CRONOGRAMA!K74 -> 0 | K78: 0
B79: =CRONOGRAMA!B54 -> EXPEDIENTE TÉCNICO | F79: =CRONOGRAMA!G75 -> 0 | G79: =CRONOGRAMA!H75 -> 0 | H79: =CRONOGRAMA!I75 -> 0 | I79: =CRONOGRAMA!J75 -> 0 | J79: =CRONOGRAMA!K75 -> 0 | K79: 0
B80: =CRONOGRAMA!B55 -> SUPERVISIÓN DE EXPEDIENTE TÉCNICO | F80: =CRONOGRAMA!G76 -> 0 | G80: =CRONOGRAMA!H76 -> 0 | H80: =CRONOGRAMA!I76 -> 0 | I80: =CRONOGRAMA!J76 -> 0 | J80: =CRONOGRAMA!K76 -> 0 | K80: 0
B81: =CRONOGRAMA!B56 -> SUPERVISIÓN DE EJECUCIÓN FÍSICA DEL PROYECTO Y LIQUIDACIÓN | F81: =CRONOGRAMA!G77 -> 0 | G81: =CRONOGRAMA!H77 -> 0 | H81: =CRONOGRAMA!I77 -> 0 | I81: =CRONOGRAMA!J77 -> 0 | J81: =CRONOGRAMA!K77 -> 0 | K81: 0
B82: COSTO TOTAL DE LA INVERSIÓN | F82: =SUM(F78:F81)+F75 -> 0 | G82: =SUM(G78:G81)+G75 -> 0 | H82: 0 | I82: 0 | J82: 0 | K82: =SUM(K78:K81)+K75 -> 0
B85: 9.4 Cronograma de metas físicas por componente
B87: Para completar el cronograma, ir a la hoja Cronograma dando clic en el siguiente link
B90: Componente | F90: Año | K90: Meta Total
F91: Periodo
F92: 1 | G92: 2 | H92: 3 | I92: 4 | J92: 5
B93: =CRONOGRAMA!B128 -> RECUPERACIÓN DE LA COBERTURA VEGETAL NATIVA DEL ECOSISTEMA PRINCIPAL | F93: =CRONOGRAMA!G128 -> 0 | G93: =CRONOGRAMA!H128 -> 0 | H93: =CRONOGRAMA!I128 -> 0 | I93: =CRONOGRAMA!J128 -> 0 | J93: =CRONOGRAMA!K128 -> 0 | K93: =SUM(F93:J93) -> 0
B94: =CRONOGRAMA!B129 -> RECUPERACIÓN DE LAS CARACTERÍSTICAS DE LA TURBA DEL ECOSISTEMA PRINCIPAL | F94: =CRONOGRAMA!G129 -> 0 | G94: =CRONOGRAMA!H129 -> 0 | H94: =CRONOGRAMA!I129 -> 0 | I94: =CRONOGRAMA!J129 -> 0 | J94: =CRONOGRAMA!K129 -> 0 | K94: =SUM(F94:J94) -> 0
B95: =CRONOGRAMA!B130 -> RECUPERACIÓN DE LA COBERTURA VEGETAL DE LOS ECOSISTEMAS ASOCIADOS | F95: =CRONOGRAMA!G130 -> 0 | G95: =CRONOGRAMA!H130 -> 0 | H95: =CRONOGRAMA!I130 -> 0 | I95: =CRONOGRAMA!J130 -> 0 | J95: =CRONOGRAMA!K130 -> 0 | K95: 0
B96: =CRONOGRAMA!B131 -> RECUPERACIÓN DE LAS CARACTERÍSTICAS DEL SUELO DEL ECOSISTEMA ASOCIADO | F96: =CRONOGRAMA!G131 -> 0 | G96: =CRONOGRAMA!H131 -> 0 | H96: =CRONOGRAMA!I131 -> 0 | I96: =CRONOGRAMA!J131 -> 0 | J96: =CRONOGRAMA!K131 -> 0 | K96: 0
B97: =CRONOGRAMA!B132 -> ADAPTACIÓN A LOS REGÍMENES DE PRECIPITACIÓN Y TEMPERATURAS | F97: =CRONOGRAMA!G132 -> 0 | G97: =CRONOGRAMA!H132 -> 0 | H97: =CRONOGRAMA!I132 -> 0 | I97: =CRONOGRAMA!J132 -> 0 | J97: =CRONOGRAMA!K132 -> 0 | K97: 0
B98: =CRONOGRAMA!B133 -> ADECUADAS PRÁCTICAS DEL MANEJO DEL ECOSISTEMA | F98: =CRONOGRAMA!G133 -> 0 | G98: =CRONOGRAMA!H133 -> 0 | H98: =CRONOGRAMA!I133 -> 0 | I98: =CRONOGRAMA!J133 -> 0 | J98: =CRONOGRAMA!K133 -> 0 | K98: 0
B99: =CRONOGRAMA!B134 -> ADECUADAS CAPACIDADES DE LAS ENTIDADES A CARGO DE LA GESTIÓN DEL ECOSISTEMA | F99: =CRONOGRAMA!G134 -> 0 | G99: =CRONOGRAMA!H134 -> 0 | H99: =CRONOGRAMA!I134 -> 0 | I99: =CRONOGRAMA!J134 -> 0 | J99: =CRONOGRAMA!K134 -> 0 | K99: 0
B101: Otros costos | F101: Año | K101: Meta Total
F102: Periodo
F103: 1 | G103: 2 | H103: 3 | I103: 4 | J103: 5
B104: =CRONOGRAMA!B138 -> GESTIÓN DEL PROYECTO | F104: =CRONOGRAMA!G138 -> 0 | G104: =CRONOGRAMA!H138 -> 0 | H104: =CRONOGRAMA!I138 -> 0 | I104: =CRONOGRAMA!J138 -> 0 | J104: =CRONOGRAMA!K138 -> 0 | K104: 0
B105: =CRONOGRAMA!B139 -> EXPEDIENTE TÉCNICO | F105: =CRONOGRAMA!G139 -> 0 | G105: =CRONOGRAMA!H139 -> 0 | H105: =CRONOGRAMA!I139 -> 0 | I105: =CRONOGRAMA!J139 -> 0 | J105: =CRONOGRAMA!K139 -> 0 | K105: 0
B106: =CRONOGRAMA!B140 -> SUPERVISIÓN DE EXPEDIENTE TÉCNICO | F106: =CRONOGRAMA!G140 -> 0 | G106: =CRONOGRAMA!H140 -> 0 | H106: =CRONOGRAMA!I140 -> 0 | I106: =CRONOGRAMA!J140 -> 0 | J106: =CRONOGRAMA!K140 -> 0 | K106: 0
B107: =CRONOGRAMA!B141 -> SUPERVISIÓN DE EJECUCIÓN FÍSICA DEL PROYECTO Y LIQUIDACIÓN | F107: =CRONOGRAMA!G141 -> 0 | G107: =CRONOGRAMA!H141 -> 0 | H107: =CRONOGRAMA!I141 -> 0 | I107: =CRONOGRAMA!J141 -> 0 | J107: =CRONOGRAMA!K141 -> 0 | K107: 0
B110: 9.5 Cronograma de metas físicas por tipo de factor productivo y componentes
B112: Factor Productivo/Componente | F112: Año | K112: Meta Total
F113: 1 | G113: 2 | H113: 3 | I113: 4 | J113: 5
B114: INFRAESTRUCTURA | F114: =SUM(F114) -> 0 | G114: =SUM(G114) -> 0 | H114: 0 | I114: 0 | J114: 0 | K114: =SUM(F114:J114) -> 0
B115: EQUIPO | F115: =SUM(F115) -> 0 | G115: 0 | H115: 0 | I115: 0 | J115: 0 | K115: 0
B116: INFRAESTRUCTURA NATURAL | F116: =+CRONOGRAMA!G128+CRONOGRAMA!G129+CRONOGRAMA!G130+CRONOGRAMA!G131+CRONOGRAMA!G132 -> 0 | G116: =+CRONOGRAMA!H128+CRONOGRAMA!H129+CRONOGRAMA!H130+CRONOGRAMA!H131+CRONOGRAMA!H132 -> 0 | H116: =+CRONOGRAMA!I128+CRONOGRAMA!I129+CRONOGRAMA!I130+CRONOGRAMA!I131+CRONOGRAMA!I132 -> 0 | I116: =+CRONOGRAMA!J128+CRONOGRAMA!J129+CRONOGRAMA!J130+CRONOGRAMA!J131+CRONOGRAMA!J132 -> 0 | J116: =+CRONOGRAMA!K128+CRONOGRAMA!K129+CRONOGRAMA!K130+CRONOGRAMA!K131+CRONOGRAMA!K132 -> 0 | K116: 0
B117: INTANGIBLE | F117: =+CRONOGRAMA!G133+CRONOGRAMA!G134 -> 0 | G117: =+CRONOGRAMA!H133+CRONOGRAMA!H134 -> 0 | H117: =+CRONOGRAMA!I133+CRONOGRAMA!I134 -> 0 | I117: =+CRONOGRAMA!J133+CRONOGRAMA!J134 -> 0 | J117: =+CRONOGRAMA!K133+CRONOGRAMA!K134 -> 0 | K117: =SUM(F117:J117) -> 0
B118: SUB TOTAL POR PERIODO | F118: =SUM(F114:F117) -> 0 | G118: =SUM(G114:G117) -> 0 | H118: =SUM(H114:H117) -> 0 | I118: =SUM(I114:I117) -> 0 | J118: =SUM(J114:J117) -> 0 | K118: 0
B120: Otros costos | F120: Meses | K120: Meta Total
F121: 1 | G121: 2 | H121: 3 | I121: 4 | J121: 5
B122: =CRONOGRAMA!B119 -> GESTIÓN DEL PROYECTO | F122: =CRONOGRAMA!G138 -> 0 | G122: =CRONOGRAMA!H138 -> 0 | H122: =CRONOGRAMA!I138 -> 0 | I122: =CRONOGRAMA!J138 -> 0 | J122: =CRONOGRAMA!K138 -> 0 | K122: =SUM(F122:J122) -> 0
B123: =CRONOGRAMA!B120 -> EXPEDIENTE TÉCNICO | F123: =CRONOGRAMA!G139 -> 0 | G123: =CRONOGRAMA!H139 -> 0 | H123: =CRONOGRAMA!I139 -> 0 | I123: =CRONOGRAMA!J139 -> 0 | J123: =CRONOGRAMA!K139 -> 0 | K123: 0
B124: =CRONOGRAMA!B121 -> SUPERVISIÓN DE EXPEDIENTE TÉCNICO | F124: =CRONOGRAMA!G140 -> 0 | G124: =CRONOGRAMA!H140 -> 0 | H124: =CRONOGRAMA!I140 -> 0 | I124: =CRONOGRAMA!J140 -> 0 | J124: =CRONOGRAMA!K140 -> 0 | K124: 0
B125: =CRONOGRAMA!B122 -> SUPERVISIÓN DE EJECUCIÓN FÍSICA DEL PROYECTO Y LIQUIDACIÓN | F125: =CRONOGRAMA!G141 -> 0 | G125: =CRONOGRAMA!H141 -> 0 | H125: =CRONOGRAMA!I141 -> 0 | I125: =CRONOGRAMA!J141 -> 0 | J125: =CRONOGRAMA!K141 -> 0 | K125: =SUM(F125:J125) -> 0
B128: Fecha prevista de inicio de ejecución física: (mes / año): | G128: =MIN('8.ANALISIS TÉCNICO'!U106:V127) -> 00:00:00
B129: Fecha prevista de término de ejecución física: (mes / año): | G129: =MIN('8.ANALISIS TÉCNICO'!W106:Y127) -> 00:00:00
B132: Periodo de ejecución (Días) | G132: =+'7.HORIZONTE DE EVALUACIÓN'!H38*30 -> 0
B135: 9.6 Costos de Operación y Mantenimiento con y sin proyecto
B137: Para completar los costos de operación y mantenimiento, ir a la hoja OyM dando clic en el siguiente link
B140: Costo de OyM | F140: Año (S/.)
F141: 1 | G141: 2 | H141: 3 | I141: 4 | J141: 5 | K141: 6 | L141: 7 | M141: 8 | N141: 9 | O141: 10
B142: Sin proyecto | D142: Operación | F142: ='O&M'!E34 -> 0 | G142: ='O&M'!F34 -> 0 | H142: ='O&M'!G34 -> 0 | I142: ='O&M'!H34 -> 0 | J142: ='O&M'!I34 -> 0 | K142: ='O&M'!J34 -> 0 | L142: ='O&M'!K34 -> 0 | M142: ='O&M'!L34 -> 0 | N142: ='O&M'!M34 -> 0 | O142: ='O&M'!N34 -> 0
D143: Mantenimiento | F143: ='O&M'!E35 -> 0 | G143: ='O&M'!F35 -> 0 | H143: ='O&M'!G35 -> 0 | I143: ='O&M'!H35 -> 0 | J143: ='O&M'!I35 -> 0 | K143: ='O&M'!J35 -> 0 | L143: ='O&M'!K35 -> 0 | M143: ='O&M'!L35 -> 0 | N143: ='O&M'!M35 -> 0 | O143: ='O&M'!N35 -> 0
B144: Con proyecto | D144: Operación | F144: ='O&M'!E60 -> 0 | G144: ='O&M'!F60 -> 0 | H144: ='O&M'!G60 -> 0 | I144: ='O&M'!H60 -> 0 | J144: ='O&M'!I60 -> 0 | K144: ='O&M'!J60 -> 0 | L144: ='O&M'!K60 -> 0 | M144: ='O&M'!L60 -> 0 | N144: ='O&M'!M60 -> 0 | O144: ='O&M'!N60 -> 0
D145: Mantenimiento | F145: ='O&M'!E61 -> 0 | G145: ='O&M'!F61 -> 0 | H145: ='O&M'!G61 -> 0 | I145: ='O&M'!H61 -> 0 | J145: ='O&M'!I61 -> 0 | K145: ='O&M'!J61 -> 0 | L145: ='O&M'!K61 -> 0 | M145: ='O&M'!L61 -> 0 | N145: ='O&M'!M61 -> 0 | O145: ='O&M'!N61 -> 0
B148: Fecha prevista de inicio de operación: (mes / año): | G148: =+CRONOGRAMA!N122 -> 00:00:00
B149: Fecha prevista de término de operación: (mes / año): | G149: =G148+365*'7.HORIZONTE DE EVALUACIÓN'!H41 -> 00:00:00

Sheet 10.EVALUACION SOCIAL
B14: SECCIÓN N°10: EVALUACIÓN SOCIAL
B16: 10.1. Criterios de decisión de Inversión
B19: Método de Evaluación Social
B21: Tipo | C21: Indicador | G21: Valor
B22: Costo eficacia | C22: Valor Actual de los Costos (VAC) | G22: ='FLUJO DE COSTOS'!C66 -> 0
C23: Costo Eficacia (CE) | G23: ='FLUJO DE COSTOS'!C67 -> 
C24: Costo por Hectárea | G24: ='FLUJO DE COSTOS'!C69 -> 
C25: Costo Eficacia (CE)(**) | G25: ='FLUJO DE COSTOS'!C72 -> 
C26: Costo por M3 (**) | G26: ='FLUJO DE COSTOS'!C71 -> 
B27: * A precios sociales
B29: ** Considerar que este indicador de evaluación social, corresponde a un análisis referencial sobre la recuperación del servicio ecosistémico de regulación hídrica. Para estimar la ganancia hídrica se anexa la pestaña de "Comunicación técnica" un metodo que permite generar la información en relación a número de hectáreas recuperadas por volumen de ganancia hídrica. El cálculo del indicador no es obligatorio.

Sheet 11.SOSTENIBILIDAD
B16: SECCIÓN N°11: SOSTENIBILIDAD
B18: 11.1. Descripción de la capacidad institucional en la sostenibilidad del proyecto
B21: 11.1.1. ¿ES LA UNIDAD EJECUTORA DE INVERSIONES LA RESPONSABLE DE LA OPERACIÓN Y MANTENIMIENTO DEL PROYECTO DE INVERSIÓN CON CARGO A SU PRESUPUESTO INSTITUCIONAL? | M21: si | O21: no | S21: SI
S22: NO
B23: 11.1.2. DOCUMENTOS QUE SUSTENTAN LOS ACUERDOS INSTITUCIONALES U OTROS QUE GARANTIZAN EL FINANCIAMIENTO DE LOS GASTOS DE OPERACIÓN Y MANTENIMIENTO
B25: DOCUMENTO | E25: ENTIDAD / ORGANIZACIÓN | I25: COMPROMISO
B30: 11.2. Capacidad de Gestión del Operador
B32: 11.2.1. CAPACIDAD DE GESTIÓN DEL OPERADOR
B34: Incluye organigrama del funcionamiento | E34: Puestos | I34: Honorarios por puesto | J34: Perfil del Puesto | L34: Roles del puesto
B42: 11.2.2. GESTIÓN INTEGRAL DE RIESGOS
B44: TIPO DE PELIGRO | F44: DESCRIPCIÓN DEL PELIGRO | L44: PROBABILIDAD DE OCURRENCIA | N44: IMPACTO | P44: MEDIDAS DE MITIGACIÓN (RESILENCIA) | T44: COSTO (S/)
L45: Mayor | N45: Medio
B50: TOTAL | T50: =SUM(T45:U49) -> 0
B51: NOTA: LOS COSTOS ASOCIADOS A LA GESTIÓN DE RIESGOS DEBERÁN SER INCORPORADOS A CADA UNA DE LAS ACCIONES QUE LO GENEREN

Sheet 12.GESTIÓN
B18: SECCIÓN N°12: GESTIÓN DEL PROYECTO
B20: 12.1. Modalidad de ejecución del proyecto
B22: Se deberá marcar la modalidad de ejecución del proyecto ya que, dependiendo de esta, las capacidades pueden ser distintas
B24: Tipo de ejecución | G24: Marcar
B25: Administración directa
B26: Administración indirecta – por contrata
B27: Administración indirecta – Asociación Público Privado (APP)
B28: Administración indirecta – Núcleo Ejecutor
B29: Administración indirecta – Ley 29230 (Obras por Impuestos)
B32: 12.2. Entidad u órgano que estará a cargo de la operación y mantenimiento
B36: 12.3. Fuente de financiamiento
B38: Fuente de Financiamiento | C38: Marcar | G38: Marcar
B39: Recursos ordinarios
B40: Recursos directamente recaudados
B41: Recursos por operaciones oficiales de crédito
B42: Donaciones y transferencias
B43: Recursos determinados
B45: En caso se seleccione como fuente de financiamiento ROOC, se deberá sustentar la estructuración financiera del monto de inversión del Proyecto.
B47: 12.4. Requerimientos institucionales y/o normativos
B49: REQUERIMIENTOS INSTITUCIONALES Y NORMATIVOS | F49: FASE FORMULACIÓN | H49: FASE DE EJECUCIÓN
B50: SANEAMIENTO FÍSICO LEGAL | C50: TERRENO DE PRIVADO O DE PROPIEDAD DE COMUNIDAD CAMPESINA | D50: TRUE | F50: =+IF(D50=FALSE,"","CARGO DE INICIO DE TRÁMITE DE INSCRIPCIÓN ANTE SUNARP (COMPRA-VENTA, CESIÓN EN USO, DONACIÓN, TRANSFERENCIA U OTRO MECANISMO LEGAL)") -> CARGO DE INICIO DE TRÁMITE DE INSCRIPCIÓN ANTE SUNARP (COMPRA-VENTA, CESIÓN EN USO, DONACIÓN, TRANSFERENCIA U OTRO MECANISMO LEGAL) | H50: =+IF(D50=FALSE,"","TERRENO REGISTRADO EN SUNARP A FAVOR DE LA ENTIDAD COMPETENTE (GOBIERNO LOCAL, GOBIERNO REGIONAL, GOBIERNO NACIONAL)") -> TERRENO REGISTRADO EN SUNARP A FAVOR DE LA ENTIDAD COMPETENTE (GOBIERNO LOCAL, GOBIERNO REGIONAL, GOBIERNO NACIONAL)
C51: TERRENO DE ENTIDAD PÚBLICA (SBN, MINISTERIO, ETC) | D51: TRUE | F51: =+IF(D51=FALSE,"","PARTIDA REGISTRAL ACTUALIZADA Y SOLICITUD DE TRANSFERENCIA DEL TERRENO A FAVOR DE LA ENTIDAD PÚBLICA QUE SE HARA CARGO DE LA OPERACIÓN Y MANTENIMIENTO DEL PROYECTO") -> PARTIDA REGISTRAL ACTUALIZADA Y SOLICITUD DE TRANSFERENCIA DEL TERRENO A FAVOR DE LA ENTIDAD PÚBLICA QUE SE HARA CARGO DE LA OPERACIÓN Y MANTENIMIENTO DEL PROYECTO | H51: =+IF(D51=FALSE,"","PARTIDA REGISTRAL ACTUALIZADA (INCLUYE TRANSFERENCIA)") -> PARTIDA REGISTRAL ACTUALIZADA (INCLUYE TRANSFERENCIA)
C52: TERRENO DE PROPIEDAD DE LA MUNICIPALIDAD Y/O GOBIERNO REGIONAL | D52: TRUE | F52: =+IF(D52=FALSE,"","PARTIDA REGISTRAL ACTUALIZADA") -> PARTIDA REGISTRAL ACTUALIZADA | H52: =+IF(D52=FALSE,"","PARTIDA REGISTRAL ACTUALIZADA") -> PARTIDA REGISTRAL ACTUALIZADA
B53: CONVENIO INTERINSTITUCIONAL ENTRE LOS DISTINTOS NIVELES DE GOBIERNO (GOBIERNO NACIONAL, GOBIERNO REGIONAL, GOBIERNO LOCAL) | D53: TRUE | F53: =+IF(D53=FALSE,"","CONVENIO DE FORMULACIÓN SUSCRITO ENTRE LOS DISTINTOS NIVELES DE GOBIERNO") -> CONVENIO DE FORMULACIÓN SUSCRITO ENTRE LOS DISTINTOS NIVELES DE GOBIERNO | H53: =+IF(D53=FALSE,"","CONVENIO DE EJECUCIÓN SUSCRITO ENTRE LOS DISTINTOS NIVELES DE GOBIERNO") -> CONVENIO DE EJECUCIÓN SUSCRITO ENTRE LOS DISTINTOS NIVELES DE GOBIERNO
B54: OTRO (ESPECIFICAR): | D54: FALSE

Sheet 13.IMPACTO AMBIENTAL
B16: SECCIÓN N°13: IMPACTO AMBIENTAL
B18: 13.1. Impacto ambiental
B20: IMPACTOS NEGATIVOS | F20: MEDIDAS DE MITIGACIÓN | I20: COSTO (S/)
B21: Durante la Ejecución
B22: Impacto 1:
B23: Impacto 2:
B24: …
B25: Durante el Funcionamiento
B26: Impacto 1:
B27: Impacto 2:
B28: …

Sheet 14.MATRIZ MARCO LOGICO
B17: SECCIÓN N°14: MARCO LÓGICO
B19: 14.1. RESUMEN DEL PROYECTO: MATRIZ DEL MARCO LÓGICO
B21: Nivel de objetivo | E21: Descripción | H21: Indicadores | L21: Medios de verificación | O21: Supuestos
B22: Fin | E22: AUMENTO DEL APROVECHAMIENTO SOSTENIBLE DEL CAPITAL NATURAL | H22: ='4.UNIDAD PRODUCTORA'!O58 -> 0 | I22: =IF(E22="","","HECTÁREAS DE ECOSISTEMAS APROVECHADOS DE MANERA SOSTENIBLE") -> HECTÁREAS DE ECOSISTEMAS APROVECHADOS DE MANERA SOSTENIBLE | L22: DIAGNÓSTICO DE LOS PLANES DE DESARROLLO. REPORTES DEL AREA ENCARGADA DE LA RECUPERACIÓN DEL AREA DEGRADADA, ENTRE OTROS
B23: Propósito | E23: ='6.PROBLEMA-OBJETIVO'!B69 -> RECUPERACIÓN DEL SERVICIO ECOSISTÉMICO DE REGULACIÓN HÍDRICA DE LA MICROCUENCA DE 0 | H23: =+'FLUJO DE COSTOS'!C70 -> 0 | I23: =IF(E23="","","INCREMENTO DEL CAUDAL EN ÉPOCA DE ESTIAJE")&"*" -> INCREMENTO DEL CAUDAL EN ÉPOCA DE ESTIAJE* | L23: INFORME DEL ÁREA RESPONSABLE DE LA RECUPERACIÓN DEL ÁREA DEGRADADA | O23: EL ÁREA ENCARGADA CUMPLE CON LAS ACCIONES DE MONITOREO Y CONTROL PARA LA RECUPERACIÓN DEL ÁREA DEGRADADA
B24: Componentes/ Productos | E24: ='6.PROBLEMA-OBJETIVO'!C102 -> RECUPERACIÓN DE LA COBERTURA VEGETAL NATIVA DEL ECOSISTEMA PRINCIPAL | H24: ='9.COSTOS '!K93 -> 0 | I24: =IF(E24="","",CONCATENATE('8.ANALISIS TÉCNICO'!E106)) -> HECTÁREAS DE COBERTURA VEGETAL INCREMENTADAS DEL ECOSISTEMA PRINCIPAL | L24: OTRO | X24: LA POBLACIÓN BENEFICIARIA SENSIBILIZADA QUE RECIBIÓ CAPACITACIÓN Y ASISTENCIA TÉCNICA INTERNALIZA Y APLICA CONOCIMIENTOS Y EXPERIENCIAS ADQUIRIDAS
E25: ='6.PROBLEMA-OBJETIVO'!C105 -> RECUPERACIÓN DE LAS CARACTERÍSTICAS DE LA TURBA DEL ECOSISTEMA PRINCIPAL | H25: ='9.COSTOS '!F94 -> 0 | I25: =IF(E25="","",CONCATENATE('8.ANALISIS TÉCNICO'!E110)) -> HECTÁREAS DE LA ESTRUCTURA DE LA TURBA RECUPERADA DEL ECOSISTEMA PRINCIPAL | L25: INFORMES DE EJECUCIÓN DE LOS TALLERES DE CAPACITACIÓN AL PERSONAL MUNICIPAL ENCARGADO DE LA RECUPERACIÓN | X25: LAS ENTIDADES QUE RECIBIERON CAPACITACIÓN Y ASISTENCIA TÉCNICA INTERNALIZAN Y APLICAN CONOCIMIENTOS Y EXPERIENCIAS ADQUIRIDAS
E26: ='6.PROBLEMA-OBJETIVO'!C107 -> RECUPERACIÓN DE LA COBERTURA VEGETAL DE LOS ECOSISTEMAS ASOCIADOS | H26: ='9.COSTOS '!F95 -> 0 | I26: =IF(E26="","",CONCATENATE('8.ANALISIS TÉCNICO'!E113)) -> HECTÁREAS DE COBERTURA VEGETAL INCREMENTADAS DE LOS ECOSISTEMAS ASOCIADOS
E27: ='6.PROBLEMA-OBJETIVO'!C111 -> RECUPERACIÓN DE LAS CARACTERÍSTICAS DEL SUELO DEL ECOSISTEMA ASOCIADO | H27: ='9.COSTOS '!F96 -> 0 | I27: =IF(E27="","",CONCATENATE('8.ANALISIS TÉCNICO'!E118)) -> HECTÁREAS DE LA ESTRUCTURA DEL SUELO RECUPERADA DE LOS ECOSISTEMAS ASOCIADOS
E28: ='6.PROBLEMA-OBJETIVO'!C113 -> ADAPTACIÓN A LOS REGÍMENES DE PRECIPITACIÓN Y TEMPERATURAS | H28: ='9.COSTOS '!F97 -> 0 | I28: =IF(E28="","",CONCATENATE('8.ANALISIS TÉCNICO'!E121)) -> NÚMERO DE MEDIDAS DE ADAPTACIÓN AL RÉGIMEN DE PRECIPITACIONES Y TEMPERATURAS
E29: ='6.PROBLEMA-OBJETIVO'!C119 -> ADECUADAS PRÁCTICAS DEL MANEJO DEL ECOSISTEMA | H29: ='9.COSTOS '!F98 -> 0 | I29: =IF(E29="","",CONCATENATE('8.ANALISIS TÉCNICO'!E128)) -> POBLADORES CON ADECUADAS CAPACIDADES EN PRÁCTICAS DE MANEJO DE LOS ECOSISTEMAS DE INTERÉS HÍDRICO
E30: ='6.PROBLEMA-OBJETIVO'!C125 -> ADECUADAS CAPACIDADES DE LAS ENTIDADES A CARGO DE LA GESTIÓN DEL ECOSISTEMA | H30: ='9.COSTOS '!F99 -> 0 | I30: =IF(E30="","",CONCATENATE('8.ANALISIS TÉCNICO'!E135)) -> N° DE ÁREAS U ÓRGANOS ENCARGADOS DE LA GESTIÓN DEL ECOSISTEMA DE INTERÉS HÍDRICO CON ADECUADAS CAPACIDADES EN GESTIÓN DEL ECOSISTEMA
B31: Acciones | E31: ='6.PROBLEMA-OBJETIVO'!C102 -> RECUPERACIÓN DE LA COBERTURA VEGETAL NATIVA DEL ECOSISTEMA PRINCIPAL
E32: ='8.ANALISIS TÉCNICO'!G107 -> REVEGETACIÓN CON ESPECIES NATIVAS | H32: ='8.ANALISIS TÉCNICO'!L107 -> 0 | I32: =IF(E32="","",CONCATENATE('COSTOS UNITARIOS'!R12," DE ",'8.ANALISIS TÉCNICO'!G107," A UN COSTO DE S/. ",'COSTOS UNITARIOS'!W12)) -> HA DE REVEGETACIÓN CON ESPECIES NATIVAS A UN COSTO DE S/. 0 | X32: LA OCURRENCIA DE LAS LLUVIAS NO SE EXTIENDE MÁS ALLÁ DE SU PERIODO NORMAL
E33: ='8.ANALISIS TÉCNICO'!G108 -> INSTALACIÓN DE CERCOS EXCLUIDORES | H33: ='8.ANALISIS TÉCNICO'!L108 -> 0 | I33: =IF(E33="","",CONCATENATE('COSTOS UNITARIOS'!R15," DE ",'8.ANALISIS TÉCNICO'!G108," A UN COSTO DE S/. ",'COSTOS UNITARIOS'!W15)) -> ML DE INSTALACIÓN DE CERCOS EXCLUIDORES A UN COSTO DE S/. 0 | X33: LOS RECURSOS PARA LA EJECUCIÓN NO SON MODIFICADOS PARA OTRAS PRIORIDADES
E34: ='8.ANALISIS TÉCNICO'!G109 -> OTRO: | H34: ='8.ANALISIS TÉCNICO'!L109 -> 0 | I34: =IF(E34="","",CONCATENATE('COSTOS UNITARIOS'!R19," DE ",'8.ANALISIS TÉCNICO'!G109," A UN COSTO DE S/. ",'COSTOS UNITARIOS'!W19)) -> DE OTRO: A UN COSTO DE S/. 0
E35: ='6.PROBLEMA-OBJETIVO'!C105 -> RECUPERACIÓN DE LAS CARACTERÍSTICAS DE LA TURBA DEL ECOSISTEMA PRINCIPAL
E36: ='8.ANALISIS TÉCNICO'!G111 -> REVEGETACIÓN CON ESPECIES NATIVAS | H36: ='8.ANALISIS TÉCNICO'!L111 -> 0 | I36: =IF(E36="","",CONCATENATE('COSTOS UNITARIOS'!R22," DE ",'8.ANALISIS TÉCNICO'!G111," A UN COSTO DE S/. ",'COSTOS UNITARIOS'!W22)) -> HA DE REVEGETACIÓN CON ESPECIES NATIVAS A UN COSTO DE S/. 0
E37: ='8.ANALISIS TÉCNICO'!G112 -> OTRO: | H37: ='8.ANALISIS TÉCNICO'!L112 -> 0 | I37: =IF(E37="","",CONCATENATE('COSTOS UNITARIOS'!R25," DE ",'8.ANALISIS TÉCNICO'!G112," A UN COSTO DE S/. ",'COSTOS UNITARIOS'!W25)) -> DE OTRO: A UN COSTO DE S/. 0
E38: ='6.PROBLEMA-OBJETIVO'!C107 -> RECUPERACIÓN DE LA COBERTURA VEGETAL DE LOS ECOSISTEMAS ASOCIADOS
E39: ='8.ANALISIS TÉCNICO'!G114 -> REFORESTACIÓN CON ESPECIES NATIVAS | H39: ='8.ANALISIS TÉCNICO'!L114 -> 0 | I39: =IF(E39="","",CONCATENATE('COSTOS UNITARIOS'!R28," DE ",'8.ANALISIS TÉCNICO'!G114," A UN COSTO DE S/. ",'COSTOS UNITARIOS'!W28)) -> HA DE REFORESTACIÓN CON ESPECIES NATIVAS A UN COSTO DE S/. 0
E40: ='8.ANALISIS TÉCNICO'!G115 -> REVEGETACIÓN CON ESPECIES NATIVAS | H40: ='8.ANALISIS TÉCNICO'!L115 -> 0 | I40: =IF(E40="","",CONCATENATE('COSTOS UNITARIOS'!R34," DE ",'8.ANALISIS TÉCNICO'!G115," A UN COSTO DE S/. ",'COSTOS UNITARIOS'!W34)) -> HA DE REVEGETACIÓN CON ESPECIES NATIVAS A UN COSTO DE S/. 0
E41: ='8.ANALISIS TÉCNICO'!G116 -> INSTALACIÓN DE CERCOS EXCLUIDORES | H41: ='8.ANALISIS TÉCNICO'!L116 -> 0 | I41: =IF(E41="","",CONCATENATE('COSTOS UNITARIOS'!R37," DE ",'8.ANALISIS TÉCNICO'!G116," A UN COSTO DE S/. ",'COSTOS UNITARIOS'!W37)) -> ML DE INSTALACIÓN DE CERCOS EXCLUIDORES A UN COSTO DE S/. 0
E42: ='8.ANALISIS TÉCNICO'!G117 -> OTRO: | H42: ='8.ANALISIS TÉCNICO'!L117 -> 0 | I42: =IF(E42="","",CONCATENATE('COSTOS UNITARIOS'!R41," DE ",'8.ANALISIS TÉCNICO'!G117," A UN COSTO DE S/. ",'COSTOS UNITARIOS'!W41)) -> DE OTRO: A UN COSTO DE S/. 0
E43: ='6.PROBLEMA-OBJETIVO'!C111 -> RECUPERACIÓN DE LAS CARACTERÍSTICAS DEL SUELO DEL ECOSISTEMA ASOCIADO
E44: ='8.ANALISIS TÉCNICO'!G119 -> ENRIQUECIMIENTO DE SUELOS | H44: ='8.ANALISIS TÉCNICO'!L119 -> 0 | I44: =IF(E44="","",CONCATENATE('COSTOS UNITARIOS'!R44," DE ",'8.ANALISIS TÉCNICO'!G119," A UN COSTO DE S/. ",'COSTOS UNITARIOS'!W44)) -> HA DE ENRIQUECIMIENTO DE SUELOS A UN COSTO DE S/. 0
E45: ='8.ANALISIS TÉCNICO'!G120 -> OTRO: | H45: ='8.ANALISIS TÉCNICO'!L120 -> 0 | I45: =IF(E45="","",CONCATENATE('COSTOS UNITARIOS'!R49," DE ",'8.ANALISIS TÉCNICO'!G120," A UN COSTO DE S/. ",'COSTOS UNITARIOS'!W49)) -> DE OTRO: A UN COSTO DE S/. 0
E46: ='6.PROBLEMA-OBJETIVO'!C113 -> ADAPTACIÓN A LOS REGÍMENES DE PRECIPITACIÓN Y TEMPERATURAS
E47: ='8.ANALISIS TÉCNICO'!G122 -> REPARACIÓN DEL CANAL AMUNADOR | H47: ='8.ANALISIS TÉCNICO'!L122 -> 0 | I47: =IF(E47="","",CONCATENATE('COSTOS UNITARIOS'!R52," DE ",'8.ANALISIS TÉCNICO'!G122," A UN COSTO DE S/. ",'COSTOS UNITARIOS'!W52)) -> HA DE REPARACIÓN DEL CANAL AMUNADOR A UN COSTO DE S/. 0
E48: ='8.ANALISIS TÉCNICO'!G123 -> REPARACIÓN DEL CANAL DE MAMANTEO | H48: ='8.ANALISIS TÉCNICO'!L123 -> 0 | I48: =IF(E48="","",CONCATENATE('COSTOS UNITARIOS'!R56," DE ",'8.ANALISIS TÉCNICO'!G123," A UN COSTO DE S/. ",'COSTOS UNITARIOS'!W56)) -> ML DE REPARACIÓN DEL CANAL DE MAMANTEO A UN COSTO DE S/. 0
E49: ='8.ANALISIS TÉCNICO'!G124 -> CONSTRUCCIÓN DE ZANJAS DE INFILTRACIÓN | H49: ='8.ANALISIS TÉCNICO'!L124 -> 0 | I49: =IF(E49="","",CONCATENATE('COSTOS UNITARIOS'!R60," DE ",'8.ANALISIS TÉCNICO'!G124," A UN COSTO DE S/. ",'COSTOS UNITARIOS'!W60)) -> ML DE CONSTRUCCIÓN DE ZANJAS DE INFILTRACIÓN A UN COSTO DE S/. 0
E50: ='8.ANALISIS TÉCNICO'!G125 -> INSTALACIÓN DE QOCHAS | H50: ='8.ANALISIS TÉCNICO'!L125 -> 0 | I50: =IF(E50="","",CONCATENATE('COSTOS UNITARIOS'!R64," DE ",'8.ANALISIS TÉCNICO'!G125," A UN COSTO DE S/. ",'COSTOS UNITARIOS'!W64)) -> UNIDAD DE INSTALACIÓN DE QOCHAS A UN COSTO DE S/. 0
E51: ='8.ANALISIS TÉCNICO'!G127 -> OTRO: | H51: ='8.ANALISIS TÉCNICO'!L126 -> 0 | I51: =IF(E51="","",CONCATENATE('COSTOS UNITARIOS'!R71," DE ",'8.ANALISIS TÉCNICO'!G127," A UN COSTO DE S/. ",'COSTOS UNITARIOS'!W71)) -> DE OTRO: A UN COSTO DE S/. 0
E52: ='6.PROBLEMA-OBJETIVO'!C119 -> ADECUADAS PRÁCTICAS DEL MANEJO DEL ECOSISTEMA
E53: ='8.ANALISIS TÉCNICO'!G129 -> CAPACITACIÓN EN GESTIÓN INTEGRADA DE RECURSOS HÍDRICOS CON ENFOQUE DE CUENCA | H53: ='8.ANALISIS TÉCNICO'!L129 -> 0 | I53: =IF(E53="","",CONCATENATE('COSTOS UNITARIOS'!R74," DE ",'8.ANALISIS TÉCNICO'!G129," A UN COSTO DE S/. ",'COSTOS UNITARIOS'!W74)) -> EVENTO DE CAPACITACIÓN EN GESTIÓN INTEGRADA DE RECURSOS HÍDRICOS CON ENFOQUE DE CUENCA A UN COSTO DE S/. 0 | X53: LA POBLACIÓN PARTICIPA ACTIVAMENTE EN LAS ACCIONES DE SENSIBILIZACIÓN, ASISTENCIA TÉCNICA Y CAPACITACIÓN
E54: ='8.ANALISIS TÉCNICO'!G130 -> ASISTENCIA TÉCNICA EN EL MANEJO DE ECOSISTEMAS DE INTERÉS HÍDRICO | H54: ='8.ANALISIS TÉCNICO'!L130 -> 0 | I54: =IF(E54="","",CONCATENATE('COSTOS UNITARIOS'!R77," DE ",'8.ANALISIS TÉCNICO'!G130," A UN COSTO DE S/. ",'COSTOS UNITARIOS'!W77)) -> EVENTO DE ASISTENCIA TÉCNICA EN EL MANEJO DE ECOSISTEMAS DE INTERÉS HÍDRICO A UN COSTO DE S/. 0 | X54: LAS AUTORIDADES PARTICIPAN ACTIVAMENTE EN LAS ACCIONES DE SENSIBILIZACIÓN, ASISTENCIA TÉCNICA Y CAPACITACIÓN
E55: ='8.ANALISIS TÉCNICO'!G131 -> CAPACITACIÓN EN BUENAS PRÁCTICAS PARA LA ADAPTACIÓN AL CAMBIO CLIMÁTICO Y GESTIÓN DE RIESGOS | H55: ='8.ANALISIS TÉCNICO'!L131 -> 0 | I55: =IF(E55="","",CONCATENATE('COSTOS UNITARIOS'!R80," DE ",'8.ANALISIS TÉCNICO'!G131," A UN COSTO DE S/. ",'COSTOS UNITARIOS'!W80)) -> TALLER DE CAPACITACIÓN EN BUENAS PRÁCTICAS PARA LA ADAPTACIÓN AL CAMBIO CLIMÁTICO Y GESTIÓN DE RIESGOS A UN COSTO DE S/. 0 | X55: LOS RECURSOS PARA LA EJECUCIÓN NO SON MODIFICADOS PARA OTRAS PRIORIDADES
E56: ='8.ANALISIS TÉCNICO'!G132 -> SENSIBILIZACIÓN RELACIONADA A LA RECUPERACIÓN DEL SERVICIO ECOSISTÉMICO DE REGULACIÓN HÍDRICA | H56: ='8.ANALISIS TÉCNICO'!L132 -> 0 | I56: =IF(E56="","",CONCATENATE('COSTOS UNITARIOS'!R82," DE ",'8.ANALISIS TÉCNICO'!G132," A UN COSTO DE S/. ",'COSTOS UNITARIOS'!W82)) -> TALLER DE SENSIBILIZACIÓN RELACIONADA A LA RECUPERACIÓN DEL SERVICIO ECOSISTÉMICO DE REGULACIÓN HÍDRICA A UN COSTO DE S/. 0
E57: ='8.ANALISIS TÉCNICO'!G133 -> INTERCAMBIO DE EXPERIENCIAS RELACIONADA A LA RECUPERACIÓN DEL SERVICIO ECOSISTÉMICO DE REGULACIÓN HÍDRICA | H57: ='8.ANALISIS TÉCNICO'!L133 -> 0 | I57: =IF(E57="","",CONCATENATE('COSTOS UNITARIOS'!R84," DE ",'8.ANALISIS TÉCNICO'!G133," A UN COSTO DE S/. ",'COSTOS UNITARIOS'!W84)) -> EVENTO DE INTERCAMBIO DE EXPERIENCIAS RELACIONADA A LA RECUPERACIÓN DEL SERVICIO ECOSISTÉMICO DE REGULACIÓN HÍDRICA A UN COSTO DE S/. 0
E58: ='8.ANALISIS TÉCNICO'!G134 -> OTRO: | H58: ='8.ANALISIS TÉCNICO'!L134 -> 0 | I58: =IF(E58="","",CONCATENATE('COSTOS UNITARIOS'!R86," DE ",'8.ANALISIS TÉCNICO'!G134," A UN COSTO DE S/. ",'COSTOS UNITARIOS'!W86)) -> DE OTRO: A UN COSTO DE S/. 0
E59: ='6.PROBLEMA-OBJETIVO'!C125 -> ADECUADAS CAPACIDADES DE LAS ENTIDADES A CARGO DE LA GESTIÓN DEL ECOSISTEMA
E60: ='8.ANALISIS TÉCNICO'!G136 -> CAPACITACIÓN A FUNCIONARIOS PÚBLICOS SOBRE LA GESTIÓN INTEGRADA DEL RECURSO HÍDRICO CON ENFOQUE DE CUENCA | H60: ='8.ANALISIS TÉCNICO'!L136 -> 0 | I60: =IF(E60="","",CONCATENATE('COSTOS UNITARIOS'!R89," DE ",'8.ANALISIS TÉCNICO'!G136," A UN COSTO DE S/. ",'COSTOS UNITARIOS'!W89)) -> TALLER DE CAPACITACIÓN A FUNCIONARIOS PÚBLICOS SOBRE LA GESTIÓN INTEGRADA DEL RECURSO HÍDRICO CON ENFOQUE DE CUENCA A UN COSTO DE S/. 0
E61: ='8.ANALISIS TÉCNICO'!G137 -> CAPACITACIÓN A FUNCIONARIOS PÚBLICOS SOBRE LAS MEDIDAS DE ADAPTACIÓN EN UN CONTEXTO DE CAMBIO CLIMÁTICO EN LA GESTIÓN INTEGRADA DE LOS RECURSOS HÍDRICOS | H61: ='8.ANALISIS TÉCNICO'!L137 -> 0 | I61: =IF(E61="","",CONCATENATE('COSTOS UNITARIOS'!R91," DE ",'8.ANALISIS TÉCNICO'!G137," A UN COSTO DE S/. ",'COSTOS UNITARIOS'!W91)) -> TALLER DE CAPACITACIÓN A FUNCIONARIOS PÚBLICOS SOBRE LAS MEDIDAS DE ADAPTACIÓN EN UN CONTEXTO DE CAMBIO CLIMÁTICO EN LA GESTIÓN INTEGRADA DE LOS RECURSOS HÍDRICOS A UN COSTO DE S/. 0
E62: ='8.ANALISIS TÉCNICO'!G138 -> DESARROLLO DE CAPACIDADES PARA EL MONITOREO Y SEGUIMIENTO DE LOS ECOSISTEMAS DE INTERÉS HÍDRICO Y EL SERVICIO ECOSISTÉMICO DE REGULACIÓN HÍDRICA | H62: ='8.ANALISIS TÉCNICO'!L138 -> 0 | I62: =IF(E62="","",CONCATENATE('COSTOS UNITARIOS'!R93," DE ",'8.ANALISIS TÉCNICO'!G138," A UN COSTO DE S/. ",'COSTOS UNITARIOS'!W93)) -> TALLER DE DESARROLLO DE CAPACIDADES PARA EL MONITOREO Y SEGUIMIENTO DE LOS ECOSISTEMAS DE INTERÉS HÍDRICO Y EL SERVICIO ECOSISTÉMICO DE REGULACIÓN HÍDRICA A UN COSTO DE S/. 0
E63: ='8.ANALISIS TÉCNICO'!G139 -> INTERCAMBIO DE EXPERIENCIAS SOBRE LA GESTIÓN INTEGRADA DEL RECURSO HÍDRICO CON ENFOQUE DE CUENCA | H63: ='8.ANALISIS TÉCNICO'!L139 -> 0 | I63: =IF(E63="","",CONCATENATE('COSTOS UNITARIOS'!R95," DE ",'8.ANALISIS TÉCNICO'!G139," A UN COSTO DE S/. ",'COSTOS UNITARIOS'!W95)) -> EVENTO DE INTERCAMBIO DE EXPERIENCIAS SOBRE LA GESTIÓN INTEGRADA DEL RECURSO HÍDRICO CON ENFOQUE DE CUENCA A UN COSTO DE S/. 0
E64: ='8.ANALISIS TÉCNICO'!G140 -> OTRO: | H64: ='8.ANALISIS TÉCNICO'!L140 -> 0 | I64: =IF(E64="","",CONCATENATE('COSTOS UNITARIOS'!R97," DE ",'8.ANALISIS TÉCNICO'!G140," A UN COSTO DE S/. ",'COSTOS UNITARIOS'!W97)) -> DE OTRO: A UN COSTO DE S/. 0
B71: (*) En relación a este indicador, en base a la definición de los lineamientos este es el indicador que mide el servicio ecosistémico de regulación hídrica, siendo el más idóneo en evaluar en la Matriz de Marco Lógico. Para su estimación se tiene el Método RAS, que se encuentra en la pestaña de "COMUNICACIÓN TÉCNICA" en la situación Con Proyecto (C/P). Cabe señalar que en la pestaña de "UNIDAD PRODUCTORA" y "PROBLEMA-OBJETIVO" se está considerando a las hectáreas recuperadas, debido al reporte del indicador de brecha de la tipología de proyecto. Ello no quiere decir que no se estime el nivel de ganancia hídrica de la recuperación de los ecosistemas, el cual se refleja en la Matriz del Marco Lógico. Del mismo modo, en caso que la Unidad Formuladora determine la necesidad de incluir otro indicador complementario al propuesto, se podría considerar el indicador de"Hectáreas de ecosistema recuperado" con el fin de lograr una mejor evaluación de resultados propuestos en el proyecto.
B72: * Para acceder a datos de estaciones meteorológicas del senamhi, deberá ingresar en el siguiente link: https://www.senamhi.gob.pe/?&p=descarga-datos-hidrometeorologicos
B74: * Para obtener mayor información sobre los indicadores de sequía, deberá ingresar al siguiente link: https://www.senamhi.gob.pe/?&p=sequias

Sheet 15.CONCLUS-RECOMEND
B7: Se debe indicar el resultado del proceso de formulación y evaluación del proyecto (viable o no viable) y detallar los principales argumentos que sustentan dicho resultado, en términos de lo siguiente: - Cumplimiento de los tres atributos que definen la condición de viabilidad de un proyecto(*), en caso el proyecto resulte viable. Si el resultado es no viable, indicar qué atributo o atributos no se logró cumplir. - Emitir un juicio técnico sobre la calidad y la pertinencia del grado de profundización de la información empleada para la elaboración del estudio de preinversión, así como la consistencia y coherencia de los supuestos establecidos, las fuentes de información, las normas técnicas, los parámetros y metodologías empleadas, entre otros elementos claves relacionados con el fundamento técnico y económico de la decisión de inversión.
B11: (*)Ver literal q), artículo 2 del Reglamento del Decreto Legislativo N° 1252
B14: Como resultado del proceso de elaboración del estudio de preinversión, la UF planteará recomendaciones técnicas para la UEI que asumirá la ejecución y posterior operación y mantenimiento, de corresponder. Tales recomendaciones deberán estar ligadas con las acciones o condiciones que se deberán asegurar para reducir o eliminar los riesgos que el proyecto podría enfrentar durante las siguientes fases del Ciclo de Inversiones. Principalmente, se deberá emitir como mínimo, recomendaciones sobre lo siguiente: Fase de Ejecución - Las variables críticas que pueden influir en la estimación de los costos de inversión, así como los plazos de ejecución del proyecto, de tal forma de generar alertas sobre posibles sobrecostos y sobreplazos durante la etapa de ejecución. Señalar las limitaciones de información que enfrentó la UF para realizar tales estimaciones. - Otros aspectos críticos que la UF juzgue conveniente resaltar, acorde con las restricciones de información que enfrentó durante la preparación del estudio de preinversión. Fase de Funcionamiento - Las condiciones que podrían afectar la sostenibilidad del proyecto en general y la entrega de servicios a la población beneficiaria en particular, en los aspectos financieros, presupuestales (asignación de la operación y mantenimiento), de cobros de tarifas, entre otros. Alertar sobre los riesgos de deterioro acelerado de los activos que se generan con el proyecto debido a un mantenimiento intermitente o insuficiente durante el periodo de funcionamiento del proyecto. - Otros aspectos críticos que la UF juzgue conveniente resaltar, acorde con las restricciones dde información que enfrentó durante la preparación del estudio de preinversión.

Sheet FIRMAS
B13: Preparado o supervisado por: | E13: ……………………………………………………………………………. | I13: Fecha: | J13: …………………………………………………………………………….
E14: Especialista de la UF o Responsable de la UF
B20: Declarado viable por: | E20: ……………………………………………………………………………. | I20: Fecha: | J20: …………………………………………………………………………….
E21: Responsable de la UF

Sheet PROTOCOLO FINAL
B7: Número | C7: Criterios de cumplimiento | J7: Sí | K7: Comentarios
B8: Alineamiento al cierre de una brecha prioritaria:
B9: 1 | C9: ¿El proyecto de inversión contribuye a la meta de cierre de una brecha prioritaria?
B10: Identificación
B11: 2 | C11: ¿Se ha delimitado el terreno y definido sus características?
B12: 3 | C12: ¿Han sido identificados los peligros naturales, socionaturales y antrópicos que podrían impactar sobre la infraestructura existente o sobre el proyecto durante su vida útil?
B13: 4 | C13: ¿Se ha examinado la exposición y vulnerabilidad de la unidad productora frente a peligros identificados en el área de estudio?
B14: 5 | C14: ¿Se han identificado y caracterizado a la población afectada y otros agentes involucrados con el proyecto de inversión?
B15: 6 | C15: ¿El problema central ha sido definido como una situación negativa o hecho real que afecta a un sector de la población? ¿Las causas explican el problema central? ¿Los efectos son consecuencias del problema identificado?
B16: 7 | C16: ¿El objetivo central o propósito del proyecto expresa la solución del problema central y los medios definidos para el proyecto son suficientes para alcanzar el objetivo central?
B17: 8 | C17: ¿Las acciones que contemplan las alternativas de solución se derivan del análisis de los medios fundamentales?
B18: 9 | C18: ¿Las alternativas planteadas se basan en evidencia técnica, científica o experiencia de otros proyectos?
B19: Formulación
B20: 10 | C20: ¿El Horizonte de Evaluación del Proyecto ha sido adecuadamente determinado?
B21: 11 | C21: ¿La opción tecnológica propuesta para el proyecto se encuentra adecuadamente justificada?
B22: 12 | C22: ¿Las alternativas de solución están conforme y guardan correspondencia con los niveles de servicio y estándares de calidad establecidos por el sector competente?
B23: 13 | C23: ¿Las alternativas consideran acciones para reducir los probables daños o pérdidas que podrían generar en caso de la ocurrencia de desastres?
B24: 14 | C24: ¿Las alternativas consideran acciones para reducir el impacto ambiental que podría generar el proyecto?
B25: 15 | C25: ¿El presupuesto de inversión de cada alternativa de solución está desagregado a nivel de acciones, actividades y tareas? ¿El presupuesto de inversión del proyecto ha incluido los costos de mitigación ambiental y riesgos?
B26: 16 | C26: ¿Los costos de operación y mantenimiento tienen un razonable nivel de desagregación y se encuentran justificados en relación a la demanda por atender con el proyecto?
B27: Evaluación
B28: 17 | C28: ¿La metodología de evaluación social seleccionada (costo beneficio o costo efectividad) guarda correspondencia con la tipología de proyecto de inversión?
B29: 18 | C29: ¿Han sido calculados los indicadores de evaluación social para cada alternativa de solución?
B30: 19 | C30: ¿Se presenta el plan de implementación con las actividades necesarias (ruta crítica) para la ejecución del proyecto?
B31: 20 | C31: ¿Se han definido los requerimientos institucionales y normativos que se deben cumplir durante la fase de ejecución y fase de funcionamiento?
B32: 21 | C32: ¿Se han identificado los probables impactos positivos y/o negativos del proyecto en el ambiente?
B33: 22 | C33: ¿Se ha definido quién financiará la operación y mantenimiento del proyecto?

Sheet 16.ANEXOS DE LA FICHA
B10: SECCIÓN N° 16: ANEXOS
B12: Marcas si se incluyen los siguientes anexos (según corresponda):
B14: Nro. | C14: Descripción del anexo | O14: Marcar
B15: 1 | C15: DOCUMENTO DE SUSTENTO DE USO PRIORITARIO
B16: 2 | C16: PLANO TOPOGRÁFICO O PLANO DE LA UBICACIÓN DEL TERRITORIO
B17: 3 | C17: ESTUDIO DE CARACTERIZACIÓN DEL SUELO, SEGÚN TIPO DE INTERES HÍDRICO
B18: 4 | C18: ACTUAL Y TENDENCIAS IDENTIFICACIÓN DE PELIGROS ASOCIADOS AL CAMBIO CLIMÁTICO
B19: 5 | C19: INFORME TÉCNICO HIDROLÓGICO DE CARACTERIZACIÓN DE LA CUENCA DONDE SE UBICA EL USUARIO
B20: 6 | C20: INFORME TÉCNICO DEL LEVANTAMIENTO FLORÍSTICO RÁPIDO DE LAS FORMACIONES VEGETALES DE LOS ECOSISTEMAS DE INTERES HÍDRICO
B21: 7 | C21: FICHAS DE MANEJO DE LOS ECOSISTEMAS DE INTERÉS HÍDRICO
B22: 8 | C22: FICHAS DE GESTIÓN INTEGRADA DEL SERVICIO ECOSISTÉMICO ANDINO RURAL
B23: 9 | C23: DOCUMENTACIÓN DE SANEAMIENTO FÍSICO-LEGAL
B24: 10 | C24: DOCUMENTO DE SUSTENTO DE ACUERDOS INSTITUCIONALES PARA LA OPERACIÓN Y MANTENIMIENTO (ACTA DE ACUERDO, CONVENIO MARCO, CONVENIO ESPECÍFICO, ENTRE OTROS)
B25: 11 | C25: PLANO DE INTERVENCIONES DEL PROYECTO

Sheet UNIDAD HIDROGRÁFICA
B11: Las definiciones que se presentan en este marco conceptual se encuentran relacionadas a la Unidad Hidrográfica y han sido adaptadas para su uso en proyectos de inversión.
B13: DEFINICIONES RELACIONADAS A LA TIPOLOGÍA: ECOSISTEMAS
B15: a. Servicio ecosistémico de regulación hídrica: (1) Este servicio se origina cuando el ecosistema almacena agua en los periodos lluviosos y la libera lentamente en los periodos secos. Es decir, el ecosistema proporciona un balance natural entre caudales en época lluviosa con caudales de estiaje. A mayor capacidad de regulación, se espera un incremento del caudal base y una reducción en época de avenidas. La regulación hídrica depende principalmente de la intensidad y la estacionalidad de las precipitaciones, la cobertura vegetal, la profundidad del suelo, la alteración de la variabilidad climática y las prácticas de conservación de agua.
B17: b. Unidades hidrográficas: (2) Es un concepto creado por el ingeniero Otto Pfafstetter en 1989, cuando desarrolló su metodología de codificación. Son espacios geográficos limitados por líneas divisorias de aguas, relacionadas espacialmente por sus códigos, donde el tamaño de sus áreas de drenaje es el único criterio de organización jerárquica.
B19: c. Cuenca hidrográfica: (3) Área delimitada por un límite topográfico bien definido (parte aguas). Es una zona geográfica donde las condiciones hidrológicas son tales que el agua se concentra en un punto en particular a partir del cual la cuenca se drena. Dentro de este límite topográfico, la cuenca presenta un complejo de suelos, geoformas, vegetación y uso de la tierra.
B21: d. Subcuenca: (4) Conjunto de microcuencas que drenan a un solo cauce con caudal fluctuante pero permanente.
B23: e. Microcuenca: (5) Toda área en la que su drenaje va a dar al cauce principal de una subcuenca. Una subcuenca está dividida en varias microcuencas
B25: 1. Lineamientos para la formulación de proyectos de inversión en las tipologías de ecosistemas, especies y apoyo al uso sostenible de la biodiversidad. 2. Aprobado por Resolución Jefatural Nº 136-2018-ANA. Lineamientos para la identificación y seguimiento de fuentes contaminantes relacionadas con los recursos hídricos. (Pp. 22) 3. Lineamientos para la formulación de proyectos de inversión en las tipologías de ecosistemas, especies y apoyo al uso sostenible de la biodiversidad. 4. Lineamientos para la formulación de proyectos de inversión en las tipologías de ecosistemas, especies y apoyo al uso sostenible de la biodiversidad. 5. Lineamientos para la formulación de proyectos de inversión en las tipologías de ecosistemas, especies y apoyo al uso sostenible de la biodiversidad.

Sheet TIPO DE ECOSISTEMAS PRINCIPAL
C8: Nombre del ecosistema | D8: BOFEDAL
C9: Definición propuesta | D9: Ecosistema andino hidromórfico con vegetación herbácea de tipo hidrófila, que se presenta en los Andes sobre suelos planos, en depresiones o ligeramente inclinados; permanentemente inundados o saturados de agua corriente (mal drenaje), con vegetación densa y compacta siempreverde, de porte almohadillado o en cojín; la fisonomía de la vegetación corresponde a herbazales de 0,1 a 0,5 metros. Los suelos orgánicos pueden ser profundos (turba). Este tipo de ecosistema es considerado un humedal andino.
C10: Factores Diagnóstico | D10: Región Natural: Andina.
D11: Bioclima: Húmedo/Superhúmedo.
D12: Fisiografía: Montaña.
D13: Rango referencial altitudinal: 3300 – 4500 m. s. n. m.
D14: Ecosistema hidromórfico andino y altoandino.
D15: Herbazales de 0,1 a 0,5 metro de altura.
D16: Vegetación densa y compacta siempreverde, de porte almohadillado o en cojín.
D17: Suele presentar dominancia de Distichia muscoides “champa” (pero no es concluyente), también Plantago rígida “champa estrella” y otras especies.
D18: Suelos planos o ligeramente inclinados.
D19: Suelos saturados o con espejo superficial de agua.
C20: Especies botánicas registradas | D20: Distichia muscoides (“champa”), Plantago rígida (“champa estrella”), Oxychloe sp., Werneria caespitosa, Hypochoeris stenocephala, Luzula peruviana, Gentiana sedifolia, Alchemilla pinnata, Alchemilla diplophylla, Lilecopsis andina, Calamagrostis eminens, C. rigescens, C. jamesoni, Scirpus rigidus (“cuchipelo” o “totora silvestre”).
C21: Fuentes | D21: Dirección de Conservación de la Biodiversidad. Intendencia Forestal y de Fauna Silvestre, 2006, Salvador y Cano, 2002, Zeballos et al., 2010, MINAM, 2011, Flores et al., 2005, Gil Mora (sf), Dirección General de Evaluación, Valoración y Financiamiento del Patrimonio Natural, del Ministerio del Ambiente, 2011, Autoridad Nacional del Agua, (sf), Urrunaga, 2010, Huamantupa, 2010, Fernández–Baca, 1991, Tovar y Oscanoa, 2002, Tovar, 1973, Carafa, 2009, INRENA, 2007, Knight Piesold Consulting, 2007, Mostacero et al., 2008, Tupayachi, 2005, Gonzales et al., 2001, Beck, 1988, PROBONA, 1995, Navarro, 1993, Sarmiento, 2000, SERNANP, 2011, Bradt y Jarvis, 2002, Flores, (sf), Van't Hooft, 2004, Tovar, 1990, Parra et al., 2004, Rocha, (sf), Weberbauer, 1945, Mostacero et al., 2007, Flores, 2014, García y Beck, 2006, Mostacero et al., 2013, Izurieta, 2005, Tovar, 2012.
C22: Distribución en el país | D22: Cajamarca, Piura, La Libertad, Ancash, Lima, Junín, Pasco, Huancavelica, Ayacucho, Apurímac, Arequipa, Cusco, Puno, Moquegua y Tacna.
C23: Localidad típica | D23: Bofedales del Lago de Junín o Chinchaycocha (departamento de Junín), bofedales del Titicaca (departamento de Puno) y bofedales de Huancavelica.
C24: Observación | D24: Rangos altitudinales referenciales varían de acuerdo a la latitud. Se sugiere recurrir a Indices de Termicidad en el proceso de mapeo. Ecosistema muy utilizado para pastoreo y otras actividades.
C27: Nombre del ecosistema | D27: HUMEDALES Y LAGUNAS ALTOANDINAS
C28: Definición propuesta | D28: Superficies saturadas o cubiertas de aguas, sean de régimen natural o artificial, quietas/estancadas (sin circulación continua) o corrientes (movimiento continuo en una misma dirección), permanentes o temporales (al menos un mes de inundación), dulces, salobres o saladas. Son regulados por factores climáticos y en constante interrelación con los seres vivos que la habitan. El agua es el principal factor controlador del medio y la vida vegetal y animal asociada a éste. Humedales andinos (lagos y lagunas, manantiales o puquios y sistemas kársticos).
C29: Factores diagnóstico | D29: Superficies saturadas o cubiertas de aguas.
D30: El agua es el principal factor controlador del medio y la vida vegetal y animal asociada a éste.
C31: Especies botánicas registradas | D31: Numerosas.
C32: Fuentes | D32: Casallas y Gunkel, 2001, IDEAM Colombia, (sf), Scott y Carbonell, 1986, Sarmiento, 2000, Gonzales et al., 2001, ONERN y AID, 1986, SERNANP, 2011, Salvador y Cano, 2002, Mostacero et al., 2007, Tovar, 2012, La Torre y Aponte, 2009, Ramírez et al., 2010, Aponte y Ramírez 2011.
C33: Distribución en el país | D33: Todo el país.
C34: Observación | D34: Esta es una definición general que considera una variedad de humedales de manera intencional. Posteriormente el MINAM y la Autoridad Nacional del Agua (ANA) deben concordar definiciones específicas.

Sheet TIPO DE ECOSISTEMA ASOCIADO
B8: Nombre del ecosistema | C8: PARAMO
B10: Definición propuesta | C10: Ecosistema andino, del norte del país, con vegetación herbácea y arbustiva emplazado sobre paisajes con presencia de lluvias estacionales y lloviznas persistentes a lo largo de todo el año y con fluctuaciones diarias marcadas de temperatura. Suelos profundos saturados e hidromórficos. La fisonomía corresponde a herbazales de 1 a 1,5 metros entremezclados con arbustos de 1 a 3 metros con individuos emergentes de hasta 4 o 5 metros. Presenta endemismos y relativamente alta riqueza de especies de flora.
B11: Factores Diagnóstico | C11: Región Natural: Andina.
C12: Bioclima: Superhúmedo.
C13: Fisiografía: Montaña
C14: Rango referencial altitudinal: de 3000 m. s. n. m.
C15: Ecosistema de alta montaña.
C16: Herbazales de 1 a 1,5 metros de alto entremezclados con arbustos de 1 a 3 metros alto (con individuos emergentes de hasta 4 o 5 metros).
C17: Cobertura del suelo suele ser superior al 35 %.
B18: Especies botánicas registradas | C18: Neurolepis aristata, Paspalum bompladianum, Agrostis tolucensis, Calamagrostis spp., Festuca spp., Pernetya spp., Cavendishia spp., Baccharis genistelloides.
B19: Fuentes | C19: Marcelo et al., 2006, Llambí y Cuesta, 2014, Sánchez, 2014, Armijos y De Bièvre, 2014, Rodríguez–Morales et al., 2014, Cammeraat et al., 2014, Tovar et al., 2014, Torres, 2005, Gobierno Regional de Cajamarca, 2012, Hofstede et al., 2003, Mena y Hofstede, 2006, Tobón 2009, Novoa et al., 2011, Ministerio del Medio Ambiente, 2002, Hofstede et al., 2014, Beltrán et al., 2009, Cadenillas, (sf), More, 2010, Viñas, 2013, Proyecto Páramo Andino Perú, 2010, Amanzo et al., 2003, Recharte et al., 2010, Rizo y Trama, 2007, INRENA, 2007, Vásquez y Buitrago, 2011, Ministerio de Ambiente y Desarrollo Sostenible, (sf), Maldonado, 2014, Elliot, 2009, Torres y López, 2009. Tena et al., 2012, Tapia, 1997, García y Beck, 2006, Órgano de Difusión del Grupo de Trabajo en Paramos del Ecuador, 2010, Izurieta, 2005, Watson, 2009, Sabogal, 2015, Consultores Asociados en Naturaleza y Desarrollo, CANDES, 2015.
B20: Distribución en el país | C20: Piura y Cajamarca.
B21: Localidad típica | C21: Cuencas de los ríos Quiroz, Piura, Huancabamba y Chinchipe.
B22: Observación | C22: No hay.
B25: Nombre del ecosistema | C25: PAJONAL DE PUNA SECA
B26: Definición propuesta
B27: Definición propuesta | C27: Ecosistema altoandino con vegetación herbácea, que puede ocupar terrenos planos u ondulados o colinas de pendiente suave a moderada; el suelo tiene textura areno - limosa con bajo contenido de materia orgánica; cobertura de suelo inferior al 35 %, altura máxima generalmente no supera 1,5 metros. El clima es marcadamente estacional, con una época seca muy intensa, que se acentúa notablemente hacia el sur y hacia el oeste. Constituida generalmente por céspedes dominados por gramíneas de porte bajo y pajonales dominados por gramíneas amacolladas robustas, xeromórficas, a menudo con hojas rígidas, duras y punzantes, con presencia variable de arbustos resinosos, intercalándose vegetación saxícola en los afloramientos rocosos (está típicamente asociado a los arbustos) y canllares (formaciones de Margyricarpus sp.). Una comunidad notable está conformada por los rodales de Puya raimondii.
B28: Factores Diagnóstico | C28: Región Natural: Andina.
C29: Bioclima: Sub húmedo
C30: Fisiografía: Montaña
C31: Rango referencial altitudinal: De 3 800 hasta 4 500 m. s. n. m.
C32: Ecosistema altoandino.
C33: Herbazales cuya altura máxima generalmente no supera 1,5 metros.
C34: Cobertura de suelo suele ser superior al 35%
C35: Pajonales dominados por gramíneas de los géneros Festuca, Jarava (=Stipa) y Deyeuxia con presencia variable de matorrales resinosos (con Baccharis sp., Senecio sp., Fabiana sp. y Azorella sp.).
C36: Fuerte asociación con matorrales muy densos.
C37: Pueden ocupar terrenos planos u ondulados o colinas de pendiente suave a moderada.
B38: Especies botánicas registradas | C38: Parastrephia lepidophylla, P. quadrangularis, Fabiana ramulosa, F. stephanii, Baccharis sp., Junellia arequipense, J. juniperina, Mutisia orbygniana, Adesmia atacamensis, A. spinosissima, Anthobryum triandrum, Arenaria serpens, Chersodoma arequipensis, Diplostephium tacorense, Puccinellia frigida, Senecio spinosus, Xenophyllum poposum, Margyricarpus sp., Puya raimondii, Azorella compacta, Festuca orthophylla, Jarava (=Stipa) spp., Deyeuxia spp., Echinopsis pamparuizii, Opuntia corotilla, O. ignescens, O. soehrensii, Oreocereus hempelianus.
B39: Fuentes | C39: Dirección General de Evaluación, Valoración y Financiamiento del Patrimonio Natural, del Ministerio del Ambiente, 2011, Tovar y Oscanoa, 2002, Flores et al., 2005, INRENA, 2007, Salvador, 2002, FAO, 1991, Machaca et al., 2010, Parra et al., 2004, Knight Piésold, 2007, Chávez, (sf), Zeballos et al., 2010, Quipuscoa y Huamantupa, 2010, Talavera et al., 2010, Urrunaga, 2010, Servat et al., 2010, Tovar, 1973, Gonzales et al., 2001, Young y Cano, 1994, Quispe, 2001, Vera, 2001, Tapia y Flores, 1984, FAO, 2010, Llosa et al., 2009, Olivera, 2000, Sarmiento, 2000, Tupayachi, 2005, Puignau, 1990, Bradt y Jarvis, 2002, Weberbauer y Harling, 1979, Jorgensen y Ulloa, 1994, Pittier, 1920, Acosta Solís, 1962, Morello y Adámoli, 1968, Pulgar Vidal, 1976, Rangel, 1995, Acosta Solis, 1968, Gonzáles et al., 1990, PROBONA, 1995, Monasterio, 1980, Diels, 1938, Environmental Hygiene & Safety SRL, 2010, MASAL, 2007, Reátegui y Martínez, 2010, NatureServe, 2009, Cuya, 1992, Teiller, 1998, Izco et al., 2007, FAO, 2000, Josse et al., 2009, Josse et al., 2007, Genin y Alzérreca, 2006, Weberbauer, 1945, Tovar, 1990, Mostacero et al., 2007, Tovar, 2012.
B40: Distribución en el país | C40: Ayacucho, Apurímac, Arequipa, Cusco, Puno, Moquegua y Tacna.
B41: Localidad típica | C41: Pampa Caleras (departamento de Ayacuch) y Huaytará (Huancavelica)
B42: Observación | C42: La Puna Seca en el Perú abarca las zonas del altiplano donde llegan con dificultad las lluvias de procedencia amazónica, desde el sur del departamento de Ayacucho hasta la frontera internacional con la República de Bolivia. Ecosistema muy utilizado para pastoreo y otras actividades.
B45: Nombre del ecosistema | C45: PAJONAL DE PUNA HÚMEDA
B46: Definición propuesta
B47: Definición propuesta | C47: Ecosistema altoandino con vegetación herbácea constituida principalmente por céspedes dominados por gramíneas de porte bajo y pajonales dominados por gramíneas que crecen amacolladas, dispersas y son de tallo y hojas duras, y algunas asociaciones arbustivas dispersas; intercalándose vegetación saxícola en los afloramientos rocosos. Puede ocupar terrenos planos u ondulados o colinas de pendiente suave a moderada. Presenta una cobertura de 35 – 50 % y altura generalmente no supera 1,5 metros. Una comunidad notable está conformada por los rodales de Puya raimondii.
B48: Factores Diagnóstico | C48: Región Natural: Andina.
C49: Bioclima: Húmedo/Superhúmedo.
C50: Fisiografía: Montaña.
C51: Rango referencial altitudinal: 3800 – 4500 m. s. n. m.
C52: Ecosistema altoandino.
C53: Herbazales cuya altura máxima generalmente no supera 1,5 metros.
C54: Cobertura de suelo suele ser superior al 35 %.
C55: Pajonales dominados por gramíneas de los géneros Festuca, Jarava (=Stipa), Deyeuxia y Poa, y algunos matorrales (con Baccharis sp. y Berberis sp.).
C56: Pajonales asociados a bosques densos de Polylepis sp. y arbustales.
C57: Pueden ocupar terrenos planos u ondulados o colinas de pendiente suave a moderada.
B58: Especies botánicas registradas | C58: Chuquiraga spinosa, Baccharis spp., Berberis sp., Ageratina sternbergiana, Bartsia camporum, B. patens, Calceolaria spp., Cheilanthes scariosa, Clematis peruviana, Eremocharis integrifolia, Helogyne ferreyrae, Jaltomata bicolor, Lupinus ballianus, Peperomia naviculaefolia, Villadia reniformis, Puya raimondii, Festuca spp., Jarava (=Stipa) spp., Calamagrostis spp., Deyeuxia spp., Poa spp., Matucana haynei
B59: Fuentes | C59: Dirección General de Evaluación, Valoración y Financiamiento del Patrimonio Natural, del Ministerio del Ambiente, 2011, Tovar y Oscanoa, 2002, Flores et al., 2005, INRENA, 2007, Salvador, 2002, FAO, 1991, Machaca et al., 2010, Parra et al., 2004, Knight Piésold, 2007, Chávez, (sf), Zeballos et al., 2010, Quipuscoa y Huamantupa, 2010, Talavera et al., 2010, Urrunaga, 2010, Servat et al., 2010, Tovar, 1973, Gonzales et al., 2001, Young y Cano, 1994, Quispe, 2001, Vera, 2001, Tapia y Flores, 1984, FAO, 2010, Llosa et al., 2009, Olivera, 2000, Sarmiento, 2000, Tupayachi, 2005, Puignau, 1990, Bradt y Jarvis, 2002, Weberbauer y Harling 1979, Jorgensen y Ulloa, 1994, Pittier, 1920, Acosta Solís, 1962, Morello y Adámoli, 1968, Pulgar Vidal, 1976, Rangel, 1995, Acosta Solis, 1968, Gonzáles et al., 1990, PROBONA, 1995, Monasterio, 1980, Diels, 1938, Environmental Hygiene & Safety SRL, 2010, MASAL, 2007, Reátegui y Martínez, 2010, NatureServe, 2009, Cuya, 1992, Teiller, 1998, Izco et al., 2007, FAO 2000, Josse et al., 2009, Josse et al., 2007, Genin y Alzérreca, 2006, Weberbauer, 1945, Tovar, 1990, Mostacero et al., 2007, Tovar, 2012.
B60: Distribución en el país | C60: La Libertad, Ancash, Lima, Junín, Pasco, Huancavelica, Ayacucho.
B61: Localidad típica | C61: Pampa de Bombón (Reserva Nacional Junín, departamento de Junín) y Carpa (Parque Nacional Huascarán, departamento de Ancash).
B62: Observación | C62: La Puna Húmeda se localiza desde el norte y centro de los Andes y las alturas de las cordilleras y el norte del Altiplano, en la cuenca del lago Titicaca. Ecosistema muy utilizado para pastoreo y otras actividades.
B65: Nombre del ecosistema | C65: JALCA
B66: Definición propuesta | C66: Ecosistema andino transicional, del norte del país, con vegetación herbácea y arbustiva húmeda enclavada en un paisaje con características climáticas intermedias entre el Páramo y la Puna Húmeda; con condiciones más húmedas que en la Puna, pero no presenta lluvias tan intensas, ni una atmósfera tan nublada como en el Páramo. La fisonomía corresponde a herbazales de 1 a 1,5 metros entremezclados con arbustos de 1 a 3 metros. Si bien comparte especies botánicas tanto con el Páramo como con la Puna Húmeda posee riqueza de endemismos de los géneros Agrostis, Poa, Festuca, Arcytophyllum, entre otros. A diferencia del Páramo, cuya orografía establece un paisaje discontinuo (como islas en las cumbres de las cordilleras); en la Jalca, el paisaje es continuo.
B67: Factores diagnóstico | C67: Región Natural: Andina.
C68: Bioclima: Húmedo/Superhúmedo.
C69: Fisiografía: Montaña.
C70: Rango referencial altitudinal: Encima de 3000 m. s. n. m.
C71: Ecosistema altoandino húmedo.
C72: Herbazales de 1 a 1,5 metros entremezclados con arbustos de 1 a 3 metros con individuos emergentes de hasta 4 – 4,5 metros.
C73: Cobertura del suelo superior al 35 %.
B74: Especies botánicas registradas | C74: Calamagrostis tarmensis, Calceolaria cajabambae, Geranium peruvianum, Hieracium peruanum, Hypericum laricifolium, Jungia stuebelii, Muhlenbergia caxamarcensis, Paranephelius ferreyri, Tridax peruviensis, Agrostis spp., Poa spp., Festuca spp., Arcytophyllum spp., Juncus sp., Werneria spp., Luzula spp., Geranium spp., Elaphoglossum spp., Plantago sp., Vaccinium sp., Phyllactis sp., Brachyotum spp., Hypericum spp., Siphocampylus sp.
B75: Fuentes | C75: Tovar et al., 2014, Sánchez–Vega y Dillon, 2006, Gobierno Regional de Cajamarca, 2012, Sánchez–Vega, 1997, Mena y Hofstede, 2006, Sánchez–Vega, 2009, Tapia, 1997, Gobierno Regional de Cajamarca, 2011, Vásquez y Buitrago, 2011, Schjellerup et al., 1999, Rodríguez, 1997, El Grupo en Páramo, Jalcas y Punas del Perú, (sf), Órgano de difusión del Grupo de Trabajo en Paramos del Ecuador (GTP), 2010, Izurieta, 2005, Galán de Mera et al., 2015, Consultores Asociados en Naturaleza y Desarrollo CANDES, 2015.
B76: Distribución en el país | C76: Cajamarca, Amazonas, La Libertad y norte de Huánuco (principalmente en las cuencas de los ríos Huallabamba, Utcubamba, Mayo y Huallaga).
B77: Localidad típica | C77: Jalca Grande (departamento de Amazonas) y Udima (departamento de Cajamarca).
B78: Observación | C78: Se requiere evaluar si realmente se trata de un ecosistema distinto al Páramo, pues existe controversia entre los especialistas desde hace varios años.
B81: Nombre del ecosistema | C81: MATORRAL DE PUNA SECA
B82: Definición propuesta | C82: Ecosistema andino (tolar y otros) abierto a semidenso (20 a 40 % de cobertura) que se encuentra en lugares planos a casi planos y con suelo arenoso. La fisonomía corresponde a un matorral o arbustal de 0,3 a 1,5 metros de altura, asociado a gramíneas; las hojas pequeñas, coriáceas, resinosas y suculentas. Formación arbustiva singular de los Andes del sur del país (Puna Seca); ocupa áreas extensas y está dominada por arbustos de “tola” (Parastrephia spp.), así como Lepidophyllum quadrangulare, Baccharis spp. y otras especies.
B83: Factores Diagnóstico | C83: Región Natural: Andina.
C84: Bioclima: Subhúmedo.
C85: Fisiografía: Montaña.
C86: Rango referencial altitudinal: 2400 – 4500 m. s. n. m.
C87: Matorral altoandino.
C88: Matorral o arbustal de 0,3 a 1,5 metros de altura.
C89: Abierto a semidenso (20 a 40 %).
C90: Terrenos planos a casi planos y con suelo arenoso.
C91: Áreas extensas dominadas por “tola” (Parastrephia spp.), además de Lepidophyllum quadrangulare, Baccharis spp. y otras especies.
B92: Especies botánicas registradas | C92: Parastrephia spp. (“tola”), Lepidophyllum quadrangulare (“tola”), Baccharis tricuneata, B. boliviensis, B. caespitosa, Diplostephium sp., Senecio spinosus, Aciachne pulvinata, Margyricarpus pinnatus, Conyza deserticola, Gomphrena meyeniana.
B93: Fuentes | C93: Roque y Ramírez, 2008, Montesinos, 2012, Machaca et al., 2010.
B94: Distribución en el país | C94: Puno, Tacna, Moquegua, Arequipa, Ayacucho y Huancavelica.
B95: Localidad típica | C95: Pampa Galeras (departamento de Ayacucho), Quellaveco (departamento de Moquegua).
B96: Observación | C96: Por sugerencia de Carlos Reynel, el nombre de este ecosistema pasó de Matorral Altoandino a Matorral de Puna Seca.
B99: Nombre del ecosistema | C99: BOSQUE RELICTO ALTOANDINO (queñoal y otros)
B100: Definición propuesta | C100: Ecosistema forestal constituido por bosque relicto altoandino dominado por asociaciones de “queuña” (Polylepis spp.), que se extienden por más de 0,5 hectáreas, con árboles de una altura superior a 2 metros y una cubierta del suelo superior al 10 %; comúnmente restringidos a laderas rocosas o quebradas; distribución actual en parches o islas de vegetación.
B101: Factores Diagnóstico | C101: Región Natural: Andina.
C102: Bioclima: Húmedo.
C103: Fisiografía: Montaña.
C104: Rango referencial altitudinal: generalmente 3000 – 5000 m. s. n. m.
C105: Ecosistema forestal altoandino.
C106: Arboles con altura mínima: 2 metros.
C107: Cobertura del suelo superior a 10 %.
C108: Pendientes medianas–fuertes, quebradas, terrenos rocosos o pedregosos.
C109: Superficie mínima: Media hectárea.
C110: Predominancia de individuos de Polylepis spp.
B111: Especies botánicas registradas | C111: Polylepis spp., Diplostephium sp., Baccharis tricuneata, B. genistellodies, Parastrephia lepidophylla, Chuquiraga spinosa, Lupinus sp., Pycnophyllum molle, Margyricarpus pinnatus, Chersodoma sp., Heliotropus sp., Opuntia floccosa, Adesmia spinosissima, Chersodoma sp., Festuca spp., Jarava spp.
B112: Fuentes | C112: Dirección General de Evaluación, Valoración y Financiamiento del Patrimonio Natural, del Ministerio del Ambiente, 2011, Aramayo et al., 2004, Carretero et al., 2002, Servat et al., 2002, Rangel y Arellano, 2007, Rada et al., 2007, ABC y ProAves, 2007, Ministerio de Ambiente, Vivienda y Desarrollo Territorial, 2010, Urrunaga, 2010, Mendoza et al., 2010, Talavera et al., 2010, Fernández et al., 2001, Fundación ProAves, 2009, Yallico, 1992, Balderrama y Ramírez, 2001, Kessler, 2006, ECOAN, 2006, Flores et al., 2009, Tovar, 1973, Fjeldsa, 1992, Barreda, 1951, Herrera, 1943, INRENA, 2006, Tupayachi, 2005, Gonzáles et al., 2001, Monasterio, 1980, Hueck, 1978, Seibert, 1993, Hueck, 1960, Ruthsatz y Movia, 1975, Ulloa y Jorgensen, 1993, Gonzales et al., 1990, Jorgensen y Ulloa, 1994, Bekker y Cleef, 1989, Cleef et al., 1983, Sarmiento, 1974, Franco et al., 2009, Flores et al., 2009, Giles et al., 1970, Aróstegui y Sato, 1970, NatureServe, 2009, Galiano y Tupayachi, 1997, Cuya et al., 1992, Lao et al., 1990, FRA (The Forest Resources Assessment) of FAO, 2000, Renison et al., 2002, Figuero y Rafael, 2011, Martino et al., 2011, Blanco y Gamero, 2010, Silva y Kerrigan, 2010, Josse et al., 2009, Josse et al., 2007, Mendoza y Cano, 2011, Mendoza, 2005, Moya y Lara, 2011, Gómez y Molina, 2007, Mendoza y A. Cano, 2012, Mostacero et al., 2007, Dirección de Conservación de la Biodiversidad Intendencia Forestal y de Fauna Silvestre, 2006, Tovar, 2012.
B113: Distribución en el país | C113: Cajamarca, La Libertad, Ancash, Lima, Junín, Pasco, Huancavelica, Ayacucho, Apurímac, Cusco, Arequipa, Moquegua, Puno y Tacna.
B114: Localidad típica | C114: Llanganuco, Parque Nacional Huascarán (departamento de Ancash) y Lampa (departamento de Puno).
B115: Observación | C115: La caracterización de altura y densidad de los árboles y de superficie mínima se enmarca en la definición establecida por MINAM el año 2012
B118: Nombre del ecosistema | C118: BOSQUE RELICTO MONTANO DE VERTIENTE OCCIDENTAL
B119: Definición propuesta | C119: Ecosistema húmedo constituido por bosques relicto de las vertientes occidentales de los Andes del norte del país, distribuidos entre los 1400 y 3000 m.s.n.m. La fisonomía corresponde a un bosque denso generalmente nublado con altura de dosel de hasta 15 metros con árboles emergentes de 20 metros y abundantes epífitas.
B120: Factores diagnóstico | C120: Región Natural: Andina.
C121: Bioclima: Húmedo.
C122: Fisiografía: Montaña.
C123: Rango referencial altitudinal: 1400 – 3000 m. s. n. m.
C124: Ecosistema forestal húmedo.
C125: Bosque denso generalmente nublado con altura de dosel de hasta 15 metros, con árboles emergentes de 20 metros.
C126: Variado complejo de formaciones florísticas.
C127: Bosques relictos de las vertientes occidentales de los Andes del norte del Perú.
B128: Especies botánicas registradas | C128: Algunas especies botánicas características son: Oreopanax oroyanus (“calo”), Delostoma integrifolium (“putquero”), Escallonia angustifolia (“tasta”), Piper arboreum, P. acutifolium, Hydrocotyle sagasteguii, Asplundianthus sagasteguii, Barnadesia hutchisoniana, Euphorbia weberbaueri, Pitcairnia lopezii, Tillandsia rauhii. Cinchona, Podocarpus
B129: Fuentes | C129: Weigend et al,. 2006, Weigend et al., 2005, Flanagan et al., 2005, Llatas y López, 2005, Valencia, 1992.
B130: Distribución en el país | C130: Piura, Lambayeque, La Libertad, Cajamarca y Ancash.
B131: Localidad típica | C131: Monteseco y Udima, Refugio de Vida Silvestre Bosques Nublados de Udima (departamento de Cajamarca).
B132: Observación | C132: No hay.
B135: Nombre del ecosistema | C135: BOSQUE RELICTO MESOANDINO
B136: Definición propuesta | C136: Ecosistema andino de composición y estructura variable, representado por comunidades puras o mixtas de Escallonia resinosa (“chachacoma” o “karkac”), Escallonia myrtilloides (“tasta”), Podocarpus glomeratus (“intimpa”) y Myrcianthes oreophila (“unka”) en las zonas más húmedas y Kageneckia lanceolata (“lloque”), Alnus acuminata (“aliso” o “lambrán”) y otras especies en las zonas más secas. Se extiende por más de 0,5 hectáreas, con árboles de una altura superior a 2 metros y una cobertura del suelo superior al 10 %; comúnmente distribuido como parches o islas de vegetación relictual restringidos a localidades especiales, en laderas montañosas con pendientes moderadas a fuertes.
B137: Factores diagnóstico | C137: Región Natural: Andina.
C138: Bioclima: Subhúmedo.
C139: Fisiografía: Montaña.
C140: Rango referencial altitudinal: 2000 – 3500 m. s. n. m.
C141: Ecosistema forestal andino.
C142: Árboles de una altura superior a 2 metros.
C143: Cobertura del suelo superior a 10 %.
C144: Superficie mayor a 0,5 hectáreas Parches vegetación relictuales restringidos a localidades especiales, en laderas montañosas con pendientes moderadas a fuertes.
C145: Comunidades puras o mixtas de Escallonia resinosa (“chachacoma” o “karkac”), Escallonia myrtilloides (“tasta”), Podocarpus glomeratus (“intimpa”), Myrcianthes oreophila (“unka”), entre otras.
B146: Especies botánicas registradas | C146: Escallonia resinosa (“chachacoma” o “karkac”), Escallonia myrtilloides (“tasta”), Podocarpus glomeratus (“intimpa”), Myrcianthes oreophila (“unka”), Kageneckia lanceolata (“lloque”) y Alnus acuminata (“aliso” o “lambrán”).
B147: Fuentes | C147: INRENA, 2003, Hostnig y Palomino, 1997, Dirección General de Evaluación, Valoración y Financiamiento del Patrimonio Natural, del Ministerio del Ambiente, 2011, Carretero et al., 2002, Piper et al., (sf), Tovar, 2012.
B148: Distribución en el país | C148: Lima, Ancash, Junín, Pasco, Ayacucho, Huancavelica, Cusco y Puno.
B149: Localidad típica | C149: Santuario Nacional Ampay (departamento de Apurímac).
B150: Observación | C150: Carlos Reynel sugiere que se divida este ecosistema en: Bosque Mesoandino Seco (con “lloque” Kageneckia sp.) y Bosque Mesoandino Húmedo (con “intimpa” Podocarpus sp. y otras).
B153: Nombre del ecosistema | C153: BOSQUE estacionalmente seco INTERANDINO (MARAÑON, MANTARO, PAMPAS Y APURÍMAC)
B154: Definición propuesta | C154: Ecosistema forestal que se caracteriza por estar dominado por comunidades arbóreas deciduas distribuidas a lo largo de los valles interandinos, incluyendo en el estrato inferior especies herbáceas de carácter estacional; las cactáceas de porte arbóreo son notorias, abundantes y mayormente endémicas. La fisonomía dominante corresponde a un bosque estacionalmente seco abierto sobre laderas, con individuos de hasta 7 u 8 metros. Su altitud va desde 500 hasta 2500 m. s. n. m. aproximadamente. Valles interandinos del Marañón–Huancabamba, Pampas, Apurímac, otros.
B155: Factores diagnóstico | C155: Región Natural: Andina.
C156: Bioclima: Semiárido.
C157: Fisiografía: Montaña.
C158: Rango referencial altitudinal: 500 – 2500 m. s. n. m.
C159: Ecosistema forestal de valles interandinos.
C160: Bosque estacionalmente seco abierto sobre laderas, con individuos de hasta 7 u 8 metros.
C161: Dominado por comunidades arbóreas deciduas.
C162: En el estrato inferior especies arbustivas y herbáceas de carácter estacional.
C163: Cactáceas de porte arbóreo son notorias (Armatocereus rauhii, Brownigia altissima y Espostoa lanata).
C164: Valles interandinos del Marañón–Huancabamba, Pampas, Apurímac, otros.
B165: Especies botánicas registradas | C165: Eriotheca discolor, E. peruviana y E. vargasii (“pate” o “pati”), Vachellia macracantha (“faique” o “huarango”), Bougainvillea peruviana (“papelillo”), Pithecellobium excelsum (“chaquiro”), Parkinsonia praecox (“palo verde”), Leucaena trichodes (“chapra”), Sapindus saponaria (“choloque”), Colicodendron [=Capparis] scabridum (“sapote” o “sapotillo”), Melocactus bellavistensis (“asiento de suegra”), Armatocereus rauhii, Brownigia altissima, Espostoa lanata).
B166: Fuentes | C166: Comunidad Andina, 2009, Marcelo et al., 2007 y 2016, Aguirre et al., 2006, Carretero et al. 2002, Borsdorf et al., 2012, MINAM, 2012, Reynel et al., 2013, Palacios y Reynel, 2011, Quispe (sf), AMEC, 2011, MINAM y MINAG, 2011, MINAM, 2014, Tovar et al., 2013, Linares–Palomino, 2004 y 2006, Consultores Asociados en Naturaleza y Desarrollo CANDES, 2015.
B167: Distribución en el país | C167: Lambayeque, Piura, Amazonas, Cajamarca, Huancavelica, Junín, Apurímac y Cusco.
B168: Localidad típica | C168: Balsas (departamento de Amazonas).
B169: Observación | C169: No hay.
B172: Nombre del ecosistema | C172: MATORRAL ANDINO
B173: Definición propuesta | C173: Ecosistema andino con rango altitudinal entre cerca de 1500 hasta 3900 m. s. n. m., con vegetación leñosa arbustiva de composición y estructura variable (incluyendo formaciones de cactáceas o cardonales), una cobertura de suelo superior al 10 %, que se extiende por más de 0,5 hectáreas y una altura sobre el suelo que no supera los 4 metros. Incluye árboles de manera dispersa.
B174: Factores diagnóstico | C174: Región Natural: Andina.
C175: Bioclima: Árido/Húmedo.
C176: Fisiografía: Montaña
C177: Rango referencial altitudinal: 1500 – 3900 m. s. n. m.
C178: Ecosistema andino.
C179: Vegetación leñosa arbustiva no supera 4 metros de altura.
C180: Cobertura de suelo superior al 10 %.
C181: Se extiende por más de 0,5 hectáreas.
C182: Composición y estructura variable (incluyendo cactáceas).
C183: Incluye árboles de manera dispersa.
B184: Especies botánicas registradas | C184: Kageneckia lanceolata (“lloque”), Mutisia acuminata (“chinchircuma”), Barnadesia dombeyana (“yaulli”), Tecoma stans (“huaranhuay”), Caesalpinia spinosa (“tara”), Schinus molle (“molle”), Opuntia subulata (“anjokishka”) y Pitcairnia spp., Puya spp.
B185: Fuentes | C185: INRENA, 2007, Parra et al., 2004, Knight Piésold, 2007, Talavera et al., 2010, Quispe, 2001, Josse et al., 2009, Sarmiento, 2000, Bradt y Jarvis, 2002, Tamayo, 1958, Rangel, 1995, ONERN, 1976, Dirección General de Evaluación, Valoración y Financiamiento del Patrimonio Natural, del Ministerio del Ambiente, 2011, Torres, 2001, Environmental Hygiene & Safety SRL, 2010, MASAL, 2007, Reátegui y Martínez, 2010, NatureServe, 2009, Cuya et al., 1992, Martínez, 1985, Parra et al., 2004, FAO, 2000, Josse et al., 2007, Murcia y Ochoa, 2012, Weberbauer, 1945, Tovar, 2012.
B186: Distribución en el país | C186: Cajamarca, La Libertad, Piura, Ancash, Lima, Junín, Pasco, Huancavelica, Ayacucho, Apurímac, Cusco, Arequipa, Moquegua, Puno y Tacna.
B187: Observación | C187: No hay.

Sheet ZONAS PRIORIZADAS
B8: Humedales reconocidos en el Perú por la Convención Relativa a los Humedales de Importancia Internacional (RAMSAR)
B9: Los RAMSAR con ecosistemas andinos rurales son: Reserva Nacional de Junín (Junín y Pasco), Lago Titicaca (Puno), Bofedales y Laguna de Salinas (Arequipa), Laguna del Indio-Dique de los Españoles (Arequipa), Humedal Lucre-Huarcapay (Cusco) y Lagunas Las Arreviatadas (Cajamarca).
B11: Áreas de conservación ambiental
B12: En caso de elegir la opción de “área de conservación ambiental”, se debe anexar la ordenanza provincial de reconocimiento.
B14: Zonas de protección y conservación ecológica Zonas de recuperación identificadas en los procesos de zonificación ecológica económica aprobados por el MINAM
B15: En caso de elegir la opción “zonas de protección y conservación ecológica” o “Zona de recuperación”, se debe contar con el documento que las determina como tal, en el marco de la Ley N° 29763, Ley Forestal y de Fauna Silvestre, y sus respectivos Reglamentos.
B17: Áreas Naturales Protegidas
B18: En caso el ecosistema a intervenir forme parte de una “Área Natural Protegida” de carácter nacional o regional, se debe anexar su documento de creación.
B20: Zonas priorizadas por los Sistemas Regionales de Conservación
B21: En caso elegir la opción “Zonas priorizadas por los sistemas regionales de conservación”, se debe anexar la ordenanza o documento que las determine como tal.

Sheet ORIENTACIONES TERRITORIO
B8: Para la identificación del territorio se usará información primaria y secundaria; según sea el caso de la cuenca, se recomienda el desarrollo del siguiente proceso de diagnóstico:
B10: ESQUEMA DEL PROCESO METODOLÓGICO
B32: FUENTES DE INFORMACIÓN Para poder realizar los procesos se puede recopilar información primaria y secundaria de las diferentes actores involucrados en la cuenca, como por ejemplo de la ALA, AAA, GORE, SENAMHI, GL, ONG, y del usuario del agua del cual se realiza el estudio.
B34: DETALLE DEL PROCESO METODOLÓGICO PARA LA IDENTIFICACIÓN DEL AREA DE ESTUDIO
B36: A. Caracterizar hidrológicamente la cuenca donde se ubica el usuario
B37: i. Describir la ubicación de la cuenca donde se ubica el usuario del agua.
B38: ii. Colocar el mapa respectivo, que indique espacialmente los ríos, las principales fuentes de agua del usuario, los centros poblados en la cuenca y las comunidades donde se encuentran las principales fuentes identificadas.
B39: iii. Describir la curva hipsométrica de la cuenca de estudio, las órdenes de los ríos, los caudales existentes del río principal y la delimitación de las zonas priorizadas que se ubican en la cuenca, así como realizar su especialización en el mapa de la cuenca, si tiene plan de manejo en que estado se encuentra su gestión.
B42: B. Describir y analizar el usuario de agua (demandante)
B43: i. Describir al usuario de agua que es demandante del proyecto.
B44: ii. Indicar la existencia de otros usuarios de agua en la Cuenca.
B45: iii. Identificar los problemas de los usuarios en época de estiaje y de avenida. Determinar los meses de estiaje y de avenida.
B48: C. Describir y analizar las principales fuentes agua superficial para el usuario.
B49: i. Describir el punto de captación y/o determinar las coordenadas geográficas de los puntos de captación. Para el caso de uso poblacional, esta información lo maneja la EPS. En caso contrario, utilizar el Google Earth y con ayuda de un operario de planta ubicar los puntos de captación y sus respectivas coordenadas.
B50: ii. Realizar el análisis de las principales fuentes de agua que son utilizadas por el usuario y delimitar las cuencas potenciales de aporte de dichas fuentes. Asimismo, describir y delimitar (ubicación espacial) la cuenca potencial de aporte hídrico, su uso actual y su tenencia de tierras aspectos físicos legales.
B51: Procedimiento
B52: i. En este mismo programa (Google Earth) realizar una primera delimitación preliminar de la cuenca de aporte.
B53: ii. Levantar información en campo para ajustar la delimitación. Para etapa es importante levantar puntos geo referenciados (con un GPS) dentro de la cuenca y en los límites que sea posible.
B54: iii. Con la información levantada en campo, se procede a ajustar la delimitación de la cuenca de aporte a la captación y esta tiene que ser validada en el taller de socialización de resultados.
B55: iv. Identificar los ecosistemas de interés hídrico, principal y asociados, en la cuenca de aporte delimitada que corresponden al área de intervención del proyecto.
B56: v. Colocar el mapa del área de estudio o llamado también análisis (1), que incluya la identificación de los puntos de captación, la cuenca de aporte de las fuentes identificadas, los ecosistemas de interés hídrico principal y asociado, y el área de influencia.
B57: Nota para i, ii y iii: Para lograr una delimitación más exacta se puede utilizar toda la información recogida anteriormente y un mapa a curvas de nivel y la plataforma de ArcGis, como el formato kml; con lo cual se puede delimitar las cuencas de aporte de manera más exacta, siempre y cuando el mapa a curvas de nivel se tenga al detalle que la escala requiera.
B58: Adicionalmente
B59: - Descripción de la planta de tratamiento (De ser el caso).
B60: - Realizar el esquema del sistema hidráulico e indicar su funcionamiento de manera general. Asimismo, identificar sus principales problemas relacionado en épocas de avenida y estiaje.
B63: Nota: Para poder realizar los procesos metodológicos de caracterización de la función hidrológica de la cuenca en el marco de los servicios ecosistémicos hídricos, se puede recopilar información primaria y secundaria de los diferentes actores involucrados en la cuenca, como por ejemplo de la ALA, AAA, GORE, SENAMHI, GL, ONG, y del usuario del agua del cual se realiza el estudio. Se recomienda un recorrido preliminar para el diagnóstico de la Cuenca.

Sheet ESPECIFICACION TECNICA
B9: EJE DE ANÁLISIS | C9: FACTOR DE PRODUCCIÓN DEL SERVICIO ECOSISTÉMICO DE REGULACIÓN HÍDRICA | D9: VARIABLES TÉCNICAS | E9: INFORMES TÉCNICOS, REPORTES QUE SUSTENTEN EL ESTADO DEL ECOSISTEMA DE INTERÉS HÍDRICO | F9: DESCRIPCIÓN DE INFORME TÉCNICO POR PARÁMETRO
B10: ECOSISTEMA | C10: ECOSISTEMA - INFRAESTRUCTURA NATURAL | D10: AGUA | E10: INFORME TÉCNICO SOBRE CANTIDAD Y CALIDAD DEL AGUA, ELABORADO POR EXPERTO TEMÁTICO | F10: El Informe técnico deberá considerar para la calidad del agua los parámetros fisicoquímicos de: Temperatura, pH, conductividad eléctrica y oxígeno disuelto. Para determinar la cantidad del agua se deberá analizar el régimen hídrico (periodos de lluvias y estiaje) y el origen del agua (entrada/salida) - superficial. El indicador para la cuantificación de la cantidad del agua en la situación sin proyecto es el caudal en época de estiaje. El método propuesto para la cuantificación teórica de este indicador se presenta en el presente informe, así como los resultados Sin Proyecto y Con Proyecto. La Ficha propone el método RAS; si el formulador utiliza otra metodología, deberá responder la estimación de hectáreas recuperadas en ganancia hídrica.
D12: SUELOS | E12: INFORME TÉCNICO SOBRE CARACTERÍSTICAS RELACIONADAS A LA INFILTRACIÓN DE SUELOS, ELABORADO POR EXPERTO TEMÁTICO | F12: Los parámetros técnicos analizados serán: materia orgánica superficial(1), tipo de suelo(2), pendiente(3) y profundidad efectiva del suelo(4) (materia orgánica).
D13: CARACTERÍSTICAS DEL CLIMA ACTUAL Y FUTURO. IDENTIFICACIÓN DE PELIGROS EN UN CONTEXTO DE CAMBIO CLIMÁTICO | E13: ESTUDIO DEL CLIMA ACTUAL Y TENDENCIAS. IDENTIFICACIÓN DE PELIGROS ASOCIADOS AL CAMBIO CLIMÁTICO | F13: El estudio del clima actual(5): Se realizarán el análisis de los datos históricos de precipitación y las temperaturas máximas y mínimas. • Temperatura En este acápite se describen las oscilaciones térmicas que suceden en el ámbito de la cuenca de estudio. • Precipitación Se analizarán los datos de información pluviométrica registrada en la cuenca, realizando una comparación con los valores normales de precipitación de acuerdo a la estacionalidad. Las especificaciones sobre el uso de herramientas participativas acerca del estudio del clima actual se muestran en la hoja de detalle.
F14: Identificación de los Peligros en un Contexto de Cambio Climático (6),(7): En caso de contar con mapas de peligros y/o escenarios climáticos es posible: 1) Identificar los peligros ante los cuales la UP se encuentra expuesto; 2) analizar la exposición de la UP ante cada peligro identificado; e 3) Identificar si la UP es afectada por los cambios futuros del clima (exposición).
F15: Análisis de riesgos en contexto de cambio climático en los factores de producción; Los aspectos relacionados a este punto, se evalúan en la hoja correspondiente. Asimismo, es importante conocer el nivel de riesgo o incertidumbre de los resultados del proyecto, dado que ayudará a conocer el nivel de complejidad de un proyecto de inversión.
D16: COBERTURA | E16: INFORME TÉCNICO DEL PARÁMETRO COBERTURA VEGETAL E INTRODUCCIÓN DE ESPECIES EXÓTICAS. | F16: Implica el desarrollo de un levantamiento florístico rápido de las formaciones vegetales del ecosistema y la caracterización de sus componentes resaltantes. Este estudio debe contener información general de localización, vistas fotográficas de la zona, información de la presencia o ausencia de especies exóticas, así como la densidad de la cobertura. Las principales metodologías sugeridas son el desarrollo de transectos, anillos censadores, entre otras, apropiadas para el contexto andino.
C17: MANEJO DE LOS ECOSISTEMAS DE INTERES HIDRICO | D17: PRÁCTICAS DE CONSERVACIÓN DEL AGUA | E17: FICHAS DE DIAGNÓSTICO DE PRÁCTICAS DE CONSERVACIÓN DEL AGUA | F17: Los aspectos relacionados a este punto se evalúan en las fichas de diagnostico que son consideradas en las hojas Excel correspondiente.
D18: PRÁCTICAS DE CONSERVACIÓN Y MANEJO DE ECOSISTEMAS DE INTERÉS HÍDRICO | E18: FICHAS DE DIAGNÓSTICO DE PRÁCTICAS DE CONSERVACIÓN Y MANEJO DE ECOSISTEMAS DE INTERÉS HÍDRICO | F18: Los aspectos relacionados a este punto se evalúan en las fichas de diagnostico que son consideradas en las hojas Excel correspondiente.
B19: GESTIÓN DEL ECOSISTEMA ANDINO RURAL | C19: GESTIÓN INTEGRADA DEL SERVICIO ECOSISTÉMICO ANDINO RURAL | D19: CAPACIDADES PARA LA GESTIÓN DEL ECOSISTEMA DE INTERÉS HÍDRICO | E19: INFORME DEL ÁREA DE RECURSOS HUMANOS DE LA INSTITUCIÓN ENCARGADA DE LA GESTIÓN DEL ECOSISTEMA DE INTERÉS HÍDRICO | F19: Identificar la Dirección, Gerencia u Oficina encargada de la gestión de los ecosistemas. • Identificación de las funciones del área encargada (análisis de competencias y funciones). • Relación de trabajadores en el área encargada (nombre y cargo). • Identificación de módulos de capacitación para la mejora en la gestión pública. (fecha, cantidad de horas capacitadas, temas, etc.) • Identificación de módulos de capacitación para la mejora en la gestión de los ecosistemas relacionados con los servicios ecosistémicos de regulación hídrica. (fecha, cantidad de horas capacitadas, temas, etc.) • Identificación del número de trabajadores que se capacitaran, propuestas de fechas de capacitación, propuesta de contenido de los cursos que se dictaran en cada módulo, cantidad de horas capacitadas, posible lugar donde se realizará la capacitación y el cronograma de capacitación semanal.
D20: SENSIBILIZACIÓN AMBIENTAL | E20: INFORME DE RESULTADO DE ENCUESTAS | F20: Encuesta: Nombre del encuestador Sexo del encuestado Edad del encuestado Fecha de la encuesta Preguntas sobre identificación del ecosistema Preguntas concernientes al conocimiento actual del ecosistema Preguntas sobre la identificación del problema en el medio ambiente del ecosistema Preguntas sobre posibles causas de los problemas en el medio ambiente del ecosistema Preguntas sobre posibles soluciones al problema
D21: INFORMACIÓN AMBIENTAL | E21: INFORME DEL ÁREA TÉCNICA DANDO CUENTA DE LOS ESTUDIOS DISPONIBLES Y APLICADOS | F21: Listado de estudios: Fecha de realización del estudio Ubicación geográfica del lugar donde se realizó el estudio
D22: SEGUIMIENTO Y MONITOREO AMBIENTAL | E22: REPORTE DE ACCIONES DE SEGUIMIENTO Y MONITOREO | F22: Reporte de acciones de seguimiento y monitoreo: Fechas del monitoreo Personal a cargo del monitoreo Debida identificación de las acciones del monitoreo Resultado del monitoreo Análisis de los resultados
D23: ORGANIZACIÓN COMUNAL AMBIENTAL | E23: REPORTE DE INSTRUMENTOS DE GESTIÓN EXISTENTES | F23: Listado de instrumentos de gestión existentes: Actas de acuerdos firmados por todos los participantes de las reuniones Imágenes fotográficas de las reuniones
C24: (1): El procedimiento para la obtención de la materia orgánica superficial se muestra en la hoja llamada "Informe de suelos".
C25: (2): Las características relacionadas al tipo de suelo, se muestran en la hoja llamada "Informe de suelos".
C26: (3): Características relacionadas a la pendiente, se muestra en la hoja llamada "Informe de suelos".
C27: (4): Para el caso de profundidad efectiva del suelo, se muestran en la hoja titulada "Informe de suelos".
C28: (5): Los parámetros para el estudio del clima se tomarán a partir de los registros de las estaciones meteorológicas del SENAMHI (bases de datos nacional y/o regional), siendo recomendable periodos de registro de más de 10 años.
C29: (6): Los peligros asociados al cambio climático se refieren generalmente a sucesos o cambios físicos directos o indirectos relacionados con los cambios en los promedios del clima, variabilidad climática aumentada, y/o la incidencia de eventos extremos intensificados.
C30: (7): Las herramientas participativas para la identificación de peligros en un contexto de Cambio Climático, se muestran en la hoja correspondiente.
C31: (8): El modelo de informe de los parámetros de diagnóstico se verá en la hoja correspondiente.

Sheet INFORME TECNICO CyC DEL AGUA
B8: I. PARÁMETROS TÉCNICOS ANALIZADOS
B9: Propuesta de análisis de valores • Calidad del agua mediante parámetros fisicoquímicos de: - Temperatura: Es una de las características físicas del agua, su unidad de medida es °C, y nos ayuda a relacionar sus valores con los estándares de calidad ambiental para agua - PH - Conductividad eléctrica - Oxígeno disuelto • Cantidad de agua: - Régimen hídrico (periodos de lluvia y estiaje): Consiste en graficar y describir las variaciones de los caudales a nivel mensual y establecer periodos de avenidas y de estiaje. Los caudales aumentan en el periodo de lluvias y tiende a disminuir en el periodo seco. Ejemplo: en la Figura se observa una distribución de los caudales en un año hidrológico; los meses de agosto, setiembre y octubre serian el periodo de avenidas y, los meses de enero, febrero, marzo y abril son de estiaje. - - Origen del agua o fuente principal: Está referido a identificar y priorizar las principales fuentes para el usuario del agua en estudio. Este proceso se obtiene con reuniones de gabinete y salidas de campo con dicho usuario, que son actores beneficiarios del servicio ecosistémico de regulación hídrica.
B11: II. ANÁLISIS DE RESULTADOS
B14: III. CONCLUSIONES
B17: IV. RECOMENDACIONES
B20: V. ANEXOS
B23: NOTA: En caso de no contar con información usar el método RAS y en caso de tener información adjuntar la metodologia aplicada en este informe.

Sheet INFORME DE COBERTURA VEGETAL
B8: I. OBJETIVO DEL ESTUDIO
B9: - Describir las coberturas (1) de los ecosistemas del ámbito del PIP. - Identificar el estado de las coberturas por cada tipo de ecosistema en el ámbito de estudio del PIP.
B12: II. METODOLOGÍA
B13: A. MÉTODOS Y PROCEDIMIENTOS La guía de inventario para Flora y Vegetación (2) pone a disposición una serie de metodologías y procedimientos que pueden ser empleados para el proceso solicitado y que deberá considerar:
B14: - La elaboración de un mapa de las coberturas vegetales de los ecosistemas del área del PIP a una escala de 1/20,000. - La inclusión de un análisis histórico con imágenes satelitales del ámbito, pudiendo comparar imágenes actuales con otras de 10, 20, o 30 años atrás. - La preparación del trabajo de campo: Recojo y sistematización de la información secundaria y el diseño del muestreo a desarrollar. - Desarrollo de entrevistas con los actores locales para el análisis de cambios en la cobertura vegetal.
B15: B. FUENTES DE INFORMACIÓN
B16: - Definiciones Conceptuales de los Ecosistemas del Perú. MINAM 2018. - Mapa de Cobertura Vegetal y su memoria descriptiva. - Mapa de Ecosistemas del Perú y su memoria descriptiva.
B19: III. PARÁMETROS TÉCNICOS ANALIZADOS
B20: Caracterizar las coberturas de la cuenca donde se ubica el usuario
B21: Definición Coberturas Propuesta de análisis de valores - Porcentaje de coberturas y áreas (%) Correlacionado con el grado de protección que brinda la vegetación contra el potencial erosivo de la lluvia y grado de estabilidad de la superficie. - Composición florística (%) Indicador del balance entre los grupos funcionales revela el estado estructural del ecosistema (incluye presencia de plantas invasoras). - Riqueza de especies (#especies/área) Refiere al número de especies perennes por grupo funcional (gramíneas, hierbas y arbustos) que existen en el área y es un indicador del grado de estabilidad y resiliencia del ecosistema.
B24: IV. ANÁLISIS DE RESULTADOS
B25: En esta etapa, luego de caracterizar las coberturas vegetales de la cuenca, a nivel de gabinete y campo, se procederá a identificar las áreas que han sido degradadas, indicando extensión, así como las causas que generan/han generado dicha degradación.
B27: V. CONCLUSIONES
B30: VI. RECOMENDACIONES
B33: VII. ANEXOS
B36: [1] Coberturas: Entiéndase como cobertura vegetal en ecosistemas terrestres y superficie en ecosistemas acuáticos.
B37: [2] Guía de Inventario de la Flora y Vegetación, aprobado por Resolución Ministerial N° 59-2015-MINAM.

Sheet INFORME DE SUELOS
B8: I. OBJETIVO DEL ESTUDIO
B9: Realizar la descripción biofísica del factor suelo.
B12: II. METODOLOGÍA
B13: A. MÉTODOS Y PROCEDIMIENTOS
B14: El formulador deberá indicar los métodos y procedimientos a realizar para la elaboración del proyecto.
B15: B. FUENTES DE INFORMACIÓN
B16: El formulador deberá describir las fuentes de información primaria y secundaria a ser utilizadas.
B19: III. PARÁMETROS TÉCNICOS ANALIZADOS
B20: A. Materia Orgánica Superficial
B21: Definición La materia orgánica acumulada en la forma de hojarasca, el color del suelo y la existencia de estructura son indicadores de la cantidad de materia orgánica presente y del potencial del sitio para proveer nutrientes al ecosistema así como brindar condiciones adecuadas para el desarrollo de la vegetación y el funcionamiento del sistema hidrológico. (Guía complementaria para la compensación ambiental. Ecosistemas altoandinos. MINAM, 2016). Nota importante: Las áreas con muy bajo contenido de materia orgánica tienen poca capacidad para retener agua y liberar nutrientes. Propuesta de análisis de valores Muestras representativas o alícuotas de suelo (01 kg. para suelo mineral y 1.5 Kg. para suelo orgánico) son obtenidas del área de evaluación y remitidas al laboratorio de suelos para el análisis respectivo. Cada alícuota está compuesta por una muestra combinada de cinco submuestras (01 kg) tomadas sistemáticamente, cada 20 m. a lo largo de una transecta de 100 m. Las submuestras son porciones de suelo debajo del hoyo hecho con una pala recta formando un cubo que corresponde al ancho y largo de la pala (aprox. 20 cm x 20 cm). La muestra o alícuota se guarda en bolsas dobles de plástico y se etiquetan colocando la etiqueta entre las bolsas para evitar su deterioro y la pérdida de la identidad de la muestra.
B22: B. Tipo de suelo Para este tipo de estudios y su escala, para la zona andina, se recomienda clasificar a esta variable como: 1. Suelo mineral (en unidades de cobertura vegetal: pajonal de puna, césped de puna, jalca, tolar y matorral andino) y 2. Suelo orgánico (en unidades de cobertura vegetal: bofedal, páramo, humedales andinos)
B23: Definición - Material no consolidado compuesto por partículas inorgánicas, materia orgánica, agua, aire y organismos, que comprende desde la capa superior de la superficie terrestre hasta diferentes niveles de profundidad. - Los suelos de las zonas altoandinas son suelos ácidos, con bajas concentraciones de fósforo y potasio, con contenidos variables de materia orgánica, con baja cantidad de cationes intercambiables y con problemas de fertilidad (Alegría, 2010). Es por ello que requieren ser fertilizados. - Factores que deben ser considerados para realizar la fertilización son el agua del suelo pues la respuesta de la fertilización está directamente relacionada con la disponibilidad de agua en el suelo, ecología de plantas, momento de fertilización y toxicidad, para lo cual se deben administrar dosis en base a los requerimientos del cultivo y análisis químico del suelo. (Herbel, 1983). - Las enmiendas ayudan a la restauración de los atributos perdidos del suelo, por lo cual se puede mejorar la germinación y el establecimiento de las plantas nativas. Los suelos andinos tienden a acidificarse más cuando las condiciones abióticas son alteradas por exceso de lavado y compactación de suelo. En este sentido, el uso de cal amortigua el pH de los suelos ácidos, mejorando la calidad de materia orgánica, la capacidad del suelo para retener nutrientes y la humedad; de esta manera, se obtendrá una mejor disponibilidad de nutrientes (Truog, 1951). - Los pastizales naturales generalmente tienen una adecuada productividad a un pH de 6, por otro lado el establecimiento de la planta se puede ver afectada negativamente si el pH es inferior a 5.5 y la toxicidad de metales pesados restringe el crecimiento de las raíces. Con el encalado se puede restablecer el pH a valores de 6 o más. Propuesta de análisis de valores El procedimiento será en función al análisis del suelo, características físico químicas del suelo, comunidad vegetal original, etc.
B24: C. Pendiente
B25: Definición Se relaciona principalmente con la erosión hídrica, mientras más pronunciada, mayor la severidad de la erosión. La erosión se va incrementando a medida que aumenta la pendiente del terreno ya que también lo hacen la cantidad y la energía de la escorrentía superficial. Las pérdidas de suelo por erosión hídrica crecen al aumentar la inclinación y la longitud de las laderas como consecuencia del incremento de la velocidad y volumen de la escorrentía superficial, y sus efectos se hacen sentir mucho más fuerte en las partes inferiores de las laderas. Se recomienda no realizar intervenciones en las zonas denominadas como protección. Rangos de pendientes corta y larga
B27: Propuesta de análisis de valores - Utilizando GPS, ubicarse en un punto del terreno del cual se desea determinar la pendiente. - Plantar una estaca, que vendría a ser el punto A. - De la base de esta estaca que coincide con la superficie superior del terreno, tirar horizontalmente un cordel hasta una longitud de 100 cm. que debe nivelarse en este sentido utilizando un nivel cuyo extremo seria el punto B. - A esta altura plantar otra estaca la que debe estar totalmente en forma vertical que marcaría el punto C en la parte inferior de la superficie del terreno; formándose un triángulo rectángulo. - Utilizando la wincha, medir la altura desde donde alcanza los 100 cm horizontales hasta la superficie inferior del terreno. - Se sabe que la pendiente es igual a la tangente y esta es igual al cateto opuesto entre el cateto adyacente y para expresarlo en porcentaje se multiplica por 100; la fórmula matemática es la siguiente: m = tg = BC/AB x 100. El siguiente grafico ilustra el procedimiento:
B29: D. Profundidad efectiva del suelo
B30: Definición Es el espesor de las capas del suelo en donde las raíces de las plantas pueden penetrar fácilmente en busca de agua y nutrientes. Su límite inferior está dado por capas de arcillas muy densas, capas extremadamente duras, materiales fragmentarios (gravas, piedras o rocas) o napa freática permanente, que actúa como limitantes del desarrollo normal de las plantas. (Reglamento de clasificación de tierras. MINAGRI, 2009). En el siguiente cuadro se muestra la calificación (clases) que se da al suelo de acuerdo a su profundidad efectiva:
B31: Procedimiento Reglamento para la Ejecución de Levantamiento de Suelos (Decreto Supremo N° 013-2010-AG)
B34: IV. ANÁLISIS DE RESULTADOS
B35: El análisis de los resultados está en función a los parámetros indicados en las variables señaladas en la sección III del presente informe.
B38: V. CONCLUSIONES
B41: VI. RECOMENDACIONES
B44: VII. ANEXOS
B45: Los mapas que se requieran para la elaboración del proyecto deben ser impresos para su presentación en una escala adecuada que permita una correcta visualización. - ANÁLISIS DEL LABORATORIO - PANEL FOTOGRÁFICO

Sheet HERRAMIENTAS CLIMA Y PELI
B8: CLIMA
B9: Utilizar la información del SENAMHI de los siguientes opciones de la página web Idesep - Senamhi: a. Evento El Niño: extraer información de precipitaciones relacionadas a: * Niño 82-83, extraer información sobre intensidad de rango de precipitaciones. * Niño 97-98, extraer información sobre intensidad de rango de precipitaciones. * Niño 2017, extraer información sobre intensidad de rango de precipitaciones. b. Caracterización: focalizarse en la información de Temperatura mínima y máximas expresada en rangos actual, que representa el promedio de los últimos 30 años. c. Cambio Climático: extraer la información referida a: * Proyecciones 2030 anual, extraer información referente a: precipitación anual 2030, Temperatura mínima anual 2030, Temperatura máxima anual 2030. * Variación 2030 anual, extraer información referente a: precipitación variación anual 2030, Temperatura mínima variación anual 2030, Temperatura máxima variación anual 2030. La información debe ser axtraida del siguiente link: http://idesep.senamhi.gob.pe/geovisoridesep/go?accion=06.03.001.03.001.513.0000.00.00
B12: HERRAMIENTAS PARTICIPATIVAS: PELIGROS
B13: Las herramientas participativas publicadas por el MEF en el año 2015 son aquellas que trabajan directamente con la población involucrada mediante talleres participativos. La información primaria debe ser complementada con información técnica, así como con información de fuentes secundarias. Estas herramientas son de utilidad puesto que determinan a escala local: los peligros, la exposición y la vulnerabilidad de la Unidad Productora de servicios ecosistémicos hídricos. Herramientas participativas en los proyectos de inversión para la identificación de peligros asociados al cambio climático

Sheet ANALISIS DE RIESGO
B8: Análisis de riesgos en el contexto de cambio climático en los factores de producción
B9: En este informe se aplica una metodología cualitativa para el estudio de los factores de producción considerando la escasa información para el análisis de riesgos en un contexto de cambio climático, siendo aplicable a los proyectos cuya inversión sea menor o igual a las 750 UIT. En ese sentido, los factores que se incluyen en el análisis de riesgos de los factores de producción del servicio ecosistémico de regulación hídrica son:
B10: En este estudio, se identificarán los peligros de origen climático que impactan, generan o pueden generar riesgos actuales/potenciales en las funciones de los factores de producción que inciden en el servicio ecosistémico de regulación hídrica: cobertura vegetal, suelos y agua, conforme se observa en el gráfico siguiente:
B12: A. Análisis de riesgos del componente del factor suelo
B13: Este factor de producción tiene un rol importante en el ciclo de regulación del agua en tanto determina las características de la infiltración a nivel del perfil del suelo, propiedad del suelo que depende de la textura, es decir de la proporción del tipo de minerales de arcilla, limo y arena que dieron origen a las diferentes texturas del suelo. El cambio climático afecta de manera indirecta la tasa de infiltración del suelo, en la medida que una mayor ocurrencia de precipitaciones intensas o incremento en el promedio de precipitaciones pueden causar mayor erosión de los suelos, y este proceso, a su vez, altera la profundidad del perfil de suelo, lo cual reduce la tasa de infiltración.
B14: Riesgo potencial en la tasa de infiltración del suelo ante la mayor recurrencia de lluvias intensas
B16: B. Análisis de riesgos componente cobertura vegetal
B17: La cobertura vegetal es uno de los principales factores de producción del servicio ecosistémico de regulación hídrica ya que, al interceptar las precipitaciones, mejora los procesos de infiltración del agua en los suelos, reduciendo la escorrentía superficial del agua y la generación de procesos erosivos, facilitando a su vez en una mayor humedad del suelo y reducción de los procesos de desertificación. En un contexto de cambio climático, el rol de intercepción de la cobertura vegetal se ve afectada por el cambio en los patrones de lluvias, tales como la estacionalidad, intensidad, y frecuencia, que reducen la capacidad de intercepción del agua de lluvias. El objetivo del siguiente análisis es determinar el riesgo potencial de los efectos del cambio climático en las funciones que cumple la cobertura vegetal en el servicio de regulación hídrica, considerando el tipo de asociación vegetal (bofedales-césped, bosques-matorral y pajonales), frente a la reducción de precipitaciones. A manera de ejemplo se presenta el análisis de riesgo de la cobertura por asociación vegetal frente a este peligro.
B18: Riesgo potencial en la tasa de intercepción de la cobertura vegetal ante la reducción de precipitaciones (sequías)
B20: C. Análisis de riesgos en el componente del factor agua
B21: Tiene como objetivo identificar las condiciones de riesgo en la reducción de las tasas de almacenamiento de agua ante las variaciones en el clima, principalmente de los cambios en el patrón de lluvias, lo que tiene efectos directos, no sólo en los servicios ecosistémicos de regulación hídrica actual y futuros (de contar con información de escenarios climáticos). El volumen de agua almacenada en una cuenca corresponde al agua de lluvia que cae directamente al suelo y aquella que es interceptada por la cobertura vegetal (tasa de intercepción) en ambos casos el agua se infiltra (tasa de infiltración) y es conducida internamente o superficialmente hacia los cuerpos de agua subterráneos y/o superficiales respectivamente (tasa de almacenamiento). El cambio climático afecta este proceso, alterando la tasa de almacenamiento superficial y subterráneo, debido a la relación directa de la tasa de intercepción y la tasa de infiltración con los cambios en el régimen de precipitaciones convirtiéndose en un factor de riesgo para la capacidad de almacenamiento de las cuencas. En este sentido, a fin de ejemplificar cómo los peligros asociados al cambio climático inciden en la tasa de almacenamiento de los cuerpos de agua, se muestra a continuación, la relación de riesgo potencial entre la reducción de precipitación (sequías) y la capacidad de almacenamiento superficial en lagos, lagunas y cochas.
B22: Riesgo potencial en la tasa de almacenamiento de agua superficial ante la reducción de precipitaciones (sequías)

Sheet MATRIZ DE COSTO ESPECIALISTA
B2: MATRIZ DE LOS ESPECIALISTAS PARA CALCULAR SU COSTO
B3: PRODUCTO POR MEDIO FUNDAMENTAL | C3: DESCRIPCION DE ACCIONES | D3: ESPECIALISTA | E3: UNIDAD DE PRODUCCIÓN | G3: TIEMPO ESTIMADO | H3: COSTO UNITARIO EN SOLES | I3: COSTOS SUB TOTAL EN SOLES
E4: UM | F4: META
B5: HECTÁREAS DE COBERTURA VEGETAL INCREMENTADAS DEL ECOSISTEMA PRINCIPAL | C5: =+'8.ANALISIS TÉCNICO'!D26 -> REVEGETACIÓN CON ESPECIES NATIVAS | D5: Especialista de Cobertura Vegetal | E5: =+IF(C5="","","HA") -> HA | I5: =+G5*H5 -> 0
C6: =+'8.ANALISIS TÉCNICO'!D27 -> INSTALACIÓN DE CERCOS EXCLUIDORES | D6: Especialista de Cobertura Vegetal | E6: =+IF(C6="","","ML") -> ML | I6: =+G6*H6 -> 0
B7: HECTÁREAS DE ESTRUCTURA DE LA TURBA RECUPERADA DEL ECOSISTEMA PRINCIPAL | C7: =+'8.ANALISIS TÉCNICO'!D29 -> REVEGETACIÓN CON ESPECIES NATIVAS | D7: Especialista de Cobertura Vegetal | E7: =+IF(C7="","","HA") -> HA | I7: 0
B8: HECTÁREAS DE COBERTURA VEGETAL INCREMENTADAS DE LOS ECOSISTEMAS ASOCIADOS | C8: =+'8.ANALISIS TÉCNICO'!D31 -> REFORESTACIÓN CON ESPECIES NATIVAS | D8: Especialista de Cobertura Vegetal | E8: =+IF(C8="","","HA") -> HA | I8: 0
C9: =+'8.ANALISIS TÉCNICO'!D32 -> REVEGETACIÓN CON ESPECIES NATIVAS | D9: Especialista de Cobertura Vegetal | E9: HA | I9: 0
C10: =+'8.ANALISIS TÉCNICO'!D33 -> INSTALACIÓN DE CERCOS EXCLUIDORES | D10: Especialista de Cobertura Vegetal | E10: =+IF(C10="","","ML") -> ML | I10: 0
C11: =+'8.ANALISIS TÉCNICO'!D35 -> ENRIQUECIMIENTO DE SUELOS | D11: Especialista en Suelos | E11: HA | I11: 0
B12: NÚMERO DE MEDIDAS DE ADAPTACIÓN AL RÉGIMEN DE PRECIPITACIONES DE LOS ECOSISTEMAS ASOCIADOS | C12: =+'8.ANALISIS TÉCNICO'!D37 -> REPARACIÓN DEL CANAL AMUNADOR | D12: Especialista en hidrología | E12: HA | I12: =+G12*H12 -> 0
C13: =+'8.ANALISIS TÉCNICO'!D38 -> REPARACIÓN DEL CANAL DE MAMANTEO | D13: Especialista en hidrología | E13: =+IF(C13="","","ML") -> ML | I13: 0
C14: =+'8.ANALISIS TÉCNICO'!D39 -> CONSTRUCCIÓN DE ZANJAS DE INFILTRACIÓN | D14: Especialista en hidrología | E14: =+IF(C14="","","ML") -> ML | I14: 0
C15: =+'8.ANALISIS TÉCNICO'!D40 -> INSTALACIÓN DE QOCHAS | D15: Especialista en hidrología | E15: =+IF(C15="","","M2") -> M2 | I15: 0
C16: =+'8.ANALISIS TÉCNICO'!D41 -> CONSTRUCCIÓN DE TERRAZAS DE FORMACIÓN DE SUELOS | D16: Especialista en Suelos | E16: HA | I16: 0
B17: POBLADORES CON ADECUADAS CAPACIDADES EN PRÁCTICAS DE MANEJO DE LOS ECOSISTEMAS DE INTERÉS HÍDRICO | C17: =+'8.ANALISIS TÉCNICO'!D43 -> CAPACITACIÓN EN GESTIÓN INTEGRADA DE RECURSOS HÍDRICOS CON ENFOQUE DE CUENCA | D17: Especialista en proyectos | E17: =+IF(C17="","","EVENTO") -> EVENTO | I17: 0
C18: =+'8.ANALISIS TÉCNICO'!D44 -> ASISTENCIA TÉCNICA EN EL MANEJO DE ECOSISTEMAS DE INTERÉS HÍDRICO | D18: Especialista en proyectos | E18: =+IF(C18="","","EVENTO") -> EVENTO | I18: 0
C19: =+'8.ANALISIS TÉCNICO'!D45 -> CAPACITACIÓN EN BUENAS PRÁCTICAS PARA LA ADAPTACIÓN AL CAMBIO CLIMÁTICO Y GESTIÓN DE RIESGOS | D19: Especialista en proyectos | E19: =+IF(C19="","","TALLER") -> TALLER | I19: 0
C20: =+'8.ANALISIS TÉCNICO'!D46 -> SENSIBILIZACIÓN RELACIONADA A LA RECUPERACIÓN DEL SERVICIO ECOSISTÉMICO DE REGULACIÓN HÍDRICA | D20: Especialista en proyectos | E20: =+IF(C20="","","TALLER") -> TALLER | I20: 0
C21: =+'8.ANALISIS TÉCNICO'!D47 -> INTERCAMBIO DE EXPERIENCIAS RELACIONADAS A LA RECUPERACIÓN DEL SERVICIO ECOSISTÉMICO DE REGULACIÓN HÍDRICA | D21: Especialista en proyectos | E21: =+IF(C21="","","EVENTO") -> EVENTO | I21: 0
B22: N° DE ÁREAS U ÓRGANOS ENCARGADOS DE LA GESTIÓN DEL ECOSISTEMA DE INTERÉS HÍDRICO CON ADECUADAS CAPACIDADES EN GESTIÓN DEL ECOSISTEMA | C22: =+'8.ANALISIS TÉCNICO'!D49 -> CAPACITACIÓN A FUNCIONARIOS PÚBLICOS SOBRE LA GESTIÓN INTEGRADA DEL RECURSO HÍDRICO CON ENFOQUE DE CUENCA | D22: Especialista en proyectos | E22: =+IF(C22="","","TALLER") -> TALLER | I22: 0
C23: =+'8.ANALISIS TÉCNICO'!D50 -> CAPACITACIÓN A FUNCIONARIOS PÚBLICOS SOBRE LAS MEDIDAS DE ADAPTACIÓN EN UN CONTEXTO DE CAMBIO CLIMÁTICO EN LA GESTIÓN INTEGRADA DE LOS RECURSOS HÍDRICOS | D23: Especialista en proyectos | E23: =+IF(C23="","","TALLER") -> TALLER | I23: 0
C24: =+'8.ANALISIS TÉCNICO'!D51 -> DESARROLLO DE CAPACIDADES PARA EL MONITOREO Y SEGUIMIENTO DE LOS ECOSISTEMAS DE INTERÉS HÍDRICO Y EL SERVICIO ECOSISTÉMICO DE REGULACIÓN HÍDRICA | D24: Especialista en proyectos | E24: =+IF(C24="","","TALLER") -> TALLER | I24: 0
C25: =+'8.ANALISIS TÉCNICO'!D52 -> INTERCAMBIO DE EXPERIENCIAS SOBRE LA GESTIÓN INTEGRADA DEL RECURSO HÍDRICO CON ENFOQUE DE CUENCA | D25: Especialista en proyectos | E25: =+IF(C25="","","EVENTO") -> EVENTO | I25: 0

Sheet MANEJO LOS ECOSIST. DE INTE.
B9: Ficha Técnica para el diagnostico de Practicas de Conservación de Agua: Qochas
B10: Qochas | P10: Fecha
B11: Ubicación de las Qochas | F11: Norte | J11: Este | N11: Zona | R11: Datum
B13: Ubicación de las Qochas (describir) | F13: -------------------------------------
B14: Características físicas de la Qochas | F14: Área superficial (m2) | J14: Pendiente | N14: Profundidad
N15: Ancho: | R15: Alto:
B16: Tipo de ecosistema
B17: Tipo de vegetación
B18: Identificación de la Red Hidráulica
B19: Tipo de construcción
B20: Suelos disturbados (describir)
B21: Existencia de Dique | F21: Si _____ | N21: No __________
B22: Estado actual del Dique
B23: Obras de rehabilitación existentes (describir)
B24: Aspectos de análisis | C24: Accesibilidad | F24: 0= Bote, helicóptero, avión | J24: 1= Recorrido largo en vehículo o a pie en vía no demarcada | N24: 2= En vehículo seguido de distancia corta a pie(<500m) | R24: 3= Adyacente a áreas pobladas, corta distancia en vehículo o corta distancia a pie.
C25: Potencial de colapso | F25: 0= Ninguno | J25: 1=Cimentaciones en buenas condiciones, construcciones a nivel del suelo | N25: 2=Cimentaciones deterioradas, construcciones de poca elevación | R25: 3=Cimentaciones deterioradas, caída de escombros construcciones elevadas
C26: Condiciones de estructura | F26: 0=Estructuras removidas y sitio rehabilitado | J26: 1=Estructuras removidas y sitio no rehabilitado | N26: 2=Estructuras parcialmente removidas | R26: 3=Estructuras permanecen en el sitio
C27: Otras consideraciones
B28: Fotos y diagramas (use hojas adicionales si es necesario)
B29: Comentarios
B32: Ficha Técnica para el diagnostico de Practicas de Conservación de Agua: Mamanteo
B33: Mamanteo | P33: Fecha
B34: Ubicación del Mamanteo (describir) | F34: Norte | J34: Este | N34: Zona | R34: Datum
B36: Ubicación del Mamanteo (describir) | F36: -------------------------------------
B37: Características físicas del Mamanteo | F37: Área superficial (m2) | J37: Pendiente | N37: Profundidad
N38: Ancho: | R38: Alto:
B39: Tipo de ecosistema
B40: Tipo de vegetación
B41: Tipo de construcción
B42: Suelos disturbados (describir)
B43: Obras de rehabilitación existentes (describir)
B44: Aspectos de análisis | C44: Accesibilidad | F44: 0= Bote, helicóptero, avión | J44: 1= Recorrido largo en vehículo o a pie en vía no demarcada | N44: 2= En vehículo seguido de distancia corta a pie(<500m) | R44: 3= Adyacente a áreas pobladas, corta distancia en vehículo o corta distancia a pie.
C45: Potencial de colapso | F45: 0= Ninguno | J45: 1=Cimentaciones en buenas condiciones, construcciones a nivel del suelo | N45: 2=Cimentaciones deterioradas, construcciones de poca elevación | R45: 3=Cimentaciones deterioradas, caída de escombros construcciones elevadas
C46: Condiciones de estructura | F46: 0=Estructuras removidas y sitio rehabilitado | J46: 1=Estructuras removidas y sitio no rehabilitado | N46: 2=Estructuras parcialmente removidas | R46: 3=Estructuras permanecen en el sitio
C47: Otras consideraciones
B48: Fotos y diagramas (use hojas adicionales si es necesario)
B49: Comentarios
B52: Ficha Técnica para el diagnostico de Practicas de Conservación de Agua: Amuna
B53: Amuna | P53: Fecha
B54: Ubicación de la Amuna (describir) | F54: Norte | J54: Este | N54: Zona | R54: Datum
B56: Ubicación de la Amuna (describir) | F56: -------------------------------------
B57: Características físicas de la Amuna | F57: Área superficial (m2) | J57: Pendiente | N57: Profundidad
N58: Ancho: | R58: Alto:
B59: Tipo de ecosistema
B60: Tipo de vegetación
B61: Identificación de red hídrica
B62: Tipo de construcción
B63: Suelos disturbados (describir)
B64: Obras de rehabilitación existentes (describir)
B65: Aspectos de análisis | C65: Accesibilidad | F65: 0= Bote, helicóptero, avión | J65: 1= Recorrido largo en vehículo o a pie en vía no demarcada | N65: 2= En vehículo seguido de distancia corta a pie(<500m) | R65: 3= Adyacente a áreas pobladas, corta distancia en vehículo o corta distancia a pie.
C66: Potencial de colapso | F66: 0= Ninguno | J66: 1=Cimentaciones en buenas condiciones, construcciones a nivel del suelo | N66: 2=Cimentaciones deterioradas, construcciones de poca elevación | R66: 3=Cimentaciones deterioradas, caída de escombros construcciones elevadas
C67: Condiciones de estructura | F67: 0=Estructuras removidas y sitio rehabilitado | J67: 1=Estructuras removidas y sitio no rehabilitado | N67: 2=Estructuras parcialmente removidas | R67: 3=Estructuras permanecen en el sitio
C68: Otras consideraciones
B69: Fotos y diagramas (use hojas adicionales si es necesario)
B70: Comentarios
B83: Ficha Técnica para el diagnóstico de Prácticas de Conservación de Agua: Zanjas de Infiltración
B84: Zanja de Infiltración | P84: Fecha
B85: Ubicación de la Zanja de Infiltración (describir) | F85: Norte | J85: Este | N85: Zona | R85: Datum
B87: Ubicación de la Zanja de Infiltración (describir) | F87: -------------------------------------
B88: Características físicas de la Zanja de Infiltración | F88: Área superficial (m2) | J88: Pendiente | N88: Profundidad
N89: Ancho: | R89: Alto:
B90: Tipo de ecosistema
B91: Tipo de vegetación
B92: Tipo de construcción
B93: Suelos disturbados (describir)
B94: Existencia de Dique | F94: Si _____ | N94: No __________
B95: Estado actual del Dique
B96: Obras de rehabilitación existentes (describir)
B97: Aspectos de análisis | C97: Accesibilidad | F97: 0= Bote, helicóptero, avión | J97: 1= Recorrido largo en vehículo o a pie en vía no demarcada | N97: 2= En vehículo seguido de distancia corta a pie(<500m) | R97: 3= Adyacente a áreas pobladas, corta distancia en vehículo o corta distancia a pie.
C98: Potencial de colapso | F98: 0= Ninguno | J98: 1=Cimentaciones en buenas condiciones, construcciones a nivel del suelo | N98: 2=Cimentaciones deterioradas, construcciones de poca elevación | R98: 3=Cimentaciones deterioradas, caída de escombros construcciones elevadas
C99: Condiciones de estructura | F99: 0=Estructuras removidas y sitio rehabilitado | J99: 1=Estructuras removidas y sitio no rehabilitado | N99: 2=Estructuras parcialmente removidas | R99: 3=Estructuras permanecen en el sitio
C100: Otras consideraciones
B101: Fotos y diagramas (use hojas adicionales si es necesario)
B102: Comentarios
B110: Ficha Técnica para el diagnostico de Practicas de Conservación y manejo de ecosistemas: Reforestación | W110: TIPO | X110: SUBTIPO | Y110: ID-MEM | Z110: CODIGOS | AA110: ESTE (m) | AB110: NORTE (m) | AC110: COTA (m) | AD110: ANCHO (m) | AE110: ALTURA (m) | AF110: PROF./ESP. (+/- m) | AG110: AREA 2D (m) | AH110: AREA 3D (m) | AI110: PERIMETRO (m) | AJ110: LONGITUD (m) | AK110: AZIMUT (°) | AL110: GRADIENTE (°) | AM110: TIPO DE MATERIAL / ESTADO | AN110: MER | AO110: OBSERVACIONES DE CAMPO
B111: Reforestación | P111: Fecha | W111: ='[14]Componentes Totales - Mercedes '!B$17 -> Infraestructura | X111: ='[14]Componentes Totales - Mercedes '!C$17 -> Reservorio de agua | Y111: ='[14]Componentes Totales - Mercedes '!D$17 -> 14642 | Z111: ='[14]Componentes Totales - Mercedes '!E$17 -> N9153 | AA111: ='[14]Componentes Totales - Mercedes '!F$17 -> 285903.443 | AB111: ='[14]Componentes Totales - Mercedes '!G$17 -> 8906374.523 | AC111: ='[14]Componentes Totales - Mercedes '!H$17 -> 3621.025 | AD111: ='[14]Componentes Totales - Mercedes '!I$17 -> 6.06 | AE111: ='[14]Componentes Totales - Mercedes '!J$17 -> 1.7 | AF111: ='[14]Componentes Totales - Mercedes '!K$17 -> 0.45 | AG111: ='[14]Componentes Totales - Mercedes '!L$17 -> 64.5 | AH111: ='[14]Componentes Totales - Mercedes '!M$17 -> - | AI111: ='[14]Componentes Totales - Mercedes '!N$17 -> 33.5 | AJ111: ='[14]Componentes Totales - Mercedes '!O$17 -> 10.65 | AK111: ='[14]Componentes Totales - Mercedes '!P$17 -> - | AL111: ='[14]Componentes Totales - Mercedes '!Q$17 -> - | AM111: ='[14]Componentes Totales - Mercedes '!R$17 -> muro de concreto. | AN111: ='[14]Componentes Totales - Mercedes '!S$17 -> Mer-109 | AO111: ='[14]Componentes Totales - Mercedes '!T$17 -> muro de concreto.
B112: Ubicación del área reforestada | F112: Norte | J112: Este | N112: Zona | R112: Datum
B114: Ubicación de la área reforestada (describir) | F114: -------------------------------------
B115: Tamaño del área | F115: Área superficial (m2)
B117: Tipo de especie forestal
B118: Estado de conservación del área reforestada
B119: Existencia de suelo disturbados (describir)
B120: Aspectos de análisis | C120: Accesibilidad | F120: 0= Bote, helicóptero, avión | J120: 1= Recorrido largo en vehículo o a pie en vía no demarcada | N120: 2= En vehículo seguido de distancia corta a pie(<500m) | R120: 3= Adyacente a áreas pobladas, corta distancia en vehículo o corta distancia a pie.
C123: Otras consideraciones
B124: Fotos y diagramas (use hojas adicionales si es necesario)
B125: Comentarios
B127: Ficha Técnica para el diagnóstico de Prácticas de Conservación de Agua: Manejo de Pastizales
B128: Manejo de Pastizales | P128: Fecha
B129: Ubicación del área con manejo de pastizales | F129: Norte | J129: Este | N129: Zona | R129: Datum
B131: Ubicación del área (describir) | F131: -------------------------------------
B132: Características físicas de la área con manejo de pastizales | F132: Área superficial (m2)
B134: Tipo de vegetación
B135: Estado de conservación del pastizal
B136: Comunidad o grupo social que tienen el uso del pastizal
B137: Fotos y diagramas (use hojas adicionales si es necesario)
B138: Comentarios

Sheet FICHA GESTION
B9: FICHA DE GESTIÓN DEL ECOSISTEMA DE INTERÉS HÍDRICO
B10: Área encargada de la gestión del ecosistema
B11: Funciones del área encargada | F11: 1
F12: 2
F13: 3
F14: 4
F15: 5
F16: 6
B17: Organigrama del área encargada
B18: Descripción del puesto 1
B19: Perfil del funcionario en el puesto 1
B20: Descripción del puesto 2
B21: Perfil del funcionario en el puesto 2
B22: Descripción del puesto 3
B23: Perfil del funcionario en el puesto 3
B24: Marco normativo que indica las funciones del área
B25: Trabajadores del área encargada
B26: Nombres | C26: Apellido paterno | E26: Apellido materno | G26: Cargo actual | H26: Antigüedad | I26: Información de la última capacitación recibida
I27: Tema | J27: Fecha | K27: Horas | L27: Docente/Entidad
B31: Requerimientos de temas de capacitación en gestión de ecosistemas
B32: Nro de trabajadores potenciales para llevar la capacitación
B33: Temas de interés
A39: FICHA TÉCNICA PARA EL DIAGNÓSTICO DE SENSIBILIZACIÓN AMBIENTAL
A40: Información de sensibilización | E40: Nombre del encuestador | O40: Fecha
A41: Datos del encuestado | E41: Sexo | G41: F | H41: M | I41: Edad
A42: Identificación del ecosistema
A43: ¿Existen ecosistemas naturales en su zona? | E43: Si | F43: No | G43: Mencione un ecosistema | M43: Mencione una especie
A44: Conocimiento de la importancia del ecosistema
A45: ¿Cuál cree que es la principal contribución de un ecosistema? | E45: a) Regulación hídrica | G45: b) Provee suelo para la agricultura | K45: c) Provee forraje para el ganado | N45: d) Ninguno de los anteriores
A46: Identificación de problemas en el ecosistema
A47: Señale los principales problemas | E47: a) Disminución de forraje para animales | H47: b) Muerte de arboles/ arbustos/ pasturas | L47: c) Pérdida de especies con valor productivo | P47: d) Presencia de Cárcavas
A48: Posibles causas de los problemas en ecosistema
A49: Señale las principales causas | E49: a) Incendios forestales | G49: b) Heladas | J49: c) Sequías | M49: d) Sobrepastoreo | P49: e) Malas prácticas de manejo | S49: f) No tengo conocimiento
B76: FICHA DE DIAGNÓSTICO DE INFORMACIÓN AMBIENTAL
B77: Nro | C77: Tipo de estudio | D77: Tipo de ecosistema bajo estudio | E77: Fecha de elaboración y aprobación | F77: Documento de aprobación | G77: Modalidad de ejecución | I77: Consultores | K77: Nivel de profundidad del estudio | L77: Conclusiones mas Importantes del Estudio | M77: Observación
G78: In house | H78: Contrata | I78: Empresa | J78: Persona natural
B79: 1 | C79: Informe Técnico de la Calidad del agua
B80: 2 | C80: Balance Hídrico
B81: 3 | C81: Informe de cobertura vegetal del ecosistema
B82: 4 | C82: Informe de introducción de especies del ecosistema
B83: 5 | C83: Informe de características relacionadas a la infiltración de suelos
B84: 6 | C84: Informe de características del clima actual y futuro
B85: 7 | C85: Análisis de Peligros en un contexto de cambio climático
B86: 8 | C86: Imágenes satelitales del ecosistema bajo estudio
B87: 9 | C87: Estudio de composición de suelos según ecosistema bajo estudio
B88: 10 | C88: Estudio de identificación de geomorfología de la zona
B89: 11 | C89: Diagnostico del estado actual de los canales regulación hídrica
B90: 12 | C90: Topografía del área de estudio
B91: 13 | C91: Otros estudios
B92: 14
B93: 15
B94: 16
B95: 17
B96: 18
B97: 19
B98: 20
B102: FICHA DE SEGUIMIENTO Y MONITOREO AMBIENTAL
B103: Área encargada del Seguimiento y Monitoreo Ambiental
B104: Funciones del área encargada | F104: 1
F105: 2
F106: 3
F107: 4
F108: 5
F109: 6
B110: Descripción del puesto 1
B111: Perfil del funcionario en el puesto 1
B112: Descripción del puesto 2
B113: Perfil del funcionario en el puesto 2
B114: Descripción del puesto 3
B115: Perfil del funcionario en el puesto 3
B116: Marco normativo que indica las funciones del área de Seguimiento y Monitoreo Ambiental
B117: Trabajadores del área de Seguimiento y Monitoreo Ambiental
B118: Nombres | C118: Apellido paterno | E118: Apellido materno | G118: Cargo Actual | I118: Antigüedad
B124: Información de las acciones de Seguimiento y Monitoreo Ambiental Año _____________
B125: Fecha | C125: Persona encargada | E125: Temática | F125: Duración | H125: Acciones de Monitoreo | I125: Resultados Obtenidos | J125: Equipamiento Utilizado | L125: Métodos desarrollados
B134: Información de las acciones de Seguimiento y Monitoreo Ambiental Año _____________
B135: Fecha | C135: Persona encargada | E135: Temática | F135: Duración | H135: Acciones de Monitoreo | I135: Resultados Obtenidos | J135: Equipamiento Utilizado | L135: Métodos desarrollados
B144: Información de las acciones de Seguimiento y Monitoreo Ambiental Año _____________
B145: Fecha | C145: Persona encargada | E145: Temática | F145: Duración | H145: Acciones de Monitoreo | I145: Resultados Obtenidos | J145: Equipamiento Utilizado | L145: Métodos desarrollados
B154: Información de las acciones de Seguimiento y Monitoreo Ambiental Año _____________
B155: Fecha | C155: Persona encargada | E155: Temática | F155: Duración | H155: Acciones de Monitoreo | I155: Resultados Obtenidos | J155: Equipamiento Utilizado | L155: Métodos desarrollados
B164: Información de las acciones de Seguimiento y Monitoreo Ambiental Año _____________
B165: Fecha | C165: Persona encargada | E165: Temática | F165: Duración | H165: Acciones de Monitoreo | I165: Resultados Obtenidos | J165: Equipamiento Utilizado | L165: Métodos desarrollados
B176: FICHA TÉCNICA PARA EL DIAGNÓSTICO DE REPORTE DE INSTRUMENTOS DE GESTIÓN EXISTENTES (una ficha por acta)
B177: Acta N°
B178: Fecha de Reunión
B179: Listado de organizaciones participantes | H179: Rubro | K179: Intereses | N179: Acuerdos
B189: Nro | C189: Tipo de Instrumento | D189: Nombre del Instrumento | E189: Fecha de elaboración y aprobación | F189: Documento de aprobación | G189: Observación | L189: Observación
B191: 1
B192: 2
B193: 3
B194: 4
B195: 5
B196: 6
B197: 7
B198: 8
B199: 9
B200: 10

Sheet FORMATO DE INFORME
B8: I. OBJETIVO DEL ESTUDIO
B12: II. METODOLOGÍA
B13: A. MÉTODOS Y PROCEDIMIENTOS
B15: B. FUENTES DE INFORMACIÓN
B19: III. PARÁMETROS TÉCNICOS ANALIZADOS
B20: A.
B21: Definición Procedimientos
B22: B
B23: Definición Procedimientos
B26: IV. ANÁLISIS DE RESULTADOS
B30: V. CONCLUSIONES
B33: VI. RECOMENDACIONES
B36: VII. ANEXOS
B37: - Mapas - Análisis del laboratorio - Panel fotográfico

Sheet ESCALA
B8: BUENA | E8: MÁS DEL 70% DEL RECORRIDO TOTAL SE PUEDE TRANSITAR CON VEHÍCULO
B9: REGULAR | E9: ENTRE 30% Y 69% DEL RECORRIDO CON ACCESO VÍA VEHÍCULO
B10: MALA | E10: SOLAMENTE EL 29% O MENOS DEL RECORRIDO SE REALIZA CON VEHÍCULO

Sheet DOCUMENTOS DE TALLER

Sheet MÉTODO RAS
B11: RELACIÓN ENTRE LA PRECIPITACIÓN Y EL ESCURRIMIENTO TOTAL
G42: Fuente: VT Chow, citado por Aranda (1998)
G71: Fuente: Adaptado de Junker (2005)
C77: TABLA 1
C78: Por pendiente | G78: kp | K78: Profundiad hacia agua subterránea
C79: Muy plano (transparente) | G79: 0.4
C80: < 15% (transparente) | G80: 0.15 | K80: 2 - 1 m
C81: 15 - 30% (blanco) | G81: 0.1
C82: 30 - 50% (amarillo) | G82: 0.07 | K82: < 1m
C83: 50 - 70% (rojo) | G83: 0.05 | K83: Tejido urbano cerrado, …........
C84: > 70% (azul) | G84: 0.01
C87: TABLA 2
C88: Por textura de suelo
C89: Suelos arcillosos, litosoles de altura y suelos compactos impermeables | K89: 0.1
C90: Suelos de combinación de limo y arcilla, litosol y regosol de valles | K90: 0.15
C91: Suelo arenoso, recientes, suelos de cauces de ríos y suelos no muy compactos | K91: 0.2
C94: TABLA 3
C95: Por cobertura vegetal (ejemplos) | K95: kv
C96: Cuerpos de agua | K96: 0
C97: Salinera | K97: 0.05
C98: Playa, dunas y arena | K98: 0.07
C99: Pasto natural, zonas urbanas discontinuas, caña, grano básico, etc. | K99: 0.1
C100: Confieras, palmeras. Zona urbanas verdes, etc. | K100: 0.15
C101: Vegetación arbustiva, plantanales y bananeras, tejifo urbano, zonas comerciales, aeropuertos, etc. | K101: 0.18
C102: Bosque de café | K102: 0.19
C103: Bosques, lava reciente, etc. | K103: 0.2
C104: Vegetación esclerofila o espinos, cultivo de piña | K104: 0.3
C105: Fuente: Adaptado de Junker (2005)

Sheet ARBOL
F8: =+IF('6.PROBLEMA-OBJETIVO'!B61="","",'6.PROBLEMA-OBJETIVO'!B61) -> DISMINUCIÓN DEL APROVECHAMIENTO SOSTENIBLE DEL CAPITAL NATURAL
B11: =+IF('6.PROBLEMA-OBJETIVO'!F46="","",'6.PROBLEMA-OBJETIVO'!F46) -> DISMINUCIÓN DE LA OFERTA DEL AGUA POTABLE PARA USO POBLACIONAL | F11: =+IF('6.PROBLEMA-OBJETIVO'!F47="","",'6.PROBLEMA-OBJETIVO'!F47) -> DISMINUCIÓN DE LA OFERTA DEL AGUA PARA USO AGROPECUARIO | I11: =+IF('6.PROBLEMA-OBJETIVO'!F48="","",'6.PROBLEMA-OBJETIVO'!F48) -> DISMINUCIÓN DE LA OFERTA DEL AGUA PARA USO ENERGÉTICO | O11: =+IF('6.PROBLEMA-OBJETIVO'!F49="","",'6.PROBLEMA-OBJETIVO'!F49) -> DISMINUCIÓN DEL SERVICIO ECOSISTÉMICO DE PROVISIÓN DE LOS RECURSOS GENÉTICOS | S11: =+IF('6.PROBLEMA-OBJETIVO'!F50="","",'6.PROBLEMA-OBJETIVO'!F50) -> DISMINUCIÓN DEL SERVICIO ECOSISTÉMICO DE PROVISIÓN DE COMBUSTIBLE | V11: =+IF('6.PROBLEMA-OBJETIVO'!F51="","",'6.PROBLEMA-OBJETIVO'!F51) -> DISMINUCIÓN DEL SERVICIO ECOSISTÉMICO DE PROVISIÓN DE FORRAJE | Y11: =+IF('6.PROBLEMA-OBJETIVO'!F52="","",'6.PROBLEMA-OBJETIVO'!F52) -> DISMINUCIÓN DEL SERVICIO ECOSISTÉMICO DE PROVISIÓN DE MEDICINAS NATURALES | AB11: =+IF('6.PROBLEMA-OBJETIVO'!F53="","",'6.PROBLEMA-OBJETIVO'!F53) -> DISMINUCIÓN DEL SERVICIO ECOSISTÉMICO DE PROVISIÓN DE PRODUCTOS BIOQUÍMICOS
B14: =+IF('6.PROBLEMA-OBJETIVO'!B46="","",'6.PROBLEMA-OBJETIVO'!B46) -> MENOR DISPONIBILIDAD DEL SERVICIO ECOSISTÉMICOS DE PROVISIÓN DEL RECURSO HÍDRICO | T14: =+IF('6.PROBLEMA-OBJETIVO'!B49="","",'6.PROBLEMA-OBJETIVO'!B49) -> INCREMENTO EN EL DETERIORO DE LOS ECOSISTEMAS
F17: =+IF('6.PROBLEMA-OBJETIVO'!B28="","",'6.PROBLEMA-OBJETIVO'!B28) -> DISMINUCIÓN DEL SERVICIO ECOSISTÉMICO DE REGULACIÓN HÍDRICA EN LA MICROCUENCA DE 0
C20: =+IF('6.PROBLEMA-OBJETIVO'!B35="","",'6.PROBLEMA-OBJETIVO'!B35) -> DISMINUCIÓN DE CAPACIDAD DE ALMACENAMIENTO DEL AGUA EN EL ECOSISTEMA PRINCIPAL | P20: =+IF('6.PROBLEMA-OBJETIVO'!B38="","",'6.PROBLEMA-OBJETIVO'!B38) -> DISMINUCIÓN DE LA CAPACIDAD DE INFILTRACIÓN DEL AGUA EN EL ECOSISTEMA ASOCIADO | X20: =+IF('6.PROBLEMA-OBJETIVO'!B41="","",'6.PROBLEMA-OBJETIVO'!B41) -> INADECUADA GESTIÓN DEL SERVICIO ECOSISTÉMICO DE REGULACIÓN HÍDRICA
B23: =+IF('6.PROBLEMA-OBJETIVO'!F35="","",'6.PROBLEMA-OBJETIVO'!F35) -> ALTERACIÓN DE LA COBERTURA VEGETAL NATIVA | F23: =+IF('6.PROBLEMA-OBJETIVO'!F36="","",'6.PROBLEMA-OBJETIVO'!F36) -> ALTERACIÓN DE LAS CARACTERÍSTICAS DE LA TURBA | I23: =+IF('6.PROBLEMA-OBJETIVO'!F37="","",'6.PROBLEMA-OBJETIVO'!F37) -> CAMBIO EN EL RÉGIMEN DE PRECIPITACIONES Y TEMPERATURAS | O23: =+IF('6.PROBLEMA-OBJETIVO'!F38="","",'6.PROBLEMA-OBJETIVO'!F38) -> DISMINUCIÓN DE LA COBERTURA VEGETAL NATIVA | S23: =+IF('6.PROBLEMA-OBJETIVO'!F39="","",'6.PROBLEMA-OBJETIVO'!F39) -> ALTERACIÓN DE LAS CARACTERÍSTICAS DEL SUELO | V23: =+IF('6.PROBLEMA-OBJETIVO'!F40="","",'6.PROBLEMA-OBJETIVO'!F40) -> CAMBIO EN EL RÉGIMEN DE PRECIPITACIONES Y TEMPERATURAS | Y23: =+IF('6.PROBLEMA-OBJETIVO'!F41="","",'6.PROBLEMA-OBJETIVO'!F41) -> INADECUADO MANEJO DE LOS ECOSISTEMAS DE INTERÉS HÍDRICO | AB23: =+IF('6.PROBLEMA-OBJETIVO'!F42="","",'6.PROBLEMA-OBJETIVO'!F42) -> INADECUADA CAPACIDAD DE GESTIÓN DE LOS ECOSISTEMAS DE INTERÉS HÍDRICO

Sheet COMUNICACIÓN TÉCNICA
B8: 1.- RELACIÓN ENTRE LA PRECIPITACIÓN Y EL ESCURRIMIENTO TOTAL Aranda, C. (1998)
B9: El escurrimiento es la parte de la precipitación que fluye por gravedad por la superficie del terreno o en el interior del mismo. El escurrimiento total en una cuenca tiene varios componentes como la precipitación en exceso, el escurrimiento superficial, las precipitaciones en cauces, escurrimientos sub superficiales rápidos, escurrimientos subterráneos y escurrimientos sub superficiales lentos. Sin embargo, para fines prácticos, el escurrimiento total se clasifica generalmente en ESCURRIMIENTO DIRECTO y ESCURRIMIENTO BASE; el primero integrado por los cuatro primeros (precipitación en exceso, el escurrimiento superficial, las precipitaciones en cauces, escurrimientos sub superficiales rápidos) y el segundo integrado por dos últimos (escurrimientos subterráneos y escurrimientos sub superficiales lentos). Asimismo, el escurrimiento también es conocido como gasto de un cauce, descarga de una corriente, rendimiento de una cuenca, aportación liquida, normalmente se expresa en tres formas: a. Volumen en la unidad de tiempo usualmente en m3/s o equivalencias b. Gasto unitario m3/s/km2 o o equivalencias c. En lámina o tirante equivalente sobre cuenca, en milímetros por día, por mes o por año.
B13: Relación entre la precipitación y el escurrimiento total
B42: 2.- LA PROPUESTA METODOLÓGICA
B43: Se elaboró una propuesta metodológica de la estimación del escurrimiento base que aporta al escurrimiento total por efecto de la recuperación de los ecosistemas en la cuenca, el cual es un insumo para la ficha estándar de recuperación del servicio ecosistémico de regulación hídrica. Se integraron factores climáticos, biofísicos y ecosistémicos, así como criterios técnicos.
B45: 3.- LIMITACIONES Y SUPUESTOS DE LA PROPUESTA
B46: La descripción del ítem 1, constituye una relación muy simplificada del ciclo hidrológico del escurrimiento; dicho proceso es mucho más complicado debido a que influyen muchos otros factores que pueden varias de un lugar a otro, como las variables meteorológicas, las otras formas de precipitación, la humedad del suelo, la permeabilidad o impermeabilidad de la geología, las recargas de otras cuencas, la interconexión de los acuíferos, factores humanos, entre otros. Con relación a los supuestos, para fines prácticos, el escurrimiento total se clasificó en escurrimiento directo y escurrimiento base. Asimismo, en ecosistemas deteriorados, su efecto en la infiltración disminuye el valor de kv en un 50%.
B48: 4.- LA METODOLOGÍA CONSTA DE TRES FASES
B51: Fase 1: es la recopilación y análisis de la información
B52: Seleccionar información de precipitación, estimación de la evapotranspiración, tipo de ecosistemas, tipo de suelos, pendientes, coeficientes de infiltración potencial, y mapas temáticos si es necesario.
B55: Fase 2: Estimación de la recarga potencial por infiltración.
B56: • Paso 1.- BC=P-ET; donde: BC=Balance Climático; P= Precipitación (mm/año); ET=Evapotraspiración (mm/año) • Paso 2.- C=(kv+kp+ks); donde: C=coeficiente de infiltración; kv=fracción que infiltra por efecto del tipo de ecosistema; kp= fracción que infiltra por efecto de la pendiente y ks= fracción que infiltra por efecto del tipo de suelo, su textura (adimencionales) • Paso 3.- R=BC*C; donde: R=recarga potencial por infiltración (mm/año) • Paso 4.- Siendo la intervención en 1 ha, se tiene la siguiente conversión. 10*R= (m3/año-ha).
B59: Fase 3: Estimación del escurrimiento base que aporta al escurrimiento total Basado en Gómez S; Guzmán, J. (2011)
B60: Se aplica un análisis probabilidades bajo un escenario conservador (muy bajo 20%, bajo 30%, moderado 50%) a la recarga potencial por infiltración (R), para estimar el escurrimiento base que aporta al escurrimiento total.
B64: Esquema de las Fases para la estimación del escurrimiento base que aporta al escurrimiento total por efecto de la recuperación de los ecosistemas en la cuenca
B110: 5.- ESTIMACIÓN DE UNA SITUACIÓN CON PROYECTO Y SIN PROYECTO
B112: Tablas de kv ; kp y ks Basado en Mapa Nacional de Ecosistemas del Perú, MINAM
B113: Las tablas kv; kp y ks; que estiman la fracción que infiltra por efecto del tipo de ecosistema, % de pendiente y suelo respectivamente son las siguientes :
B116: Tabla 1.- valores de kv, con proyecto y sin proyecto
G117: CP | H117: SP
E118: N° | F118: Ecosistemas | G118: Kv | H118: Kvo
E119: 1 | F119: bosque basimontano de yunga | G119: 0.2 | H119: =G119/2 -> 0.1
E120: 2 | F120: bosque montano de yunga | G120: 0.2 | H120: =G120/2 -> 0.1
E121: 3 | F121: bosque altimontano (pluvial) de yunga | G121: 0.2 | H121: 0.1
E122: 4 | F122: matorral montano | G122: 0.15 | H122: 0.075
E123: 5 | F123: páramo | G123: 0.08 | H123: 0.04
E124: 6 | F124: pajonal de puna seca | G124: 0.1 | H124: 0.05
E125: 7 | F125: pajonal de puna humeda | G125: 0.1 | H125: 0.05
E126: 8 | F126: bofedal | G126: 0.05 | H126: 0.025
E127: 9 | F127: zona periglaciar y glaciar | G127: 0.05 | H127: 0.025
E128: 10 | F128: jalca | G128: 0.1 | H128: 0.05
E129: 11 | F129: matorral de puna seca | G129: 0.1 | H129: 0.05
E130: 12 | F130: bosque relicto altoandino (queñual entre otros) | G130: 0.2 | H130: 0.1
E131: 13 | F131: bosque relicto montano de vertiente occidental | G131: 0.2 | H131: 0.1
E132: 14 | F132: bosque relicto mesoandino | G132: 0.2 | H132: 0.1
E133: 15 | F133: bosque estacionalmente seco interandino | G133: 0.25 | H133: 0.125
E134: 16 | F134: Matorral andino | G134: 0.15 | H134: 0.075
E135: 17 | F135: lago y lagunas | G135: 0 | H135: 0
E136: 18 | F136: ríos | G136: 0 | H136: 0
C137: Fuente: Adaptado de MINAM (2019) y Junker, M. (2005)
B139: Tabla 2.- valores de kp
E140: N° | F140: Rango de % de pendiente | G140: kp
E141: 1 | F141: muy plano | G141: 0.4
E142: 2 | F142: < 15% | G142: 0.15
E143: 3 | F143: 15-30% | G143: 0.1
E144: 4 | F144: 30-50% | G144: 0.07
E145: 5 | F145: 50-70% | G145: 0.05
E146: 6 | F146: >70% | G146: 0.01
C147: Fuente: Junker, M. (2005)
B149: Tabla 3.- valores de ks
E150: N° | F150: Por textura del suelo | G150: Ks
E151: 1 | F151: Suelos arcillosos, litosoles de altura y suelos compactos impermeables | G151: 0.1
E152: 2 | F152: Suelos de combinación de limo y arcilla, Litosol y Regosol de valles | G152: 0.15
E153: 3 | F153: Suelo arenoso, recientes, suelos de cauces de rios y suelos no muy compactos | G153: 0.2
C154: Fuente: Junker, M. (2005)
B156: 6.- MEDICION DEL CAUDAL
B157: El caudal es la tasa a la que el agua discurre a través de una sección transversal; se expresa en unidades de volumen por unidad de tiempo, [l/s] para flujos pequeños y [m3/s] para flujos mayores. En ocasiones, el caudal también se expresa en unidades de volumen por unidad de tiempo y por área de influencia, [l/s/km2]. Por lo general, el valor de caudal se expresa en función de la altura del agua en una estación de aforo, la misma que tiene como propósito llevar registros continuos y sistemáticos de la altura del agua y el caudal fluvial (OMM, 2011). Por tal razón, estas estaciones deben contar con limnígrafos (p. ej. sensores de nivel automáticos) encargados de las mediciones de altura de agua y una sección de control (estructura de medición), misma que, debe tener características geométricas conocidas y estables que permitan determinar el flujo del agua que pasa a través de ella.
B158: Ejemplos de vertederos de sección triangular y rectangular combinadas
B160: Izq: vertedero en el páramo del volcán Pichincha, Lloa (CONDESAN). Der: vertedero en la cuenca del río Zhurucay, Paute (Grupo de Ciencias de la Tierra y del Ambiente de la Universidad de Cuenca). Fuente: Guía metodológica para el monitoreo hidrológico de ecosistemas andinos – iMHEA Versión 27 de Agosto de 2013
B161: En corrientes fluviales de montaña donde existen flujos moderados, la medición de los caudales se debe realizar por medio de la construcción de un vertedero en la salida de la cuenca y la instalación de un sensor de nivel de agua. Para microcuencas pequeñas el vertedero deberá tener una sección combinada rectangular y triangular (Figura 3) para que se puedan medir los caudales bajos y los caudales pico. Los caudales son calculados a partir de la relación altura del agua - caudal, lo que es conocido como curva de descarga. Gráficamente, los caudales se colocan en el eje de las abscisas (x) y la altura correspondiente en el eje de las ordenadas (y); en coordenadas rectangulares, la gráfica suele tener forma cóncava invertida ya que el caudal viene frecuentemente descrito por una función de potencial de la profundidad del flujo (OMM, 2011). La relación altura del agua – caudal, está en función de la geometría de los elementos del canal o estructura de control (natural o artificial) aguas abajo. Cuando se trata de un vertedero, esta relación está implícita dentro de la ecuación que caracteriza la descarga a través de la estructura.
B163: Vertederos
B164: Los vertederos son dispositivos hidráulicos que consisten en una escotadura (de geometría conocida) a través de la cual circula el flujo que se quiere medir. Según el Protocolo de Monitoreo y Seguimiento del Agua (IDEAM, 2007), se recomienda obtener velocidades mínimas (0.15 m/s) en el sitio de emplazamiento del vertedero, debido a que el caudal que fluye por un vertedero depende de la velocidad de llegada; y si la velocidad es considerablemente alta, el aforo pierde precisión (IDEAM, 2007). Por lo tanto, se deberá buscar un lugar de emplazamiento que cumpla con esta característica, y de no ser posible, se podría optar por una ampliación de la sección en la zona de aproximación al lugar de medición (caso extremo). Los límites de caudal (máximo y mínimo) previstos a medir, determinan la elección del tipo y las dimensiones del vertedero. En todos los casos deberá tomarse en consideración (IDEAM, 2007): • La altura no debe ser inferior a 6 centímetros para el caudal previsto y no debe exceder de 60 cm (vertedero triangular). • Para vertederos rectangulares la altura no debe exceder de un tercio de la longitud del vertedero.
B167: Lugar de emplazamiento del vertedero
B168: De acuerdo a la Organización Meteorológica Mundial (OMM, 2011), el lugar de emplazamiento de una estación de medición de caudal en una corriente fluvial debería responder a las siguientes características: • El curso general de la corriente será rectilíneo a lo largo de aproximadamente 100 m corriente arriba y corriente abajo respecto del emplazamiento de medición. En las cuencas andinas esta condición es muy difícil de conseguir. Se recomienda buscar lugares que tengan 6 m corriente arriba y 2 m corriente abajo. • El flujo total estará confinado en un canal para todo el intervalo de alturas, y no habrá flujos subsuperficiales que no pasen por el emplazamiento. • El lecho fluvial no habrá experimentado erosión y deposición, y estará exento de maleza. • Las márgenes serán permanentes y suficientemente altas para contener las crecidas. • Se dispondrá de un emplazamiento, inmediatamente corriente arriba del control, en el que se haga el registro de alturas de agua y que conste con las seguridades pertinentes. • El emplazamiento de medición estará lo suficientemente lejos corriente arriba de la confluencia con otra corriente fluvial o de los efectos de las mareas como para evitar toda influencia variable de la otra corriente fluvial o marea sobre la altura del agua en el emplazamiento de medición. La distancia mínima se determinará en campo por personal técnico calificado. • El emplazamiento será fácilmente accesible a efectos de instalación y utilización de la estación de aforo. • Incluso en presencia de hielo debería ser posible registrar la altura y medir el caudal. • En las proximidades de la estación de aforo no habrá olas ni ondulaciones en la superficie del agua. Por ello, es importante que personal técnico calificado determine el lugar más apropiado para el emplazamiento de la estación.
B171: Geometría y ecuación del vertedero
B172: Las características geométricas del vertedero determinan el caudal que se descarga a través de él. Entre las más comunes se encuentran la sección rectangular y la sección triangular. La propuesta de la iMHEA, es la utilización de un vertedero de sección combinada (Figura 1); sección triangular para la medición de caudales bajos, y una sección rectangular para medir caudales pico. En el Ecuador, en la cuenca del río Zhurucay (Provincia del Azuay), se han utilizado vertederos de sección combinada tal como propone la iMHEA. Estos están compuestos por una sección triangular con θ=90°, ht= 0.30 m, Lt= 0.60 m y una sección rectangular con Lr= entre 1.4 y 2.60 m. La ecuación para el cálculo del caudal es:
B173: Donde: Q: Caudal [l/s] H: altura de agua desde el vértice hasta la superficie de agua [m] ht: altura de la sección triangular [m] hr: altura de agua sobre la sección triangular [m] Lt: ancho de la sección triangular [m] Lr: ancho de la sección rectangular [m] B= Lr – Lt: ancho de la sección rectangular (ancho total del vertedero [Lr] menos el ancho de la sección triangular [Lt]) [m]
B175: En la práctica, cada vertedero deberá acoplarse a las condiciones geográficas de su sitio de implantación, y por tanto, variarán las dimensiones de uno a otro. Por ello, se considera importante introducir una ecuación general para el cálculo del caudal sobre un vertedero de sección combinada (Villacís et al., 2013), la cual debe ser afinada determinando un coeficiente de descarga en cada caso. El coeficiente de descarga, para el vertedero deberá obtenerse experimentalmente mediante una prueba de campo, la misma que será realizada por personal técnico capacitado. Una forma de conseguirlo es la calibración de la ecuación en base a un aforo manual que determine el caudal y lo relacione con la altura en ese instante. Adicionalmente, este aforo manual, deberá convertirse en una práctica común en cada visita a la estación con el objeto de validar la ecuación del vertedero.
B177: Nivel de agua
B178: La altura o nivel del agua es la elevación de la superficie de una corriente fluvial respecto de un nivel de referencia. Mediante su correlación con el caudal fluvial constituye el punto de partida para obtener registros de caudal (OMM, 2011). La medición se debe realizar de dos formas: (i) la primera de tipo continuo y automático a través de sensores de presión que pueden ser integrados en un solo equipo que realice la medición directa del nivel del agua, o independientes, instalados en parejas, uno dentro de la corriente fluvial y otro en la superficie para medir la presión atmosférica y realizar la compensación respectiva; (ii) la segunda de tipo manual, mediante la instalación de una regleta graduada milimétricamente (limnímetro), que se instalará en un punto muy cercano al de los sensores automáticos y que servirá para la validación de estos datos. De acuerdo a la Guía de Prácticas Hidrológicas (OMM, 2011), para que las mediciones de nivel del agua sean apropiadas para su uso en la medición del caudal mediante una estructura de control (vertedero), ésta deberá realizarse a una distancia no menor a 3 veces hmax aguas arriba de la sección de control, donde hmax es la máxima altura para la cual la sección de control es efectiva (altura de la cresta del vertedero). La medición no puede realizarse en el mismo lugar de emplazamiento de la estructura ya que debido al efecto de contracción de la lámina de agua a su paso por la cresta del vertedero, esta medición no sería la carga real actuando en el mismo (Sotelo Dávila, 1997). Por otra parte, la altura del agua que debe ser medida es aquella que está actuando sobre la estructura de control (carga hidráulica), por lo tanto, la cota de referencia para la medición del nivel del agua debe ser igual a la cota de la cresta del vertedero, es decir, el nivel del agua por encima del vértice de la platina metálica.
B181: Aforos manuales y observación de nivel de agua
B182: En la operación del sistema de monitoreo, durante cada descarga de datos, se debe realizar un aforo manual del caudal que escurre por él. Este aforo permite que la información registrada por el sensor de nivel sea fácilmente validada con información real de campo. El aforo manual se realiza con un recipiente de volumen conocido en el cual se recepta el agua que fluye por el vertedero y se registra el tiempo necesario para llenar el recipiente. El uso de recipientes de mayor volumen disminuye los errores en las mediciones. El cálculo de caudal se efectúa dividiendo el volumen del recipiente para el tiempo que tardó en llenarse. Se deben realizar por lo menos tres lecturas de este tipo para luego proceder a obtener un valor promedio. Se registra este valor, la fecha y hora de la medición. Adicionalmente se colocará una regleta a escala milimétrica (limnímetro) aguas arriba del vertedero en una de sus paredes o en una estructura independiente para realizar una medición visual de la altura del agua, la fecha y hora, durante cada descarga de datos o visita a la estructura. Este dato servirá para validar la información registrada por el sensor automático. La relación entre la altura registrada en la regleta (medida desde el vértice del vertedero hacia la superficie del agua) y el caudal aforado anualmente permiten obtener la curva de descarga de la estructura hidráulica (vertedero), con lo cual la transformación de los niveles registrados por los equipos automáticos en caudales puede ser estimada con mayor precisión durante los cálculos computacionales. En caso de constatación de falla del sensor automático, esta curva de descarga podrá ser usada para la corrección de las mediciones.
B184: 7.- ESTIMACIÓN DE UNA SITUACIÓN CON PROYECTO Y SIN PROYECTO - EJEMPLOS DE APLICACIÓN
B186: Fase 1
B187: En la cuenca del río Shullcas, se tiene el proyecto recuperación de la Jalca, ubicado en suelos de combinación de limo y arcilla, con pendiente características de 20 %, con una precipitación anual de 1013.70 mm y una estimación de evapotranspiración anual igual a 238.7 mm. el cual busca una recuperación de 20 hectáreas en la microcuenca de la laguna de Huacracocha.
B190: Fase 2
C192: 1.- Estimación de la recarga potencial por infiltración | J192: Situación S/P | K192: Situación C/P
K193: C/P
C194: Información: | I194: Unidades | J194: Valor | K194: Valor
C195: Precipitación anual | I195: (mm/año) | J195: 1013.7 | K195: 1013.7
C196: Evapotraspiración anual | I196: (mm/año) | J196: 238.66 | K196: 238.66
C197: Balance climático (BC) | I197: (mm/año) | J197: =J195-J196 -> 775.04 | K197: =K195-K196 -> 775.04
C198: Tipo de ecosistema: Jalca
C199: Kv | J199: =+H134 -> 0.075 | K199: =+G134 -> 0.15
C200: Kp | J200: =+G142 -> 0.15 | K200: =+J200 -> 0.15
C201: Ks | J201: =+G152 -> 0.15 | K201: =+J201 -> 0.15
C202: C= Kv+Kp+Ks | J202: =SUM(J199:J201) -> 0.375 | K202: =SUM(K199:K201) -> 0.45
C203: Estimacion de la recarga potencial por Infiltración (S/P): BC*C | I203: (mm/año) | J203: =J197*J202 -> 290.64
C204: Intervención de 1 ha | I204: (m3/ha-año) | J204: =10*J203 -> 2906.4
C205: Recarga potencial por Infiltración (C/P): BC*C | I205: (mm/año) | K205: =K197*K202 -> 348.768
C206: Siendo área de intervención de 1 ha | I206: (m3/ha-año) | K206: =10*K205 -> 3487.68
B210: Fase 3
B211: Análisis de probabilidades para estimar el aporte al escurrimiento total, bajo un escenario conservador
H214: S/P | I214: C/P
G215: (m3/año -ha) | H215: =+J204 -> 2906.4 | I215: =+K206 -> 3487.68
E217: Caso 1 | H217: S/P | I217: C/P
E218: Escenarios | F218: Porcentaje | G218: Probabilidad | H218: % de la recarga potencial por infiltración (m3/año -ha) | I218: % de la recarga potencial por infiltración (m3/año -ha)
E219: Muy bajo | F219: 0.2 | G219: =1/3 -> 0.3333333333 | H219: =+H215*F219 -> 581.28 | I219: =+I215*F219 -> 697.536
E220: Bajo | F220: 0.3 | G220: =1/3 -> 0.3333333333 | H220: =+H215*F220 -> 871.92 | I220: =+I215*F220 -> 1046.304
E221: Moderado | F221: 0.5 | G221: =1/3 -> 0.3333333333 | H221: =+H215*F221 -> 1453.2 | I221: =+I215*F221 -> 1743.84
E222: Escurrimiento base (m3/año -ha) | H222: =SUMPRODUCT(G219:G221,H219:H221) -> 968.8 | I222: =SUMPRODUCT(G219:G221,I219:I221) -> 1162.56
E225: Caso 2 | H225: S/P | I225: C/P
E226: Escenarios | F226: Porcentaje | G226: Probabilidad | H226: % de la recarga potencial por infiltración (m3/año -ha) | I226: % de la recarga potencial por infiltración (m3/año -ha)
E227: Muy bajo | F227: 0.2 | G227: =2/3 -> 0.6666666667 | H227: =+H215*F227 -> 581.28 | I227: =+I215*F227 -> 697.536
E228: Bajo | F228: 0.3 | G228: =1/3 -> 0.3333333333 | H228: =+H215*F228 -> 871.92 | I228: =+I215*F228 -> 1046.304
E229: Moderado | F229: 0.5 | G229: 0 | H229: =+H215*F229 -> 1453.2 | I229: =+I215*F229 -> 1743.84
E230: Escurrimiento base (m3/año -ha) | H230: =SUMPRODUCT(G227:G229,H227:H229) -> 678.16 | I230: =SUMPRODUCT(G227:G229,I227:I229) -> 813.792
E233: Caso 3 | H233: S/P | I233: C/P
E234: Escenarios | F234: Porcentaje | G234: Probabilidad | H234: % de la recarga potencial por infiltración (m3/año -ha) | I234: % de la recarga potencial por infiltración (m3/año -ha)
E235: Muy bajo | F235: 0.2 | G235: 0.3333333333 | H235: =+$H$215*F235 -> 581.28 | I235: =+$I$215*F235 -> 697.536
E236: Bajo | F236: 0.3 | G236: 0.6666666667 | H236: =+$H$215*F236 -> 871.92 | I236: =+$I$215*F236 -> 1046.304
E237: Moderado | F237: 0.5 | G237: 0 | H237: =+$H$215*F237 -> 1453.2 | I237: =+$I$215*F237 -> 1743.84
E238: Escurrimiento base (m3/año -ha) | H238: =SUMPRODUCT(G235:G237,H235:H237) -> 775.04 | I238: =SUMPRODUCT(G235:G237,I235:I237) -> 930.048
E241: Caso 4 | H241: S/P | I241: C/P
E242: Escenarios | F242: Porcentaje | G242: Probabilidad | H242: % de la recarga potencial por infiltración (m3/año -ha) | I242: % de la recarga potencial por infiltración (m3/año -ha)
E243: Muy bajo | F243: 0.2 | G243: 0 | H243: =+$H$215*F243 -> 581.28 | I243: =+$I$215*F243 -> 697.536
E244: Bajo | F244: 0.3 | G244: 0.3333333333 | H244: =+$H$215*F244 -> 871.92 | I244: =+$I$215*F244 -> 1046.304
E245: Moderado | F245: 0.5 | G245: 0.6666666667 | H245: =+$H$215*F245 -> 1453.2 | I245: =+$I$215*F245 -> 1743.84
E246: Escurrimiento base (m3/año -ha) | H246: =SUMPRODUCT(G243:G245,H243:H245) -> 1259.44 | I246: =SUMPRODUCT(G243:G245,I243:I245) -> 1511.328
E249: Caso 5 | H249: S/P | I249: C/P
E250: Escenarios | F250: Porcentaje | G250: Probabilidad | H250: % de la recarga potencial por infiltración (m3/año -ha) | I250: % de la recarga potencial por infiltración (m3/año -ha)
E251: Muy bajo | F251: 0.2 | G251: 0 | H251: =+$H$215*F251 -> 581.28 | I251: =+$I$215*F251 -> 697.536
E252: Bajo | F252: 0.3 | G252: 0.6666666667 | H252: =+$H$215*F252 -> 871.92 | I252: =+$I$215*F252 -> 1046.304
E253: Moderado | F253: 0.5 | G253: 0.3333333333 | H253: =+H215*F253 -> 1453.2 | I253: =+$I$215*F253 -> 1743.84
E254: Escurrimiento base (m3/año -ha) | H254: =SUMPRODUCT(G251:G253,H251:H253) -> 1065.68 | I254: =SUMPRODUCT(G251:G253,I251:I253) -> 1278.816
E257: Caso 6 | H257: S/P | I257: C/P
E258: Escenarios | F258: Porcentaje | G258: Probabilidad | H258: % de la recarga potencial por infiltración (m3/año -ha) | I258: % de la recarga potencial por infiltración (m3/año -ha)
E259: Muy bajo | F259: 0.2 | G259: 0.6666666667 | H259: =+$H$215*F259 -> 581.28 | I259: =+$I$215*F259 -> 697.536
E260: Bajo | F260: 0.3 | G260: 0 | H260: =+$H$215*F260 -> 871.92 | I260: =+$I$215*F260 -> 1046.304
E261: Moderado | F261: 0.5 | G261: 0.3333333333 | H261: =+$H$215*F261 -> 1453.2 | I261: =+$I$215*F261 -> 1743.84
E262: Escurrimiento base (m3/año -ha) | H262: =SUMPRODUCT(G259:G261,H259:H261) -> 871.92 | I262: =SUMPRODUCT(G259:G261,I259:I261) -> 1046.304
E265: Caso 7 | H265: S/P | I265: C/P
E266: Escenarios | F266: Porcentaje | G266: Probabilidad | H266: % de la recarga potencial por infiltración (m3/año -ha) | I266: % de la recarga potencial por infiltración (m3/año -ha)
E267: Muy bajo | F267: 0.2 | G267: =1/3 -> 0.3333333333 | H267: =+$H$215*F267 -> 581.28 | I267: =+$I$215*F267 -> 697.536
E268: Bajo | F268: 0.3 | G268: 0 | H268: =+$H$215*F268 -> 871.92 | I268: =+$I$215*F268 -> 1046.304
E269: Moderado | F269: 0.5 | G269: =2/3 -> 0.6666666667 | H269: =+$H$215*F269 -> 1453.2 | I269: =+$I$215*F269 -> 1743.84
E270: Escurrimiento base (m3/año -ha) | H270: =SUMPRODUCT(G267:G269,H267:H269) -> 1162.56 | I270: =SUMPRODUCT(G267:G269,I267:I269) -> 1395.072
H273: Situación S/P | I273: Situación C/P
G275: Casos | H275: Escurrimiento base (m3/año-ha) | I275: Escurrimiento base (m3/año-ha)
G276: Caso 1 | H276: =+H222 -> 968.8 | I276: =+I222 -> 1162.56
G277: Caso 2 | H277: =+H230 -> 678.16 | I277: =+I230 -> 813.792
G278: Caso 3 | H278: =+H238 -> 775.04 | I278: =+I238 -> 930.048
G279: Caso 4 | H279: =+H246 -> 1259.44 | I279: =+I246 -> 1511.328
G280: Caso 5 | H280: =+H254 -> 1065.68 | I280: =+I254 -> 1278.816
G281: Caso 6 | H281: =+H262 -> 871.92 | I281: =+I262 -> 1046.304
G282: Caso 7 | H282: =+H270 -> 1162.56 | I282: =+I270 -> 1395.072
G283: Escurrimiento base que aporta al caudal total | H283: =AVERAGE(H276:H282) -> 968.8 | I283: =AVERAGE(I276:I282) -> 1162.56
H285: Diferencial de situación S/P con C/P
G286: Escurrimiento que aporta al caudal total | H286: =I283-H283 -> 193.76 | I286: m3/año-ha
G287: Número de hectáreas recuperadas | H287: 20 | I287: ha
G288: Ganancia hídrica del proyecto | H288: =H287*H286 -> 3875.2 | I288: m3/año
G289: Como el proyecto busca la recuperación de 20 ha, la ganancia hídrica que genera 3,875.2 m3/ha
B291: 8.- BIBLIOGRAFÍA
B292: • Aportes de las reuniones técnicas del MINAM. • Aranda, C. 1998. Procesos del ciclo hidrológico. ME. 550p. • Gómez S; Guzmán, J. 2011. Separación of the flow in upper part of the Lebrija river basin. CO.12p. • Junker, M. 2005. Método RAS para determinar la recarga de agua subterránea. FORGAES. SV.40p. • MINAM (Ministerio del Ambiente): Mapa Nacional de Ecosistemas del Perú. 121p. • Iniciativa Regional de Monitoreo Hidrológico de Ecosistemas Andinos. Guía metodológica para el monitoreo hidrológico de ecosistemas andinos – iMHEA, Versión 27 de Agosto de 2013. 22p. • Gómez S_ Guzmán, J. 2011. Separation of the flow in upper part of the Lebrija river basin

Sheet INFRAESTRUCTURA NATURAL
B7: REVEGETACIÓN CON ESPECIES NATIVAS
B8: Para determinar el área a revegetar, es recomendable el uso de imágenes satelitales representativas de la zona degradada para la realización de un análisis histórico comparativo del estado del ecosistema, en un rango aproximado de 10 a 30 años. Además, tener en cuenta los siguientes criterios: Según la disponibilidad de la información, el formulador deberá establecer años representativos o subperíodos para realizar esta subactividad. Las imágenes deben garantizar el reconocimiento de los atributos del ecosistema: (i) florística del sitio (entre gramíneas, graminoides, leguminosas y otras especies herbáceas), (ii) estabilidad del suelo e (iii) integridad biótica. Esto implica asegurar que la actividad de reforestación facilite la heterogeneidad, integralidad y armonía entre los atributos. De manera complementaria, realizar estudios de composición del suelo por tipo de ecosistema y las especies de cobertura vegetal predominantes. Se podría incluir hasta un 10% de especies exóticas como parte de la sostenibilidad de la revegetación. Este proceso se debe aplicar para todo tipo de ecosistema.
B10: Siembra de especies herbáceas seleccionados
B11: Temporalidad de la intervención La siembra de especies herbáceas se realiza principalmente durante la época de estiaje. Además, a manera de recomendación se debe sembrar inmediatamente después de una semana seguida de lluvias, que puede ser desde la segunda quincena de diciembre hasta los primeros quince días de enero. No se recomienda siembras en febrero. Sin embargo, la temporalidad dependerá del tipo de ecosistema y la especie seleccionada.
B12: Localización del área a revegetar Para realizar la elección del terreno se debe tener en cuenta las siguientes condiciones: · - Que el terreno cuente con disponibilidad de agua todo el año, para poder realizar riegos oportunos y tener buena producción de pastos. - Suelos con buen drenaje, es decir, que no sean oconales o presenten charcos de agua. - Suelo profundo y no rocoso. - Terreno de preferencia plano o con ligera pendiente (no mayor a 3%, caso contrario intentar nivelarlo). - Una vez elegido el terreno se debe realizar el muestreo de suelo para su respectivo análisis en el laboratorio; según el resultado se realiza la programación de la cantidad de fertilizantes a emplear. Así, se obtiene el pH o nivel de acidez o salinidad del suelo. - Un suelo óptimo para los cultivos son los que presentan un pH neutro, eso significa que no es salino ni tampoco ácido. Considerar que la mayoría de los suelos de la sierra son relativamente ácidos.
B13: Preparación del terreno La preparación del terreno significa realizar diferentes actividades como: roturado del terreno, cruza, desterroneo, cantoneo, nivelación y melgueo; con la finalidad que la semilla de los pastos tenga buena germinación y de esa manera tener buena cobertura y producción de pastos.
B14: Selección del sistema de siembra Una vez preparado el terreno, según la disponibilidad de mano de obra y el tipo de especie seleccionada se pueden realizar los siguientes sistemas de siembra: Siembra al Voleo: Se realiza a mano dejando caer la semilla en forma constante y uniforme; es importante tener en cuenta la dirección del viento. Siembra en Líneas: Se realiza a mano, utilizando surcos o meglas que se hacen previamente o con el uso de yunta. Siembra Mecánica: Se realiza utilizando sembradora traccionada por tractor. A manera de recomendación, debido a la mayor infiltración del agua y mejor distribución de la cobertura vegetal, se recomienda la siembra a partir de un sistema de líneas.
B15: Plantación de esquejes En caso se use sistemas de plantación de esquejes mediante líneas, considerar: Sistema por surcos: Se recomienda un distanciamiento de 40 cm entre surcos y 30 cm entre esquejes en promedio. Sistema de melgas: Se recomienda una distancia de 40 cm entre líneas y a 30 cm entre esquejes. A manera preliminar, la irrigación del terreno debe ser inmediatamente luego de terminar con la instalación (considerar mantener el suelo húmedo). Además, considerar realizar esta actividad al inicio de la temporada de lluvias para facilitar el prendimiento y reducir el costo de mano de obra en irrigación.
B18: Labores culturales a pastizales
B19: Riego Temporalidad de la actividad: Es necesario contar con agua durante todo el año, más aún durante los periodos de estiaje. Si las lluvias son irregulares, inclusive, se deben hacer riegos intensivos (bajo el sistema que correspondiera a la intervención), en un periodo de 8 días durante los primeros dos meses. Posterior a la plantación de esquejes, el riego debe hacerse cada 15 días durante el primer año de instalación. En periodos posteriores se pueden distanciar más las fechas de riego.
B20: Deshierbe Esta actividad consiste en la eliminación de malezas que compiten por agua, nutrientes, luz, espacio, entre otras. Para su realización, se considera el empleo de carretilla, picota, palana e instrumentos de uso manual. Esta actividad debe complementarse con el uso de cercos (con alambres o mallas protectoras) frente a actividades de sobrepastoreo en épocas de estiaje.
B21: Revisión de raíces Es necesario revisar las raíces de la plantación para asegurar que se encuentran captando de manera adecuada el agua y el abono utilizado. En caso existan raíces en mal estado que puedan comprometer al crecimiento del pastizal, se las debe podar mediante el uso de una pequeña tijera.
B24: INSTALACIÓN DE CERCOS EXCLUIDORES
B25: Para determinar el área a proteger, es recomendable el uso de imágenes satelitales representativas de la zona degradada para la realización de un análisis histórico comparativo del estado del ecosistema, en un rango aproximado de 10 a 30 años. Además, tener en cuenta los siguientes criterios: - Según la disponibilidad de la información, el formulador deberá establecer años representativos o sub-períodos para realizar esta sub-actividad. - Las imágenes deben garantizar el reconocimiento de los atributos del ecosistema: (i) florística del sitio, (ii) estabilidad del suelo e (iii) integridad biótica. Esto implica asegurar que la actividad de reforestación facilite la heterogeneidad, integralidad y armonía entre los atributos.
B27: Trazo y marcación
B28: Para el trazado y marcación del terreno se recomienda: - Considerar las características topográfica y la fisiografía de la zona andina a intervenir. - La marcación del espacio, considera una separación entre marcas de 5 metros. A partir de esto, el espacio a cubrir es medido por el número de marcas por Km.
B30: Apertura de hoyos
B31: Esta actividad se mide por la cantidad de hoyos aperturados por jornal en el día. Considerar los siguientes criterios técnicos: - Apertura de hoyos en un espacio cuadrado que ronda los 20 cm por lado y 50 cm de profundidad de manera estándar, es decir, superar la capa orgánica del suelo de aproximadamente 20 cm hasta llegar al subsuelo. - Considerar que los hoyos de las esquinas del terreno deben tener mayores dimensiones: 40 cm de diámetro y entre 60 y 70 cm de profundidad. Indumentaria a usar: Ambos puntos requieren el uso de palana, carretilla y piqueta.
B33: Traslado y plantado de postes
B34: Para el traslado e instalación de postes de madera, se deberá considerar los siguientes criterios: Condiciones de acceso hacia cada zona - En caso no existan rutas pavimentadas, el trabajo de traslado se realizará mediante el uso de animales de carga, o de vehículos para el transporte de mayor cantidad de postes. - Este trabajo debe hacerse en colaboración con los comuneros de la zona, por lo que la unidad de medida a considerar es el número de postes trasladados por jornal. Indumentaria a usar - Postes rollizos de madera o de otro material, preservados con tratamiento de brea en la base. - Las dimensiones de estos postes debe ser de 4" de grosor, por 2 metros de largo. - Se sugiere el uso de piedra, adobe, tapiales o champas. Además de mallas ganaderas de alambre (9 a 10 hilos), filas de alambre galvanizado, de alambre de púa, con geo mallas, entre otros. Instalación de malla ganadera - Enterrar la base cubierta de brea (se recomienda 3 bloques de brea) de los postes de madera a 80 cm de profundidad, a un distanciamiento entre 5 y 7 metros. - Colocar los rollos de malla ganadera alrededor de los postes instalados. La altura de la malla ganadera deberá ser aproximadamente de 0.9 m. - Usar las grapas para poder fijar la malla a la madera (grapas de 1.5 pulgadas). - Usar piedras o cemento para las esquinas y brindar estabilidad al cerco. - Usar sogas y un tensador. Recomendaciones adicionales Se recomienda colocar piedras para garantizar su estabilización y evitar rellenar el espacio faltante con tierra para prevenir la podredumbre de la madera. Los postes deben de colocarse en hileras rectas considerando el distanciamiento de marcación realizados con anterioridad.
B37: REFORESTACIÓN CON ESPECIES NATIVAS
B38: La reforestación consiste en repoblar zonas que en el pasado histórico reciente estaban cubiertas por bosques que han sido eliminados por diversos motivos: explotación de la madera para fines industriales o para consumo como plantas, ampliación de la frontera agrícola o ganadera, ampliación de áreas urbanas e incendios forestales.
B40: Criterios Generales
B41: Análisis histórico Para determinar el área a restaurar, es recomendable el uso de imágenes satelitales representativas de la zona degradada para la realización de un análisis histórico comparativo del estado del ecosistema, en un rango aproximado de 10 a 30 años. Además, tener en cuenta los siguientes criterios: - Según la disponibilidad de la información, el formulador deberá establecer años representativos o subperíodos para realizar esta subactividad. - Las imágenes deben garantizar el reconocimiento de los atributos del ecosistema: (i) florística del sitio (árboles y arbustos), (ii) estabilidad del suelo e (iii) integridad biótica. Esto implica asegurar que la actividad de reforestación facilite la heterogeneidad, integralidad y armonía entre los atributos. - De manera complementaria, realizar estudios de composición del suelo por tipo de ecosistema y las especies de cobertura vegetal predominantes. Reconocimiento del tipo de ecosistema En zonas andinas, los cinco ecosistemas son: - Bosque relicto altoandino (queñoal y otros) - Bosque relicto montano de vertiente occidental - Bosque relicto mesoandino - Bosque estacionalmente seco interandino (Marañón, Mantaro, Pampas y Apurímac). - Matorral andino. Además, esta actividad se realizará tomando en cuenta las siguientes consideraciones: (i) exposición solar, pues hacia el hemisferio sur las laderas con dirección norte reciben mayor exposición solar. Por lo tanto, preferentemente se deben ubicar las plantaciones en laderas con exposición sur, las cuales son más húmedas; y (ii) el rango altitudinal y pendiente por especie.
B43: Planificación de especies a adquirir o producir
B44: Definición La planificación de especies es una actividad que involucra determinar la cantidad de especies a instalar en terreno definitivo, según el tipo de ecosistema , ya sea a partir de la producción o adquisición de plantones. Consideraciones En zonas andinas las consideraciones son: - Localización del proyecto, su objetivo y las propiedades en el uso de cada especie forestal (árboles y arbustos) que contribuyan a lograrlo. - Requerimiento de agua y luz solar de la especie. - Tipo de suelo y pendiente del terreno, en la cual se desarrolla. - Densidad de plantación por especie, según sus características de crecimiento y requerimientos de recursos adicionales. - Costos asociados por transporte de la especie, hacia el lugar donde se realizará la plantación. - Tiempo de siembra de los plantones
B46: Implementación de viveros forestales
B47: Definición El vivero es un ambiente, cuyo objetivo es albergar y producir un número determinado de plantones para su posterior uso en las actividades de plantación. Estos pueden clasificarse según su uso y según su temporalidad: Según su uso: viveros forestales, viveros para ornamentación, viveros de investigación y viveros de frutales. Según temporalidad: volantes o temporales y fijos o permanentes. Los viveros temporales son mayormente empleados para la producción de especies forestales y frutales, mientras que los permanentes para plantas ornamentales u hortalizas. Localización De manera referencial, se establecen los siguientes criterios para la localización del vivero: - Cada vivero debe instalarse lo más cerca del área de plantación final, para evitar cambios bruscos en el ambiente y afianzar la adaptabilidad de la especie. - El vivero debe ser de fácil acceso y cercano a vías de fácil tránsito en el área de ejecución. - El recinto debe tener disponibilidad de agua durante todo el proceso de producción de plantones, principalmente en periodos secos o de estiaje. - El recurso hídrico empleado no debe estar contaminado, libre de agentes patógenos y residuos de productos químicos usados en actividades agropecuarias. - La zona de intervención es preferible que sea de topografía plana o pendiente muy suave, no mayor a 3% de inclinación con la finalidad de lograr el escurrimiento de las aguas de lluvia y evitar la formación de charcos durante estas. - Cesión en uso: Se debe coordinar con la comunidad explicando las oportunidades del vivero en la comunidad y la necesidad de ubicarlo en dicha zona.
B48: Tamaño El tamaño del vivero depende directamente de la capacidad de plantones a producir. Así, se tienen las siguientes características: - Camas de germinación: El tamaño de las camas de germinación o almacenamiento se recomienda tenga una medida de 1.20m de ancho y 5m de largo . Este tamaño estándar es usado para la producción de 1,000 plantones, en su etapa de plántula. Además, cada cama de repique estará distanciada por 0.6m. - Perímetro de protección: o El perímetro del vivero será cercado con madera rolliza u otro material, como mallas para cercos. o Los postes para la delimitación del perímetro tendrán un distanciamiento de 2.0 m entre postes y se instalará alambre de púas para su protección. - Espacios complementarios: El vivero debe contar con dos espacios, uno para la preparación de sustratos y una zona de acondicionamiento de plantones para transporte. Procedimiento para la instalación del vivero Para iniciar con la instalación del vivero se deben seguir los siguientes pasos: 1. Limpieza del terreno, a partir de la remoción de maleza, piedras, troncos u otros obstáculos. 2. Mantener aquella vegetación que sirva como sombra natural o de soporte para las especies que lo requieran. 3. Nivelar el terreno para hacerla plana, con una ligera inclinación de hasta 3%. 4. Orientar la posición de las camas de repique de este a oeste para favorecer la entrada de la luz solar por mayor tiempo. 5. Desinfectar el suelo. 6. Instalación de canales de filtración de agua. 7. Para el techo o tinglado del vivero se recomienda el uso de mallas de protección transparentes que permitan la entrada de luz solar y mantengan la humedad y la temperatura del ambiente.
B49: Materiales de construcción generales y tecnología a emplear: - Sistema de riego (nebulización, microaspersión) - Almacigueras - Invernaderos - Sustratos. - Materiales de aislamiento (postes, cemento, ladrillos, alambres, plásticos o mallas de aislamiento).
B52: Labores culturales en producción de plantones
B53: Preparación del sustrato El sustrato orgánico se entiende como la mezcla de suelo (tierra negra), arena y materia orgánica (estiércol de ganado vacuno, carnero, gallinaza, humus, compost, entre otros) que se usa para llenar las bolsas en el vivero para la producción de plantones. Este también puede ser combinado en proporciones mínimas con cal u otro material que minimice los niveles de salinidad y acidez del suelo. Esto dependerá de la disponibilidad de materiales en la zona. Criterio técnico sugerido: - La muestra comúnmente utilizada en semilleros o germinadores es una relación de 1 a 3 para materia orgánica o compost (30%) y tierra o arena cernida (70%), respectivamente. Es decir, una carretilla de materia orgánica y tres carretillas de arena. - En el caso de bolsas de almacigo o tubetes, la relación es de 1 a 2, o una carretilla de materia orgánica y dos de arena. - Adicionalmente, se recomienda agregar 6 kg de cal para disminuir los niveles de acidez. - Considerar su desinfección mediante uso de agua hirviendo y algún material que ahisle el calor (puede ser la propia bolsa de almacigo), previa siembra de semillas. Pasos para la siembra de semillas (almacigado) Se debe tener en cuenta las siguientes consideraciones: - Se hacen hoyos para el sembrío, cuyo tamaño ronda los 1.5 y 2 cm en promedio. - Las semillas deben estar previamente escarificadas y bien espaciadas entre sí (3 - 4 cm una de otra) en cada bolsa. - Se siembra las semillas con el micrópilo (orificio que se obtiene mediante la escarificación) hacia abajo, puesto que esto facilita la germinación de la planta, ya que tiene germinación epigea. - Se cubre las semillas (presionarlo ligeramente) con el mismo sustrato usado para llenar las bolsas. Por último, se riega el sustrato después de la siembra.
B54: Repique de plántula El proceso de repique consiste en la separación y trasplante de plántulas en bolsas de almacigo, según las condiciones de agua y abonamiento para la misma especie. Algunas recomendaciones a considerar son: - Plántulas en mal estado: En caso en una bolsa no germine ninguna de las 2 semillas sembradas, se debe repicar una plántula sana de alguna bolsa de almacigo que tenga 2 plántulas de la misma especie y hacer el trasplante respectivo. - Plántulas sin germinar: Retirar o remover las plántulas más pequeñas de las bolsas donde han permanecido sin germinar, teniendo cuidado de no dañar la plántula nueva. Control fitosanitario Aproximadamente durante el primer mes y medio de crecimiento de las plántulas, se las debe regar 1 vez cada 10 días en promedio por especie, con una solución controladora de hongos, evitándose con esto problemas de chupadera fungosa, enfermedad muy común en viveros de forestales. En caso de presentarse plagas (insectos), se recomienda utilizar un tipo de agente para control de estos eventos. Riego - Indumentaria usada: La acción de riego se realiza usando la regadera o una manguera con un aspersor en su extremo final. - Temporalidad de la intervención: Cada 3 o 4 días durante el primer mes y medio, y luego cada vez que sea necesario según las condiciones climáticas (aproximadamente cada semana). Deshierbos y remoción de sustrato Temporalidad de la intervención: Los deshierbos deben realizarse cada vez que se considere necesario. Se recomienda realizarlo cada mes y medio, evitándose con esta práctica la posible competencia entre las malas hierbas y el plantón. Actividades complementarias: - Regar el cultivo con una hora de anticipación al deshierbo. - Remoción del sustrato superficial de las bolsas (con los dedos), con la finalidad de que se rompan las probables capas duras de tierra que puedan existir, y así el agua de riego pueda penetrar libre y rápidamente en todo el sustrato de la bolsa. - Control de plantas invasoras.
B57: Plantación propiamente dicha
B58: Tipo de plantación - Con base en el ecosistema utilizado Plantación en macizo: Este sistema es el más utilizado, consiste en la siembra de plantones en sitios de baja cobertura vegetal y arbustiva. Con ello, las especies plantadas se vuelven en las dominantes del sitio. Plantación de enriquecimiento: Con versatilidad para ser usada en fajas, parcelas o en claros. Esta plantación se realiza con el objetivo de recuperar el valor comercial de los bosques naturales. Estas plantaciones se realizan dentro del bosque buscando áreas desprovistas de cobertura vegetal. Plantación de enriquecimiento con manejo de la regeneración natural: Además de incorporar especies en campos descubiertos dentro de los bosques, la regeneración natural pretende eliminar otras especies que compitan y pongan en riesgo a la especie plantada. - Con base a la composición de especies Plantación pura o mono específica: Son aquellas que usan solo una especie. Plantación mixta: Incluyen dos o más especies en un mismo espacio geográfico, con el objetivo de proveer diferentes productos forestales y complementar el rendimiento y regeneración entre especies. Sistema de plantación Luego, según el tipo de plantación, es necesario establecer el distanciamiento entre plantones en campo definitivo y sus principales efectos. De manera general, en el cuadro Nº 5, se detalla la propuesta de la guía sobre el sistema de plantación a seguir, con su respectivo porcentaje de merma o plantones a replantar:
E60: Distanciamiento o sistema de plantación (mxm) | F60: Plantones por hectárea | G60: Mortalidad aceptable (%) | H60: Número de plantones a replantar
E61: 3.0x3.0 | F61: 1.111 | G61: 0.2 | H61: 257
E62: 3.5x3.5 | F62: 816 | G62: 0.15 | H62: 141
E63: 4.0x4.0 | F63: 625 | G63: 0.1 | H63: 72
E64: 5.0x5.0 | F64: 400 | G64: 0.05 | H64: 23
B67: El distanciamiento de plantones también va a estar en función del diseño de la plantación: Diseño cuadrangular: utilizados en terrenos planos. Diseño a tres bolillo: utilizados en terrenos de pendiente pronunciada o para formaciones vegetales usadas como cortinas rompevientos. Diseño en curvas de nivel: utilizados en terrenos de pendientes pronunciadas principalmente, con fines de control de la erosión. Aun así, la distribución de especies nativas por tipo de ecosistema es altamente heterogénea, por lo que se sugiere tomar la información del cuadro Nº 5 de manera referencial. Además, se sugiere tomar en cuenta que, a mayor distanciamiento de plantones, las labores culturales como deshierbo y control de plantas invasoras, así como los requerimientos de agua en la plantación son mayores.
B68: Hoyación A manera de referencia se sugiere revisar lo realizado por FONAM (2007). Luego del trazado de líneas de instalación, según el formato optado, y la delimitación de la cantidad óptima de plantones, se procede a la apertura de los hoyos.
C69: Características | E69: Descripción
C70: Materiales a usar | E70: Picos, palas y barretas.
C71: Diseño | E71: La apertura de hoyos para forestales se realizará a una profundidad de 0.5 m y un diámetro de 0.4 m.
C72: Duración de actividad | E72: Para aprovechar la infiltración del agua en las primeras lluvias, el trabajo deberá realizarse entre los meses de octubre y diciembre.
C73: Recomendaciones | E73: Los hoyos deben ser dos veces más anchos y dos veces más hondos que la bolsa (en caso se utilice una plantación con este método).
E74: Las dimensiones promedio de los hoyos son: 40 cm x 40 cm x 40 cm.
B76: Establecimiento de la plantación A continuación, se presentan los pasos generales y recomendados para el establecimiento de la plantación en terreno definitivo: Primer paso: colocar en la base la parte con contenido de materia orgánica. Segundo paso: quitar la bolsa del plantón y colocar la planta de forma vertical en la parte central del agujero, llenando el contorno del hoyo con la otra parte de tierra que servirá́ de sostén para la planta. Tercer paso: se afirma la tierra para que quede compactada. Recomendaciones adicionales: - Dejar un espacio de 2 a 3 cm entre la superficie del hoyo y la del terreno para facilitar la captación del agua. - Mantener siempre el terreno húmero, más aún en épocas de estiaje y, en el caso de exposición solar prolongada, evitar sobreexponer las raíces por periodos largos de tiempo, al momento de la plantación. - Se podría incluir hasta un 10% de especies exóticas como parte de la sostenibilidad reforestación. Esta subactividad dependerá del tipo de ecosistema y de la especie empleada.
B79: Labores culturales a plantones establecidos
B80: Después de realizar la plantación se debe manejar y proteger, para generar beneficios a largo plazo. Así, se recomienda tomar en cuenta que el crecimiento del plantón, independientemente de la especie, está en un rango entre 6 y 8 meses de establecida la plantación. Luego, la mayor parte de proyectos revisados evalúan la ejecución de sus metas físicas en un periodo de 3 a 4 años. Entre las principales subactividades culturales a realizar se encuentran: Riego Dependiendo de la ubicación y la extensión de las temporadas de lluvia/sequía, para realizar esta subactividad se debe considerar las siguientes recomendaciones: - Regar en los meses de febrero, marzo y abril. - Aplicar entre 4 y 5 litros de agua por planta y según el tipo de reforestación. Esto puede variar según las necesidades de la especie. - La aplicación debe hacerse con cuidado y lentamente para no descubrir las raíces. Además, se debe permitir la absorción del agua por parte del suelo. - Optar, según las condiciones del terreno, el tipo de plantación y las especies utilizadas el tipo de riego: por goteo, por gravedad, con pivotes, entre otros. Control de plantas invasoras Es importante realizar el control de maleza, previa instalación de la plantación, para que sean tan solo los árboles los que aprovechen la humedad. Temporalidad de la intervención: - Su frecuencia varía según la rapidez del crecimiento de la maleza. Se recomienda, dependiendo de la zona, realizarse al menos los dos o tres primeros años de instalada la plantación. - En el caso de deshierbo, se hacen en dos épocas en particular: (i) en época lluviosa, cuando las malezas crecen agresivamente, y rápidamente cubren los árboles deformándolos o matándolos; y (ii) al final de las lluvias, ya que así́ los árboles inician la época de sequia sin competencia.
B81: Replante El replante se debe realizar cuando exista entre el 10% y 20% de mortandad entre los plantones. Normalmente, este se realiza entre 30 y 40 días de haber establecido la plantación, nunca después de un año. Es necesaria la selección de plantas más resistentes y las especies adecuadas, según el tipo de plantación, para la ejecución de esta actividad. Raleo Es importante reconocer los siguientes criterios para realizar la subactividad: - Cuando las copas de los árboles son muy pequeñas y sus ramas chocan entre si. - Cuando existan plantones enfermos, defectuosos y mal formados. - Cuando exista poca penetración de luz solar. Se recomienda realizar el raleo cuando los plantones posean una altura entre 7m y 9m. Así, el primer raleo deberá realizarse al primer año de instalada la plantación y así sucesivamente cada dos años. Poda La poda tiene como finalidad la eliminación de las ramas para lograr obtener madera libre de nudos y de calidad. Indumentaria usada: Esta se realiza con la ayuda de serruchos (ramas de 4 a 5 cm de diámetro), sierras y machetes bien afilados. Utilizando el machete se hace en dos cortes, el primer corte se hace de abajo hacia arriba para evitar que el peso de la rama raje la corteza, y el segundo de arriba hacia abajo para dejar liso el corte.
B85: ENRIQUECIMIENTO DE SUELOS
B87: Deshierbo
B88: Consiste en la eliminación de plantas que son esquilmantes. En el caso de pasturas naturales, las especies como el garbancillo, pacu pacu, waracco, kunkuna macho y pesq'e pesq'e, son indeseables porque, además de ser poco apetecibles, contienen sustancias físicas y químicas que inhiben la digestión de las plantas deseables. Su presencia en cantidades abundantes (más de 30 %) indica que el estado de salud del pastizal se ha deteriorado y que hay que iniciar un programa de control. En las praderas que vienen siendo invadidas por especies indeseables, se deben realizar faenas comunales para eliminarla, de optar por esta práctica se deberá resembrar pastos naturales en los espacios de suelo que queden desnudos.
B90: Abonamiento por fuentes minerales
B91: Es la fertilización del suelo mediante el uso de fuentes minerales como: cenizas, cal, entre otras. Esto se dará principalmente en suelos con una alta acidez o alto ph. Se recomienda que estos fertilizantes deben ser incorporados durante las operaciones de labranza, en los sistemas de labranza de conservación, en los pastizales y las praderas, antes del establecimiento del cultivo. Es preciso indicar que la aplicación de cal agrícola durante el otoño, tendrá suficiente tiempo para reaccionar con la humedad del suelo y reducir la acidez antes de la siembra de los cultivos de marzo a junio. Asimismo, se recomienda combinar la cal con estiércol en una dosis de medio kilo de cal por cada 100kg de estiércol y humedecer con agua y dejar madurar entre 15 y 20 días, haciendo rotación a la mezcla cada 3 días.
B93: Abonamiento orgánico del área
B94: Es la incorporación de materia orgánica a la cobertura vegetal, mediante la distribución uniforme del guano de los dormideros de alpacas, ovinos y vacunos. Con el abonamiento se realizan dos acciones que favorecen la recuperación de las pasturas naturales: (i) devolver los nutrientes orgánicos al suelo, considerando que los suelos altoandinos son pobres en materia orgánica, nitrógeno, fósforo, potasio y micro elementos; (ii) desarrollar la práctica de revegetar las áreas de suelo desnudo, con la germinación de las semillas de pastos palatables que se encuentran en el sustrato. Algunas recomendaciones para realizar esta actividad son: - Facilidad de acceso a dormideros portátiles o centros de abastecimiento de sustrato/abono. - Aplicación del guano a las zonas adyacentes a los canales de riego para favorecer la rápida descomposición, traslado, liberación de nutrientes y germinación de las semillas. Esta actividad se debe hacer luego del pastoreo rotativo. - El abonamiento debe realizarse en zonas de suelo desnudo o de escasa vegetación. Para ello, se recomienda remover parte de la materia orgánica del suelo, en huecos de 0.20 a 0.30 cm, e instalar el estiércol con la semilla. La dosis de estiércol por ha viene a ser entre 4000 y 6000 kg, distribuyéndolo al voleo por todo el pastizal. - Se debe depositar estiércol fresco. - Esta actividad deberá considerar las épocas de lluvias más cercanas (noviembre-diciembre).
B96: Instalación de vegetación para enriquecimiento del suelo
B97: Este proceso de enriquecimiento complementa el proceso de revegetación, donde pueden ser usadas diferentes especies herbáceas y arbustivas, ricas en provisión de nitrógeno para enriquecer el suelo. Para la selección de especies, es necesario considerar las especies con mayores rizobios presentes en sus nódulos radiculares. Son estas bacterias y su mayor presencia en la plantación lo que permitirá la fijación del nitrógeno en el campo. Por lo mismo, es necesario que como parte de las labores culturales se garantice una eficiente nodulación. Criterios técnicos - El crecimiento de los nódulos depende en gran medida del tipo de suelo. Así, en suelos sólidos habrá una nodulación rápida con un tiempo estimado entre 5 y 7 días. Por otro lado, para suelos arcillosos, la nodulación demorará un máximo de 12 días. - La temperatura del ambiente debe estar entre 29ºC y 31ºC y tener un nivel de acidez recomendado inferior 5 de ph.
B100: REPARACIÓN DEL CANAL AMUNADOR
B101: Las amunas son canales que infiltran el agua de lluvia y recargan los acuíferos. Los reservorios regulados incrementan la disponibilidad hídrica en la cuenca para la recuperación del ecosistema y de apoyo a la provisión el servicio ecosistémico de regulación hídrica. Criterios generales Como paso previo a la intervención, es necesaria la identificación de los sistemas de amunas o canales articulados a los tipos de ecosistema a atender. Para ello, se recomienda formular estudios básicos que involucren la identificación de la geomorfología de la zona (tipo de suelos, pendientes), fuentes hídricas aledañas y la situación de los canales, según sus niveles de erosión.
B103: Construcción de dique y estructura de captación
B104: Para poder proteger a la amuna de la erosión del suelo por las altas precipitaciones y lograr una mayor infiltración del agua, así como controlar la escorrentía del suelo, se sugiere la construcción de una represa de derivación (dique) y estructura de captación. La presa es con muro de tierra y núcleo de concreto protegido con concreto ciclópeo tipo enrocado, ubicada en una quebrada con toma de captación y desarenador, para la captación de aguas pluviales. Luego, para el caso de la estructura de captación, se determina hacia el final de la amuna, una quebrada donde se entrega el agua para que esta infiltre. Mayormente es una zona de roca fracturada con buena capacidad de infiltración y conductividad hidráulica. También puede ser una zona adecuadamente protegida para una nueva captación y almacenamiento superficial.
B106: Mejoramiento de canal amunador
B107: A partir de los estudios y la identificación del canal amunadora, se debe instalar un sistema de conducción para el recurso hídrico. En la experiencia de Tupichocha fueron tuberías de polietileno de alta densidad, ubicados en la parte alta a la cabera de chacra para su distribución mediante compuertas laterales.
B109: Instalación de área de protección
B110: Se recomienda la instalación de pastos y bosques en la cabecera de la quebrada, con el fin de disminuir el escurrimiento del agua. Esta actividad debe realizarse ante de la temporada de lluvias y debe ser complementada con estrategias de protección contra el sobrepastoreo.
B114: REPARACIÓN DEL CANAL DE MAMANTEO
B115: El mamanteo es una técnica que consiste en derivar el agua de las quebradas a través de canales y verterlas en suelos con alta capacidad de infiltración. Esta práctica busca aumentar la infiltración del agua en el suelo, durante la época de lluvia; para que durante la época de sequia, el agua infiltrada resurja en los manantiales. Además, esta acción permite la recuperación de ecosistemas degradados por falta de agua, sean pajonales, bofedales, entre otros y apoya a la provisión el servicio ecosistémico de regulación hídrica. Criterios generales Como paso previo a la intervención, es necesaria la identificación de los canales de mamanteo articulados a los tipos de ecosistema a atender. Para ello, se recomienda formular estudios básicos que involucren la identificación de la geomorfología de la zona (tipo de suelos, pendientes), fuentes hídricas aledañas y la situación de los canales, según sus niveles de erosión.
B117: Descolmatación de canales
B118: A partir de la determinación de la extensión de los canales de mamanteo, se sugiere realizar la limpieza o descolmatación de sedimentos y residuos que se encuentren en su recorrido. Para ello, se recomienda la coacción con los comuneros y el uso de palanas y carretillas o animales de carga para el transporte de estos desechos.
B120: Reconstrucción e impermeabilización de canales de mamanteo
B121: Se construye una captación al inicio de cada canal de mamanteo con la finalidad de aumentar la cantidad de volumen que ingresa a los canales. Luego, se impermeabiliza las primeras secciones de los canales, con la finalidad de asegurar que la mayor cantidad de agua que es conducida por el canal para llegar a la zona de infiltración, lo que se significa mayor cantidad de agua infiltrada y mayor cantidad de agua en los manantiales.
B123: Instalación de medidas de protección
B124: Se hace necesario proteger los canales de mamanteo, a partir de la instalación de cobertura vegetal en cabecera de cuenca. Con ello, se logra una disminución en la escorrentía y en la acumulación de sedimentos. Para realizar esta actividad, se recomienda: Indumentaria a usar: Para la instalación de barreras vivas es necesario el trazo de curva a nivel, mediante el uso de instrumentos nivel en “A” (estacas, palana, machete, piocha, entre otras). Tamaño: Las curvas de nivel debe trazarse y tener un distanciamiento entre curvas de 30 a 40 cm. Luego, se pica la tierra con una dimensión de 30 cm x 30 cm y se procede a sembrar el cultivo seleccionado.
B128: CONSTRUCCIÓN DE ZANJAS DE INFILTRACIÓN
B129: Las zanjas de infiltración son pequeños canales de forma rectangular, cuya finalidad es retener el agua de escorrentía, que proviene de las partes altas del terreno, para que rompa la velocidad del agua, de tal manera que se capte y acumule en la zanja, para que sirva de reserva a los árboles y cultivos. El incremento de la disponibilidad de agua está destinado para la recuperación del ecosistema y de apoyo a la provisión el servicio ecosistémico de regulación hídrica. Criterios generales: Localización - Zonas de secano ya sea para pastos o plantaciones permanentes. - Terrenos con pendientes de 10 a 40%, en forma de talud. Como se puede ver en el cuadro siguiente, el distanciamiento entre zanjas depende de la inclinación del terreno y de las condiciones del ecosistema en términos de extensión de cobertura vegetal. - Terrenos con textura franca que dejen in­filtrar fácilmente el agua. No es apto para terrenos con texturas sueltas, que puedan derrumbarse.
D132: Cobertura vegetal | F132: Pendiente del terreno (%) | H132: Distancia entre zanjas (cm)
D133: Sin | F133: 10 | H133: 30
F134: 15 | H134: 20
F135: 20 | H135: 15
F136: 25 | H136: 13
F137: 30 | H137: 11
D138: Con | F138: 10 | H138: 45
F139: 15 | H139: 30
F140: 20 | H140: 23
F141: 25 | H141: 20
F142: 30 | H142: 17
F143: 35 | H143: 14
F144: 40 | H144: 12
B149: Trazo, niveles y replante preliminar
B150: - Se trazan las líneas a nivel (guía para excavar las zanjas) con ayuda del nivel “A” o nivel de caballete, empezando siempre de la parte más alta de la ladera. - Se demarcan las líneas con ayuda de estacas o el pico, cavando un surco super­ficial que marque bien cada curva. - Se trasplanta pasto o cabuya a ambos lados de la zanja para protegerla.
B152: Excavación de zanjas de infiltración
B153: Se excava la zanja propiamente dicha, teniendo en cuenta las dimensiones indicadas (ancho de la base: 40 cm y altura o profundidad: 40 cm).
B155: Compactación del terreno
B156: Una vez excavada la zanja con las medidas ya indicadas se procede a nivelación cuidadosa de la base o fondo de la zanja con ayuda del nivel en “A”. Todo el material extraído de la excavación de la zanja se coloca en su borde inferior, apisonando capa por capa, formando un bordo o camellón. Recomendaciones generales - Las zanjas no deben ser mayor a 200 m de largo. - Construir de diques o tabiques cada cierto trecho. De esta manera, la zanja queda dividida en secciones que regulan el almacenamiento de agua para las diferentes partes de la plantación. Sirve en terrenos de alta inclinación.
B161: INSTALACIÓN DE QOCHAS
B162: Las qochas son pequeños depósitos de agua, que retienen y represan el agua de lluvia. A través de una lenta infiltración permiten recargar permanentemente las aguas subterráneas, manteniendo las manantes aguas abajo. El incremento de la disponibilidad de agua está destinado para la recuperación del ecosistema y de apoyo a la provisión el servicio ecosistémico de regulación hídrica. Criterios generales Localización Su localización se da generalmente en las cabeceras de cuenca (sobre una quebrada, río o arroyo), para retener y represar el agua de lluvia. Análisis del ecosistema Se debe considerar información topográfica pertinente que descomponga los principales componentes del suelo y su nivel de infiltración de agua, así como su nivel de pendiente.
B164: Construcción de diques
B165: Para garantizar de manera natural la reconstrucción o reposición natural del sistema de qochas, se recomienda la construcción de diques por qocha, a partir de la remoción de tierra compactada que permita contener parte del agua como excedente en el periodo de lluvias. Dimensiones de diques Las dimensiones del dique estarán en función de la altura del espejo de agua y de la pendiente del terreno. Se recomienda construir diques de 1,00 m. de altura en promedio, con un ancho en la corona de 0.50 m y una base de 2.50 m. El ancho de la base del dique está en función de la altura del dique, del material a utilizar y del talud que se le dará a las paredes del muro. Para diques mayores de 1,50 m. de altura se requiere realizar estudios especializados. Proceso de construcción - Colocar una primera capa con piedras grandes en la base y en las caras externa e interna del dique. Rellenar la parte central con piedras más pequeñas y compactarla con arcilla o arena. - Colocar la segunda capa con piedras grandes en ambas caras y rellenar la parte central del dique con piedras pequeñas y tierra arcillosa, compactando para impermeabilizar y evitar la pérdida de agua por filtración. Repetir este paso hasta llegar a la altura final del dique. - Cubrir con piedras planas la cara interna del dique, para evitar la erosión y disminuir la infiltración. - Echar tierra negra y estiércol en la cara externa y superior del dique, para garantizar el prendimiento de los pastos de las champas. - Colocar champas con pastos vivos, en la cara externa y superior del dique. Esto le dará mayor solidez y evitará la erosión por las lluvias y el viento.
B168: CONSTRUCCIÓN DE TERRAZAS DE FORMACIÓN DE SUELOS
B169: Las terrazas altoandinas son franjas secuenciales que dividen la ladera en secciones perpendiculares a la pendiente, cuyos límites superiores e inferiores están orientados según las curvas a nivel y se encuentran protegidas por muros de piedra (pircas) o bordes de tierra, según su tipo de construcción. Esta acción está destinada para la recuperación de suelos degradados. Por motivos de seguridad contra invasión de ganado, incremento de precipitación o cualquier otro desastre, se recomienda el uso de pircas para su construcción.
B171: Trazo y marcación
B172: - Se realiza primero la verificación de la pendiente del terreno. Para ello, se utiliza un palo de un metro de largo colocado al nivel el suelo y se mide el desnivel, el cual no debe ser mayor a 1%. - Se marcan “líneas maestras” en donde se construirán las terrazas y se dará el levantamiento de muros. Recomendaciones generales - Las distancias entre los muros no deben ser menores a 5 m, pues la mayoría de las familias utilizan la tracción animal (yunta) para la labranza, lo que dificultaría esta actividad. - Recordar que a mayor nivel de pendiente, menor debe ser el distanciamiento de los muros, pero se debe incrementar su altura. - Esta actividad puede ser complementada con las instalación de barreras vivas que dependerá del tipo de ecosistema y los requerimientos de agua y suelo por especie.
D174: Pendiente del terreno (%) | F174: Distancia entre muros (m) | H174: Altura del muro (m)
D175: 10 | F175: 9.3 | H175: 0.99
D176: 15 | F176: 7.3 | H176: 1.1
D177: 20 | F177: 6.3 | H177: 1.26
D178: 25 | F178: 5.7 | H178: 1.43
D179: 30 | F179: 5.3 | H179: 1.6
D180: 35 | F180: 5 | H180: 1.77
B184: Remoción de tierra fértil
B185: Mediante el uso de material nivel tipo “A”: picota, palas y carretilla, la construcción se inicia con la remoción de una franja de tierra de 0.60 m de ancho y 0.80 m de profundidad aproximadamente. Así, con el suelo removido se forma el camellón de la terraza, aguas arriba de la línea de nivel.
B187: Compactación del borde de terraza
B188: Luego, se debe afirmar la tierra sobre el camellón para prevenir la escorrentía del suelo y evitar desbordes por las altas precipitaciones en épocas de lluvia. Se debe abrir una pequeña zanja sobre la curva de nivel para la compactación de las piedras. Esta debe tener por lo menos un ancho de 40 cm.
B190: Emparejamiento de la terraza
B191: - Cuando se utiliza champa, se deberá construir un cimiento con una base mínima de 50 cm. - El camellón de tierra debe ser levantado hasta la altura que permite la masa de suelo excavada, recomendándose alturas de hasta 1.50 m. - Se debe reforzar la terraza con plantaciones de pastos, arbustos o forestales, dependiendo de la zona de localización, en la parte superior de esta con el fin de prevenir relaves y escorrentía por la pendiente. El pasto se debe plantar a una distancia de un pie (20 a 30 cm), los arbustos de 30 cm y las especies forestales en una distancia estándar de 3mx3m.
B193: Mantenimiento de terraza andina
B194: Las terrazas construidas con muros de tierra necesitan de un mantenimiento de tres veces por año (principalmente deben ser aprovechadas durante la época de estiaje), hasta lograr su completa estabilización y puedan cumplir así con su función de retención del agua y sedimentos hasta concluir su formación. Eso supone el uso de por lo menos 8 jornales al año. Las principales actividades requieren la reposición de la tierra debilitada y de las piedras de la base. En caso de que la terraza sea construida con muros de piedra se debe reponer las piedras caídas para no alterar la estructura de la terraza y aumentar la altura de las piedras en épocas de lluvia.
B197: CAPACITACIÓN EN GESTIÓN INTEGRADA DE RECURSOS HÍDRICOS CON ENFOQUE DE CUENCUA
B198: Perfil del capacitador Es un profesional en ingeniería ambiental, forestal, agrícola o afín, con especialización en manejo y/o gestión de recursos hídricos y con experiencia docente en temas vinculados a la gestión de recursos hídricos con enfoque de cuenca. Población objetivo Este curso está dirigido a población beneficiaria vinculada con la gestión del recurso hídrico y manejo de ecosistemas de interés hídrico, así como, los representantes de las empresas relacionadas con los servicios de abastecimiento y saneamiento, miembros de organismos locales, organizaciones no gubernamentales, entre otros.
B200: Coordinación con organización y comités de la comunidad existente
B201: Las comunidades a atender poseen diferentes formas de organización (comités de cuenca, junta de usuarios de agua, juntas de usuarios de riego, entre otros). Para coordinar con estas, se recomienda la asistencia a las asambleas comunitarias, para determinar el planteamiento de la agenda y talleres de capacitación a desarrollarse.
B203: Talleres de capacitación a organizaciones y comités de la comunidad existente
B204: Los talleres de capacitación son sesiones de aprendizajes planificados y organizados, didácticamente ejecutados, sujetos a evaluación y monitoreo, asumiéndose además las siguientes consideraciones: - La capacitación está centrada en el logro de aprendizajes, respecto a la gestión integrada de recursos hídricos con enfoque de cuenca. - Las capacitaciones deberán tener un aforo de entre 15 y 20 personas, teniendo consideración al enfoque de género, que como destinatarios deben ser del perfil del público objetivo. La capacitación implica la puesta en marcha de procedimientos metodológicos, en este caso, vinculados al desarrollo de capacidades de la población en velar por el cuidado de los ecosistemas y la provisión del servicio ecosistémico de regulación hídrica al entorno de la comunidad, de manera práctica. Por ejemplo: Capacidad de carga animal y rotación. Otros tópicos de interés serán: Uso del agua, gobernanza y metodología con enfoque comunitario, mecanismos de financiamiento y aplicación de la gestión integrada de recursos hídricos. Para ello, se recomienda el uso de los siguientes materiales: -Mapa parlante de zonas con mayor cantidad de cobertura vegetal y fauna doméstica. -Diagrama de cuenca. -Línea de tiempo de desastres. -Línea de tiempo de cambio de cobertura vegetal y fauna doméstica. -Matriz de análisis de conflictos. -Perfil de grupos de interés. -Matriz de análisis de exposición, vulnerabilidad y medidas de reducción del riesgo (MRR). -Diagrama de organización social. -Diagrama del sistema de riego (complementario). - Las sesiones de capacitación no deben tener una duración mayor a 120 minutos efectivos y dependerá del interés de los asistentes para focalizar la temática. - Formación de promotores o líderes para garantizar la sostenibilidad de la intervención mediante réplicas. A manera de ejemplo, se plantea algunos materiales a considerar para las dinámicas grupales planteadas Para mayor información, revisar: “Folleto 8: Orientaciones para la aplicación de herramientas participativas en los proyectos de inversión pública, (MEF – DGIP)”
D206: Materiales | G206: Cantidad
D207: Cuaderno (50 hojas) | G207: 25
D208: Lapiceros | G208: 25
D209: Cartulinas escolares de colores | G209: 30
D210: Plumones N° 47 de colores | G210: 25
D211: Plumones N° 45 de colores | G211: 20
D212: Cuchilla cortapapel | G212: 1
D213: Masking tape 1'' | G213: 5
D214: Cinta de embalaje transparente | G214: 1
D215: Papel sabana 60 gr. | G215: 120
D216: Cuaderno de 200 hojas | G216: 1
D217: Tijera grande | G217: 1
B224: ASISTENCIA TÉCNICA EN EL MANEJO DE ECOSISTEMAS DE INTERÉS HÍDRICO
B225: Perfil del capacitador El perfil del profesional a cargo de las actividades de capacitación corresponde a las carreras profesionales de ingeniería forestal, agrícola, agronomía, y biología, con competencia en proyectos de recuperación de ecosistemas de interés hídrico y manejos de recursos hídricos. Población objetivo La presente acción está vinculada al desarrollo de capacidades técnicas a la población especializada en velar por la recuperación de los ecosistemas andinos de interés hídrico y la provisión del servicio ecosistémico de regulación hídrica. Estas formarán parte de diferentes organizaciones y comités de la comunidad.
B228: Coordinación con organización y comités de la comunidad existente
B229: Las comunidades a atender poseen diferentes formas de organización (junta de usuarios, juntas de regantes, entre otros). Para coordinar con estas, se recomienda la asistencia a las asambleas comunitarias, para determinar el Planteamiento de la agenda y talleres de capacitación a desarrollarse, según el tipo de ecosistema andino de interés hídrico, cobertura vegetal y la acción realizada.
B231: Talleres de asistencia técnica a organizaciones
B232: Descripción - A diferencia de los talleres de capacitación, las sesiones de asistencia técnica usan la evidencia empírica y dinámicas prácticas para describir de mejor manera el manejo de los ecosistemas de interés hídrico. Para ello, se recomienda la delimitación de un espacio (parcela demostrativa) en donde se hará la demostración de la ejecución de diferentes actividades. - Aprovechar las jornadas de trabajo (jornales), pues son espacios efectivos para la asistencia técnica, al seguirse la metodología de “aprender haciendo”. Asistencia técnica en pastoreo rotativo Diseño de los espacios de pastos para el apotreramiento La sesión contempla como paso preliminar, la explicación de la actividad de apotreramiento: “El apotreramiento es una actividad realizada para el manejo sostenible del pastoreo del ganado que consiste en subdividir un campo en varias parcelas (potreros) que serán pastoreadas sistemáticamente de modo que mientras una parcela es pastoreada las demás descansan”. Luego, se explica cuáles son los requerimientos mínimos que deben tener las parcelas para apotreramiento: (i) Cercanía de la zona a fuentes de agua. (ii) Correcta delimitación de potreros o canchas de pastoreo. (iii) Planificación del pastoreo e identificación de zonas de sembrío. Finalmente, se establece el número de potreros, a partir de los siguientes factores: (i) Población total de ganado. (ii) Número de lotes o parcelas. (iii) Unidades animales por lote (densidad por lote) (iv) Sistema de pastoreo (clásico o diferido) (v) Número de potreros (hectáreas delimitadas)
B233: Tecnología empleada: Para la demostración de la actividad, se debe emplear cintas para la marcación del terreno y rastrillos, palas y carretillas para la nivelación y limpieza del mismo. Rotación de ganado A manera de dinámica, se traslada y rota animales en las potreras formadas al interior de la parcela demostrativa y se explica que la actividad debe hacerse de manera periódica, según al tipo de pastoreo rotativo a desarrollar. Pastoreo rotativo clásico: la rotación del ganado se hace en función de la época del año, la oferta forrajera, la capacidad de carga animal, el número de animales y el tipo y clase de ganado. Generalmente esta práctica se realiza en pequeñas áreas de pastoreo. Como ejemplo, tómese el caso de 4 potreros. El potrero 1 es pastoreado durante 30 días. Luego de este periodo, se pasa a un potrero 2, y así sucesivamente hasta regresar al primer potrero. Por lo mismo, cada extensión de pastizal tiene un periodo de descanso de 90 días para poder fomentar el desarrollo de las especies. Pastoreo rotativo diferido: Se prioriza la recuperación del pastizal. Para ello se programan uno o más potreros de pastoreo adicionales que descansan por temporadas largas (aprox. 3 años), hasta que entran en uso reemplazando a otros que inician su descanso por un tiempo similar con propósitos de recuperación. Esta práctica se realiza cuando se dispone de mayores extensiones de terreno para el pastoreo. Recomendación: - Para las condiciones de la sierra del Perú donde el crecimiento de los pastos naturales andinos es estacional y gran parte son áreas comunales, el sistema de pastoreo rotativo diferido con descanso estacional resulta el más recomendable. - Capacidad de carga = Unidades Animales/Superficie del terreno. Dinámica empleada: Se recomienda la asociación con algún productor local y hacer la demostración en las áreas delimitadas con su ganado. Para garantizar la efectividad de la intervención se recomienda una visita al siguiente año para ver el crecimiento de la especie vegetal y el rendimiento productivo del ganado.
B234: Asistencia técnica en manejo de pastos naturales Rotación de dormideros portátiles En otra parcela demostrativa se realiza el abonamiento de las praderas naturales con los propios animales de la zona a través de la práctica de dormideros portátiles. Para ello, la asistencia técnica debe comprender las siguientes temáticas: - Determinación del área degradada o instalada a fertilizar. - Temporalidad de la intervención: Se recomienda que el traslado de animales sea de manera semanal. - Tamaño y tecnología usada en la intervención: Durante su estadía incorporan el estiércol y orinas al suelo; el estiércol acumulado es de una capa considerable de 1cm y distribuido uniformemente al suelo mediante la acción mecánica de las pezuñas de los animales, principalmente de los ovinos. Mayor cantidad de animales en la comunidad, mayor probabilidad de rotación y de tener estiércol por día; sin embargo, no debe implicar incrementar la capacidad de carga del terreno para evitar el sobrepastoreo. Trasplante de pastos Finalmente, a manera demostrativa, se realiza una exposición sobre trasplante de pastos que consiste en propagar pastos naturales en terrenos desnudos. - Indumentaria a usar: se realiza con una picota, se hace un corte en el suelo y se introduce la base del macollo o del esqueje, luego se apisona para generar contacto entre el vegetal y el suelo. La distancia entre macollos es de 50 cm. - Densidad de la plantación: 40.000 plántulas por hectárea. - Temporalidad de la actividad: Esta acción principalmente debe realizarse en los meses de diciembre y enero (meses de lluvia). Se recomienda mantener irrigado el terreno, en caso exista irregularidad en las precipitaciones.
B238: CAPACITACIÓN EN BUENAS PRÁCTICAS PARA LA ADAPTACIÓN AL CAMBIO CLIMÁTICO Y GESTIÓN DE RIESGOS
B239: Perfil del capacitador El perfil del profesional a cargo de las actividades de capacitación corresponde a las carreras profesionales de ingeniería forestal, agrícola, agronomía, biología, geografía y ciencias ambientales afines, con experiencia en proyectos de desarrollo que incluyen medidas de adaptación al cambio climático y gestión de riesgos. Población objetivo La presente acción está vinculada al desarrollo de capacidades de la población en general dentro del ámbito de intervención.
B241: Talleres de capacitación en adaptación al cambio climático y gestión de riesgos
B242: La temática impartida en los talleres de capacitación incluirá: (i) Conceptos básicos del cambio climático (CC); ii) La importancia de los servicios ecosistémicos de regulación hídrica y su afectación por el cambio climático; iii) Impactos del cambio climático en los medios de vida de la población; v) Medidas de adaptación basada en ecosistemas andinos de interés hídrico para incrementar resiliencia y disminuir vulnerabilidad en comunidades y (vi) gestión de riesgos en un contexto de cambio climático y eventos externos. A manera de referencia, considerar el siguiente ejemplo de usos de herramientas para la capacitación a población rural sobre adaptación al cambio climático:
D244: Herramienta participativa | F244: Análisis del riesgo
D245: Mapa parlante de peligros asociados al cambio climático | F245: • Identificación de peligros y sus áreas de impacto. • Daños y pérdidas en ecosistemas de interés hídrico, medios de vida y población
D246: Diagrama de cuenca | F246: • Peligro y exposición a riesgos asociados al cambio climático. • Identificación de áreas vulnerables (bosques, humedales, zonas inundables, etc.)
D247: Línea de tiempo de desastres antrópicos y asociados al cambio climático. | F247: • Percepción del riesgo por parte del poblador. • Frecuencia de la ocurrencia de desastres.
D248: Línea de tendencias | F248: • Cambios en el clima y en el tiempo. • Cambio en la disponibilidad de los recursos.
D249: Diagrama de la organización social y mapeo de actores | F249: • Identificación de actores locales y sus roles. • Articulación de actores.
D250: Matriz de análisis de exposición, vulnerabilidad y manejo de recursos | F250: Exposición, fragilidad, resiliencia y adaptación de ecosistemas de interés hídrico.
D251: Cadena de efectos de impactos de cambio climático | F251: Impacto del Cambio Climático en la provisión de los servicios ecosistémicos de regulación hídrica.
B257: SENSIBILIZACIÓN RELACIONADA A LA RECUPERACIÓN DEL SERVICIO ECOSISTÉMICO DE REGULACIÓN HÍDRICA
B258: Población objetivo Las campañas de sensibilización permiten una participación abierta de toda la población, pues su objetivo es llegar a la mayor cantidad de personas para que sean estos los que sean agentes de cambio sobre la recuperación del servicio ecosistémico de regulación hídrica.
B260: Campañas de sensibilización
B261: La estrategia para realizar campañas de sensibilización ambiental involucra la entrega de volantes, folletos y el uso de medios de difusión masiva de información hacia la población beneficiaria y los grupos de comuneros organizados. En las comunidades, la radio y el radioparlante son dos instrumentos con gran potencial de convocatoria y de impartición de información, relativa a la importancia de la recuperación del servicio ecosistémico de regulación hídrica, los ecosistemas de interés hídrico y el manejo adecuado del recurso hídrico. Además, las actividades a ejecutar también deben comprender dinámicas o estrategias lúdicas destinadas a la población joven. En caso se usen exposiciones comunales, es necesario que los contenidos estén contextualizados a la zona que se está interviniendo.
B264: INTERCAMBIO DE EXPERIENCIAS RELACIONADO A LA RECUPERACIÓN DEL SERVICIO ECOSISTÉMICO DE REGULACIÓN HÍDRICA
B266: Realización de pasantías
B267: Está referido al traslado de un número determinado de representantes de la comunidad a un lugar donde hayan ejecutado acciones relacionadas a la recuperación del servicio ecosistémico de regulación hídrica, con la finalidad de conocer experiencias exitosas. Esto permitirá a los beneficiarios volcar los conocimientos adquiridos durante la pasantía en un proyecto en específico y similar. Esta actividad se realiza bajo el enfoque de intercambio de experiencias para la mejora de la gestión de los proyectos y sus impactos en la recuperación del servicio ecosistémico de regulación hídrica y de los ecosistemas de interés hídrico.
B270: CAPACITACIÓN A FUNCIONARIOS PÚBLICOS SOBRE GESTIÓN INTEGRADA DEL RECURSO HÍDRICO CON ENFOQUE DE CUENCA
B271: Perfil del capacitador Es un profesional en ingeniería ambiental, forestal, agrícola o afín, con especialización en manejo y/o gestión de recursos hídricos. Con experiencia docente en temas vinculados a la gestión de recursos hídricos con enfoque de cuenca. Población objetivo La presenta acción estará orientada al desarrollo de capacidades de servidores públicos. Esta acción contribuye a garantizar la sostenibilidad del proyecto.
B273: Talleres de capacitación sobre gestión de los ecosistemas
B274: Los talleres de capacitación son sesiones de aprendizajes planificados y organizados, didácticamente ejecutados, sujetos a evaluación y monitoreo, asumiéndose además las siguientes consideraciones: - La capacitación está centrado en el logro de aprendizajes respecto a la gestión del servicio ecosistémico de regulación hídrica. - Las capacitaciones deberán tener un aforo de entre 15 y 20 personas. - Debido a la alta rotación de servidores públicos, se recomienda garantizar que la periodicidad con que se den las sesiones de capacitación sea anual. - Está relacionada al desarrollo de capacidades de los servidores públicos, orientadas al monitoreo del cuidado del ecosistema intervenido, que contribuyen a garantizar la sostenibilidad del proyecto. - Otros temas que podrán ser abordados durante el taller son: identificación de actores involucrados en la gestión integral de recurso hídrico, planificación local, estructura organizacional, planificación, instrumentos de gestión (planes) y documentos vinculados con la gestión del recurso hídrico.
B278: CAPACITACIÓN A FUNCIONARIOS PÚBLICOS SOBRE LAS MEDIDAS DE ADAPTACIÓN ANTE LOS EFECTOS DE CAMBIO CLIMÁTICO EN LA GESTIÓN INTEGRADA DE LOS RECURSOS HÍDRICOS
B279: Perfil del capacitador El perfil del profesional a cargo de las actividades de capacitación corresponde a las carreras profesionales de ingeniería forestal, agrícola, agronomía, biología, geografía y ciencias ambientales afines con experiencia en proyectos de desarrollo que incluyen medidas de adaptación al cambio climático y gestión de riesgos en un contexto de cambio climático. Población objetivo La presenta acción estará orientada al desarrollo de capacidades de servidores públicos. Esta acción contribuye a garantizar la sostenibilidad del proyecto.
B281: Talleres de capacitación sobre cambio climático
B282: Los talleres de capacitación son sesiones de aprendizajes planificados y organizados, didácticamente ejecutados, sujetos a evaluación y monitoreo, asumiéndose las siguientes consideraciones: - La capacitación está centrado en el logro de aprendizajes, respecto a la gestión integrada de recurso hídrico con enfoque de cuenca. - Las capacitaciones deberán tener un aforo de entre 15 y 20 personas. - Debido a la alta rotación de servidores públicos, se recomienda garantizar que la periodicidad con que se den las sesiones de capacitación sea anual. Como referencia considerar la siguiente estructura en los talleres de capacitación sobre impactos del cambio climático en la gestión de los recursos hídricos:
E284: Actividad | G284: Descripción
E285: Análisis de los impactos del cambio climático | G285: Identificación de los impactos actuales y futuros del cambio climático: por ejemplo, a través de escenarios climáticos en los diferentes niveles, observación del clima local y bioindicadores.
E286: Análisis de vulnerabilidad | G286: Identificación de la vulnerabilidad del contexto socioeconómico y ecológico en su conjunto frente a los impactos del cambio climático, con el fin de entender los riesgos y las oportunidades.
E287: Instrumentos de gestión para identificación de prioridades | G287: Identificación de posibilidades y necesidades de adaptación. También implica definición de prioridades dependiendo de factores como costo-beneficio, la percepción de riesgos y la información disponible
E288: Asesoría en la formulación e implementación de políticas públicas, planeamiento y gobernanza | G288: Acciones que contribuyen a la transversalización del cambio climático en políticas nacionales, planes e instrumentos de gestión sectoriales y territoriales, considerando las propuestas de pautas metodológicas para la transversalización del enfoque ambiental (Incluye CC, LCDS, DB, otros) en el planeamiento estratégico, institucional y operativo a nivel de territorios en el marco del SINAPLAN ; y a la articulación con los compromisos nacionales e internacionales (Contribuciones Nacionalmente Determinadas).
E289: Institucionalidad y gobernanza para el cambio climático | G289: • Componentes de la gobernanza, (actores, espacios de articulación, mecanismos de articulación. etc.) • Procesos de gestión ante el cambio climático nacionales, sectoriales y regionales y su necesidad de articulación.
E290: Proyectos de Inversión | G290: Asesoría y acompañamiento para la incorporación de medidas de adaptación y de gestión de riesgos en el diseño de proyectos de inversión pública.
B296: DESARROLLO DE CAPACIDADES PARA EL MONITOREO Y SEGUIMIENTO DE LOS ECOSISTEMAS DE INTERÉS HÍDRICO Y EL SERVICIO ECOSISTÉMICO DE REGULACIÓN HÍDRICA
B297: La presente acción estará orientada al desarrollo de capacidades de servidores públicos y autoridades comunitarias. Esta acción contribuye a garantizar la sostenibilidad del proyecto. Criterios Generales Identificación de información de base existente: estudios e indicadores medibles para los factores del servicio ecosistémico de regulación hídrica, en el diagnóstico. Dotación de equipamiento mínimo necesario para el monitoreo de los indicadores en temas de cobertura vegetal, suelo y recurso hídrico. Por ejemplo: - Construcción de vertederos para la medición de caudales. - Equipos portátiles para medición de la calidad de agua y suelo. - GPS. - Dendómetros, para la medición del diámetro del árbol, entre otros.
B299: Talleres de capacitación sobre monitoreo y seguimiento
B300: Uso de indumentaria El uso de la tecnología existente, a partir de la planificación del proyecto estará relaciona a los siguientes factores: - Tipo de ecosistema de interés hídrico recuperado. - Tipo de servicio ecosistémico provisto. - Selección de tipo de monitoreo y seguimiento: (i) cobertura vegetal, (ii) suelos o (iii) regulación del recurso hídrico. Uso de información - Se debe aprovechar la información provista principalmente por los indicadores que deben tener la capacidad de ser medibles fácilmente y ser actualizados con cierta periodicidad. De manera estándar se recomienda que deben ser recopilados anualmente. Además, se recomienda clasificar los indicadores según el objetivo a medir que puede ser: producto, resultado o impacto. - Tomar los estudios de base para realizar: (i) inventarios de cobertura vegetal, (ii) seguimiento a indicadores de calidad y cantidad en provisión de agua, entre otros.
B303: INTERCAMBIO DE EXPERIENCIA SOBRE GESTIÓN INTEGRADA DEL RECURSO HÍDRICO, CON ENFOQUE DE CUENCA
B304: Población objetivo La presente acción estará orientada al desarrollo de capacidades de servidores públicos y autoridades comunitarias. Esta acción contribuye a garantizar la sostenibilidad del proyecto..
B307: Realización de pasantías
B308: Las actividades que se consideran a continuación se centran en la modalidad de pasantías en localidades donde se hayan ejecutado proyectos considerados de éxito, relacionados con la gestión del recurso hídrico y manejo de ecosistemas de interés hídrico. Como pasantía, se entiende al traslado de un número determinado de representantes delimitados en la población objetivo, hacia otra comunidad que ya ha adquirido el conocimiento objetivo que se quiere lograr para un proyecto en específico y similar. Se recomienda enfocar la temática de las pasantías en la correcta gestión integrada del recurso hídrico con enfoque de cuenca. Para ello, en la pasantía se debe contemplar la realización de dinámicas, como grupos de trabajo, la discusión de planes de manejo de cuenca, inventarios de cobertura vegetal, entre otros.

Sheet HORIZONTE
C8: EJECUCIÓN | D8: FUNCIONAMIENTO
B9: FORMACIÓN VEGETAL | C9: RECUPERACIÓN DE COBERTURA* | D9: BENEFICIOS DIRECTOS** | E9: HORIZONTE DE EVALUACIÓN (EJECUCIÓN + FUNCIONAMIENTO)
B10: PASTURAS/PASTIZALES | C10: 2-3 AÑOS | D10: 3-5 AÑOS | E10: 5 - 8 años
B11: ARBUSTOS ANDINOS | C11: 3-5 AÑOS | D11: 5 AÑOS A MAS | E11: 8 a más años
B12: ÁRBOLES ANDINOS | C12: 5-7 AÑOS | D12: MAS DE 5 AÑOS | E12: 10 a más años

Sheet Hoja3 (hidden)

Sheet TAMAÑO
B7: Tamaño de la plantación
B8: Definición tamaño | C8: La planificación de especies es una actividad que involucra determinar la cantidad de especies a instalar en terreno definitivo, según el tipo de ecosistema , ya sea a partir de la producción o adquisición de plantones.
B9: Consideraciones para tamaño | C9: • Localización del proyecto, su objetivo y las propiedades en el uso de cada especie forestal (árboles y arbustos) que contribuyan a lograrlo. • Requerimiento de agua y luz solar de la especie. • Tipo de suelo y pendiente del terreno, en la cual se desarrolla. • Densidad de plantación por especie, según sus características de crecimiento y requerimientos de recursos adicionales. • Costos asociados por transporte de la especie, hacia el lugar donde se realizará la plantación. • Tiempo de siembra de los plantones.
B12: Tamaño-Implementación de viveros forestales
B13: Actividades | C13: Descripción de la actividad
B14: Tamaño | C14: El tamaño del vivero depende directamente de la capacidad de plantones a producir. Así, se tienen las siguientes características: • Camas de germinación: El tamaño de las camas de germinación o almacenamiento se recomienda tenga una medida de 1.20m de ancho y 5m de largo. Este tamaño estándar es usado para la producción de 1,000 plantones, en su etapa de plántula. Además, cada cama de repique estará distanciada por 0.6m. • Perímetro de protección: - El perímetro del vivero será cercado con madera rolliza u otro material, como mallas para cercos. - Los postes para la delimitación del perímetro tendrán un distanciamiento de 2.0 m entre postes y se instalará alambre de púas para su protección. • Espacios complementarios: El vivero debe contar con dos espacios, uno para la preparación de sustratos y una zona de acondicionamiento de plantones para transporte.

Sheet CRITERIOS DE LOCALIZACION
B9: I. REFORESTACIÓN CON ESPECIES NATIVAS
B10: Criterios Generales | D10: Para determinar el área a restaurar, es recomendable el uso de imágenes satelitales representativas de la zona degradada para la realización de un análisis histórico comparativo del estado del ecosistema, en un rango aproximado de 10 a 30 años. Además, tener en cuenta los siguientes criterios:
D11: o Según la disponibilidad de la información, el formulador deberá establecer años representativos o subperíodos para realizar esta subactividad. o Las imágenes deben garantizar el reconocimiento de los atributos del ecosistema: (i) florística del sitio (árboles y arbustos), (ii) estabilidad del suelo e (iii) integridad biótica. Esto implica asegurar que la actividad de reforestación facilite la heterogeneidad, integralidad y armonía entre los atributos. o De manera complementaria, realizar estudios de composición del suelo por tipo de ecosistema y las especies de cobertura vegetal predominantes.
B12: Implementación de viveros forestales
B13: Actividades | D13: Descripción de la actividad
B14: Localización | D14: De manera referencial, se establecen los siguientes criterios para la localización del vivero: • Cada vivero debe instalarse lo más cerca del área de plantación final, para evitar cambios bruscos en el ambiente y afianzar la adaptabilidad de la especie. • El vivero debe ser de fácil acceso y cercano a vías de fácil tránsito en el área de ejecución. • El recinto debe tener disponibilidad de agua durante todo el proceso de producción de plantones, principalmente en periodos secos o de estiaje. • El recurso hídrico empleado no debe estar contaminado, libre de agentes patógenos y residuos de productos químicos usados en actividades agropecuarias. • La zona de intervención es preferible que sea de topografía plana o pendiente muy suave, no mayor a 3% de inclinación con la finalidad de lograr el escurrimiento de las aguas de lluvia y evitar la formación de charcos durante estas. • Cesión en uso: Se debe coordinar con la comunidad explicando las oportunidades del vivero en la comunidad y la necesidad de ubicarlo en dicha zona. • Se tiene la georeferenciación de la zona de intervención.
B18: II. REVEGETACIÓN CON ESPECIES NATIVAS
B19: Criterios generales | D19: Para determinar el área a revegetar, es recomendable el uso de imágenes satelitales representativas de la zona degradada para la realización de un análisis histórico comparativo del estado del ecosistema, en un rango aproximado de 10 a 30 años. Además, tener en cuenta los siguientes criterios: • Según la disponibilidad de información, el formulador deberá establecer años representativos o subperíodos para realizar esta subactividad. • Las imágenes deben garantizar el reconocimiento de los atributos del ecosistema: (i) florística del sitio (entre gramíneas, graminoides, leguminosas y otras especies herbáceas), (ii) estabilidad del suelo e (iii) integridad biótica. Esto implica asegurar que la actividad de reforestación facilite la heterogeneidad, integralidad y armonía entre los atributos. • De manera complementaria, realizar estudios de composición del suelo por tipo de ecosistema y las especies de cobertura vegetal predominantes. • Se podría incluir hasta un 10% de especies exóticas como parte de la sostenibilidad de la revegetación. Este proceso se debe aplicar para todo tipo de ecosistema.
B21: Siembra de especies herbáceas seleccionados
